Ref No,Fund Type,Dept,Cost Centre Description    ,Description    ,Creditor Name    ,GL Code Net Amount,Payment date        
2,Revenue,CAHD,Central - Commissioned Services,Permanent Residential,1 St Georges House,13333.52, 05-Apr-2022
3,Revenue,CAHD,Central - Commissioned Services,Fees & Charges Income - General,1 St Georges House,-425.60, 05-Apr-2022
4,Revenue,CAHD,Early Years High Needs Support,Other Private Contractors,100 Acre Wood Day Nursery,880.71, 25-Apr-2022
5,Revenue,CAHD,CSC - LAC Housing Support Grants,Grants to Voluntary Bodies,1625 Independent People,3343.00, 01-Apr-2022
6,Revenue,CAHD,CSC -Woodleaze/HSF,Independent Living,1625 Independent People,4509.51, 11-Apr-2022
7,Revenue,CAHD,CSC - Care Leavers Independent Living,Independent Living,1625 Independent People,5938.26, 07-Apr-2022
8,Revenue,CAHD,Supporting People Programme,Grants to Voluntary Bodies,1625 Independent People,15622.00, 06-Apr-2022
9,Revenue,CAHD,Supporting People Programme,Grants to Voluntary Bodies,1625 Independent People,15629.08, 06-Apr-2022
10,Revenue,CAHD,Supporting People Programme,Grants to Voluntary Bodies,1625 Independent People,15622.00, 29-Apr-2022
11,Revenue,CAHD,Supporting People Programme,Grants to Voluntary Bodies,1625 Independent People,15629.08, 29-Apr-2022
12,Revenue,CAHD,CSC - Care Leavers Independent Living,Independent Living,16Pluscare Support Solutions,12792.78, 22-Apr-2022
13,Revenue,CAHD,CSC - Asylum Seekers - Unaccompanied,Independent Living,16Pluscare Support Solutions,17057.04, 28-Apr-2022
14,Revenue,CAHD,South - Commissioned Services,Permanent Residential,2Nd Floor Building,5630.76, 05-Apr-2022
15,Revenue,CAHD,South - Commissioned Services,Fees & Charges Income - General,2Nd Floor Building,-428.90, 05-Apr-2022
16,Revenue,CAHD,South - Commissioned Services,Permanent Residential,2Nd Floor Building,-21045.90, 05-Apr-2022
17,Revenue,CAHD,South - Commissioned Services,Fees & Charges Income - General,2Nd Floor Building,3192.00, 05-Apr-2022
18,Revenue,CAHD,North - Community based support,Permanent Residential,2Nd Floor Building,41797.66, 05-Apr-2022
19,Revenue,CAHD,North - Community based support,Fees & Charges Income - General,2Nd Floor Building,-3605.70, 05-Apr-2022
20,Revenue,CAHD,Other Alternative Provision Services,Other Private Contractors,3 A Tutors Ltd,2590.00, 25-Apr-2022
21,Revenue,CAHD,Central - Commissioned Services,Other Small Contracts,3 Trees Community Support Ltd,7595.29, 19-Apr-2022
22,Revenue,CAHD,Central - Commissioned Services,Supported Living,3 Trees Community Support Ltd,3008.17, 19-Apr-2022
23,Revenue,CAHD,Central - Commissioned Services,Other Small Contracts,3 Trees Community Support Ltd,7595.29, 26-Apr-2022
24,Revenue,CAHD,Central - Commissioned Services,Supported Living,3 Trees Community Support Ltd,3008.17, 26-Apr-2022
25,Revenue,CAHD,Central - Commissioned Services,Other Small Contracts,3 Trees Community Support Ltd,7595.29, 14-Apr-2022
26,Revenue,CAHD,Central - Commissioned Services,Supported Living,3 Trees Community Support Ltd,3008.17, 14-Apr-2022
27,Revenue,CAHD,South - Commissioned Services,Permanent Residential,5Th Floor Harlech Court,11933.40, 05-Apr-2022
28,Revenue,CAHD,South - Commissioned Services,Permanent Residential,5Th Floor Harlech Court,17391.48, 05-Apr-2022
29,Revenue,CAHD,South - Commissioned Services,Permanent Residential,5Th Floor Harlech Court,18290.84, 05-Apr-2022
30,Revenue,CAHD,South - Commissioned Services,Fees & Charges Income - General,5Th Floor Harlech Court,-572.92, 05-Apr-2022
31,Revenue,CAHD,South - Commissioned Services,Fees & Charges Income - General,5Th Floor Harlech Court,-428.90, 05-Apr-2022
32,Revenue,CAHD,South - Commissioned Services,Fees & Charges Income - General,5Th Floor Harlech Court,-408.90, 05-Apr-2022
33,Revenue,CAHD,S28A cases,Permanent Residential,5Th Floor Harlech Court,11378.60, 05-Apr-2022
34,Revenue,CAHD,S28A cases,Fees & Charges Income - General,5Th Floor Harlech Court,-391.55, 05-Apr-2022
35,Revenue,CAHD,Covid  - Workforce capacity,Grants to Voluntary Bodies,5Th Floor Harlech Court,1613.79, 01-Apr-2022
36,Revenue,CAHD,Covid  - Workforce capacity,Grants to Voluntary Bodies,5Th Floor Harlech Court,1986.54, 04-Apr-2022
37,Revenue,CAHD,North - Community based support,Permanent Residential,5Th Floor Harlech Court,12498.56, 05-Apr-2022
38,Revenue,CAHD,North - Community based support,Fees & Charges Income - General,5Th Floor Harlech Court,-532.92, 05-Apr-2022
39,Revenue,CAHD,Central - Commissioned Services,Permanent Residential,5Th Floor Harlech Court,14891.36, 05-Apr-2022
40,Revenue,CAHD,Central - Commissioned Services,Fees & Charges Income - General,5Th Floor Harlech Court,-428.90, 05-Apr-2022
41,Revenue,CAHD,North - Community based support,Permanent Residential,5Th Floor Harlech Court,9071.12, 05-Apr-2022
42,Revenue,CAHD,North - Community based support,Permanent Residential,5Th Floor Harlech Court,10537.24, 05-Apr-2022
43,Revenue,CAHD,North - Community based support,Fees & Charges Income - General,5Th Floor Harlech Court,-428.90, 05-Apr-2022
44,Revenue,CAHD,Central - Commissioned Services,Non Residential Care Income,A4E Management Ltd,-112.74, 01-Apr-2022
45,Revenue,CAHD,Central - Commissioned Services,Non Residential Care Income,A4E Management Ltd,-112.74, 14-Apr-2022
46,Revenue,CAHD,Central - Commissioned Services,Non Residential Care Income,A4E Management Ltd,-112.74, 29-Apr-2022
47,Revenue,CAHD,Early Years Inclusion Fund,Other Public Bodies,Abacus Pre-School,750.00, 06-Apr-2022
48,Revenue,CAHD,CSC - Vinney Green Secure Unit,Service Contracts (Premises),Abbey Fire Protection Limited,535.80, 22-Apr-2022
49,Revenue,CAHD,South - Commissioned Services,Other Small Contracts,About Me Care and Support Limited,509.97, 06-Apr-2022
50,Revenue,CAHD,South - Commissioned Services,Permanent Nursing,Acacia House,3085.88, 05-Apr-2022
51,Revenue,CAHD,South - Commissioned Services,Fees & Charges Income - General,Acacia House,-1051.38, 05-Apr-2022
52,Revenue,CAHD,Central - Commissioned Services,Permanent Nursing,Acacia House,3587.76, 05-Apr-2022
53,Revenue,CAHD,Post 16 High Needs Placements,Other Private Contractors,Access To Music Ltd,3841.33, 21-Apr-2022
54,Revenue,CAHD,Post 16 High Needs Placements,Other Private Contractors,Access To Music Ltd,1894.24, 25-Apr-2022
55,Revenue,CAHD,Post 16 High Needs Placements,Other Private Contractors,Access To Music Ltd,920.98, 21-Apr-2022
56,Revenue,CAHD,Post 16 High Needs Placements,Other Private Contractors,Access To Music Ltd,688.36, 21-Apr-2022
57,Revenue,CAHD,Mental Health and Community Engagement,Training Expenses,Ace Wellbeing Ltd,1350.00, 12-Apr-2022
58,Revenue,CAHD,Contain Outbreak Mgmt Fund,Printing & Stationery,Ace Wellbeing Ltd,2700.00, 12-Apr-2022
59,Revenue,CAHD,Central - Commissioned Services,Permanent Residential,Acer House Care Home.,3800.00, 05-Apr-2022
60,Revenue,CAHD,Central - Commissioned Services,Fees & Charges Income - General,Acer House Care Home.,-1068.96, 05-Apr-2022
61,Revenue,CAHD,CSC - Residential Placements,Permanent Residential,Acorn Care & Education Ltd,16457.14, 01-Apr-2022
62,Revenue,CAHD,CSC - Residential Placements,Permanent Residential,Acorn Care & Education Ltd,1645.71, 01-Apr-2022
63,Revenue,CAHD,MH Purchasing - Younger,Permanent Residential,Acorn Care Providers,6528.84, 05-Apr-2022
64,Revenue,CAHD,MH Purchasing - Younger,Permanent Residential,Acorn Care Providers,6411.00, 05-Apr-2022
65,Revenue,CAHD,North - S117,Permanent Residential,Acorn Care Providers,4067.36, 05-Apr-2022
66,Revenue,CAHD,Section 117 Placements MH Younger,Permanent Residential,Acorn Care Providers,5605.08, 05-Apr-2022
67,Revenue,CAHD,Jointly Funded H&SC Packages,Permanent Residential,Acorn Care Providers,3515.52, 05-Apr-2022
68,Revenue,CAHD,Jointly Funded H&SC Packages,Permanent Residential,Acorn Care Providers,2366.36, 05-Apr-2022
69,Revenue,CAHD,Jointly Funded H&SC Packages,Permanent Residential,Acorn Care Providers,2193.40, 05-Apr-2022
70,Revenue,CAHD,Training Budget - Children`s Social Serv,Training Expenses,Acorn Health & Safety Limited,449.00, 07-Apr-2022
71,Revenue,CAHD,Training - Adult Services,Training Expenses,Acorn Health & Safety Limited,620.00, 07-Apr-2022
72,Revenue,CAHD,Training - Adult Services,Training Expenses,Acorn Health & Safety Limited,477.00, 20-Apr-2022
73,Revenue,CAHD,Care Management Team - North,Training Expenses,Acorn Health & Safety Limited,775.00, 13-Apr-2022
74,Revenue,CAHD,Training - Adult Services,Training Expenses,Acorn Health & Safety Limited,418.00, 20-Apr-2022
75,Revenue,CAHD,Training - Adult Services,Training Expenses,Acorn Health & Safety Limited,620.00, 29-Apr-2022
76,Revenue,CAHD,School Improvement and Support,Training Expenses,Acorn Hotels Ltd T/A The Walnut Tree Hotel,654.17, 28-Apr-2022
77,Revenue,CAHD,CSC - Agency Fostering,Foster Parent Allowances,Action for Children,3519.88, 14-Apr-2022
78,Revenue,CAHD,CSC - Agency Fostering,Foster Parent Allowances,Action for Children,3715.35, 14-Apr-2022
79,Revenue,CAHD,CSC - Agency Fostering,Foster Parent Allowances,Action for Children,3897.01, 14-Apr-2022
80,Revenue,CAHD,CSC - Agency Fostering,Foster Parent Allowances,Action for Children,3715.35, 14-Apr-2022
81,Revenue,CAHD,CSC - Asylum Seekers - Unaccompanied,Independent Living,Adolescent Support Home Services Ltd,6689.18, 22-Apr-2022
82,Revenue,CAHD,CSC - Asylum Seekers - Unaccompanied,Independent Living,Adolescent Support Home Services Ltd,6689.18, 22-Apr-2022
83,Revenue,CAHD,South - Commissioned Services,Other Small Contracts,Advantedge Commercial Finance Limited,1222.62, 29-Apr-2022
84,Revenue,CAHD,South - Commissioned Services,Other Small Contracts,Advantedge Commercial Finance Limited,636.16, 25-Apr-2022
85,Revenue,CAHD,South - Commissioned Services,Other Small Contracts,Advantedge Commercial Finance Limited,695.80, 29-Apr-2022
86,Revenue,CAHD,South - Commissioned Services,Other Small Contracts,Advantedge Commercial Finance Limited,1431.36, 11-Apr-2022
87,Revenue,CAHD,South - Commissioned Services,Other Small Contracts,Advantedge Commercial Finance Limited,2027.76, 07-Apr-2022
88,Revenue,CAHD,Covid  - Workforce capacity,Grants to Voluntary Bodies,Advantedge Commercial Finance Limited,2918.50, 06-Apr-2022
89,Revenue,CAHD,Covid  - Workforce capacity,Grants to Voluntary Bodies,Advantedge Commercial Finance Limited,946.01, 06-Apr-2022
90,Revenue,CAHD,Covid  - Workforce capacity,Grants to Voluntary Bodies,Advantedge Commercial Finance Limited,1250.78, 07-Apr-2022
91,Revenue,CAHD,Central - Commissioned Services,Other Small Contracts,Afya Care Ltd,2279.10, 20-Apr-2022
92,Revenue,CAHD,South - Commissioned Services,Day Care / Social Activities,Age Concern,279.68, 05-Apr-2022
93,Revenue,CAHD,North - Community based support,Day Care / Social Activities,Age Concern,440.00, 05-Apr-2022
94,Revenue,CAHD,Central - Commissioned Services,Day Care / Social Activities,Age Concern,-209.76, 05-Apr-2022
95,Revenue,CAHD,Central - Commissioned Services,Day Care / Social Activities,Age Concern,324.32, 05-Apr-2022
96,Revenue,CAHD,South - Commissioned Services,Day Care / Social Activities,Age Concern,220.00, 05-Apr-2022
97,Revenue,CAHD,South - Commissioned Services,Day Care / Social Activities,Age Concern,220.00, 05-Apr-2022
98,Revenue,CAHD,North - Community based support,Day Care / Social Activities,Age Concern,330.88, 05-Apr-2022
99,Revenue,CAHD,North - Community based support,Day Care / Social Activities,Age Concern,279.68, 05-Apr-2022
100,Revenue,CAHD,Central - Commissioned Services,Day Care / Social Activities,Age UK - Grace Court,909.92, 05-Apr-2022
101,Revenue,CAHD,Central - Commissioned Services,Day Care / Social Activities,Age UK - Grace Court,279.68, 05-Apr-2022
102,Revenue,CAHD,South - Commissioned Services,Day Care / Social Activities,Age UK - Grace Court,219.92, 05-Apr-2022
103,Revenue,CAHD,South - Commissioned Services,Day Care / Social Activities,Age UK - Grace Court,109.96, 05-Apr-2022
104,Revenue,CAHD,South - Commissioned Services,Day Care / Social Activities,Age UK - Grace Court,279.68, 05-Apr-2022
105,Revenue,CAHD,South - Commissioned Services,Day Care / Social Activities,Age UK - Grace Court,162.12, 05-Apr-2022
106,Revenue,CAHD,South - Commissioned Services,Day Care / Social Activities,Age UK - Grace Court,604.78, 05-Apr-2022
107,Revenue,CAHD,South - Commissioned Services,Day Care / Social Activities,Age UK - Grace Court,219.92, 05-Apr-2022
108,Revenue,CAHD,South - Commissioned Services,Day Care / Social Activities,Age UK - Grace Court,629.28, 05-Apr-2022
109,Revenue,CAHD,South - Commissioned Services,Day Care / Social Activities,Age UK - Grace Court,279.68, 05-Apr-2022
110,Revenue,CAHD,North - Community based support,Day Care / Social Activities,Age UK - Grace Court,264.56, 05-Apr-2022
111,Revenue,CAHD,North - Community based support,Day Care / Social Activities,Age UK - Grace Court,375.68, 05-Apr-2022
112,Revenue,CAHD,Central - Commissioned Services,Day Care / Social Activities,Age UK South Gloucestershire,11948.79, 12-Apr-2022
113,Revenue,CAHD,Extra Care Housing,Private & Voluntary Home Care,Agincare UK Limited,25182.31, 01-Apr-2022
114,Revenue,CAHD,Extra Care Housing,Private & Voluntary Home Care,Agincare UK Limited,25182.31, 29-Apr-2022
115,Revenue,CAHD,Extra Care Housing,Private & Voluntary Home Care,Agincare UK Limited,12116.29, 01-Apr-2022
116,Revenue,CAHD,Extra Care Housing,Private & Voluntary Home Care,Agincare UK Limited,12116.29, 29-Apr-2022
117,Revenue,CAHD,Extra Care Housing,Private & Voluntary Home Care,Agincare UK Limited,30860.93, 04-Apr-2022
118,Revenue,CAHD,Extra Care Housing,Private & Voluntary Home Care,Agincare UK Limited,5458.37, 04-Apr-2022
119,Revenue,CAHD,Extra Care Housing,Private & Voluntary Home Care,Agincare UK Limited,5458.37, 11-Apr-2022
120,Revenue,CAHD,Extra Care Housing,Private & Voluntary Home Care,Agincare UK Limited,5458.37, 19-Apr-2022
121,Revenue,CAHD,Extra Care Housing,Private & Voluntary Home Care,Agincare UK Limited,5458.37, 25-Apr-2022
122,Revenue,CAHD,Extra Care Housing,Private & Voluntary Home Care,Agincare UK Limited,5458.37, 29-Apr-2022
123,Revenue,CAHD,South - Commissioned Services,Day Care / Social Activities,Agincare UK Limited,512.53, 19-Apr-2022
124,Revenue,CAHD,South - Commissioned Services,Day Care / Social Activities,Agincare UK Limited,512.53, 26-Apr-2022
125,Revenue,CAHD,South - Commissioned Services,Day Care / Social Activities,Agincare UK Limited,512.53, 14-Apr-2022
126,Revenue,CAHD,Extra Care Housing,Private & Voluntary Home Care,Agincare UK Limited,1316.22, 13-Apr-2022
127,Revenue,CAHD,Schools Specific Grant Income,Other Public Bodies,Air Balloon Hill Primary School,500.00, 01-Apr-2022
128,Revenue,CAHD,Schools Specific Grant Income,Other Public Bodies,Air Balloon Hill Primary School,500.00, 01-Apr-2022
129,Revenue,CAHD,Statemented Support Payments to OLAs,Other L.A.s - General,Air Balloon Hill Primary School,801.92, 25-Apr-2022
130,Revenue,CAHD,CSC - Fostering Carer Support,Catering,AirHop Bristol Ltd,1720.00, 08-Apr-2022
131,Revenue,CAHD,South - Commissioned Services,Other Small Contracts,AliMo Care Ltd,638.63, 19-Apr-2022
132,Revenue,CAHD,South - Commissioned Services,Other Small Contracts,AliMo Care Ltd,638.63, 26-Apr-2022
133,Revenue,CAHD,South - Commissioned Services,Other Small Contracts,AliMo Care Ltd,638.63, 14-Apr-2022
134,Revenue,CAHD,ASC Rapid Testing Fund,Grants to Voluntary Bodies,AliMo Care Ltd,1361.74, 01-Apr-2022
135,Revenue,CAHD,Covid - ASC - Infection Control,Grants to Voluntary Bodies,AliMo Care Ltd,1856.31, 01-Apr-2022
136,Revenue,CAHD,Covid - ASC - Infection Control,Grants to Voluntary Bodies,AliMo Care Ltd,14338.83, 01-Apr-2022
137,Revenue,CAHD,Covid  - Workforce capacity,Grants to Voluntary Bodies,AliMo Care Ltd,3237.32, 06-Apr-2022
138,Revenue,CAHD,Reset and Recovery,Other Supplies & Services,Alison Comley,500.00, 26-Apr-2022
139,Revenue,CAHD,CSC - Age Related Allowances,Foster Parent Allowances,Individual,354.00, 01-Apr-2022
140,Revenue,CAHD,CSC - Professional Fees Foster Carers,Band 3 Foster Care,Individual,482.00, 01-Apr-2022
141,Revenue,CAHD,CSC - Age Related Allowances,Foster Parent Allowances,Individual,365.57, 08-Apr-2022
142,Revenue,CAHD,CSC - Fostering Carer Support,Payments to Carers,Individual,30.00, 08-Apr-2022
143,Revenue,CAHD,CSC - Professional Fees Foster Carers,Band 3 Foster Care,Individual,487.15, 08-Apr-2022
144,Revenue,CAHD,CSC - Age Related Allowances,Foster Parent Allowances,Individual,363.00, 14-Apr-2022
145,Revenue,CAHD,CSC - Professional Fees Foster Carers,Band 3 Foster Care,Individual,486.00, 14-Apr-2022
146,Revenue,CAHD,CSC - Age Related Allowances,Foster Parent Allowances,Individual,363.00, 22-Apr-2022
147,Revenue,CAHD,CSC - Professional Fees Foster Carers,Band 3 Foster Care,Individual,486.00, 22-Apr-2022
148,Revenue,CAHD,CSC - Age Related Allowances,"Holidays, Outings & Visits",Individual,65.00, 29-Apr-2022
149,Revenue,CAHD,CSC - Age Related Allowances,Foster Parent Allowances,Individual,363.00, 29-Apr-2022
150,Revenue,CAHD,CSC - Fostering Carer Support,Payments to Carers,Individual,20.00, 29-Apr-2022
151,Revenue,CAHD,CSC - Professional Fees Foster Carers,Payments to Carers,Individual,482.00, 29-Apr-2022
152,Revenue,CAHD,CSC - Professional Fees Foster Carers,Band 3 Foster Care,Individual,486.00, 29-Apr-2022
153,Revenue,CAHD,Early Years - Strategy Planning,Schools Funding,Alivia Harvey,943.00, 12-Apr-2022
154,Revenue,CAHD,South - Commissioned Services,Permanent Nursing,Allambie Court,2734.44, 05-Apr-2022
155,Revenue,CAHD,South - Commissioned Services,Fees & Charges Income - General,Allambie Court,-808.13, 05-Apr-2022
156,Revenue,CAHD,Central - Commissioned Services,Permanent Residential,Alvony House Residential Care Home,3000.00, 05-Apr-2022
157,Revenue,CAHD,Central - Commissioned Services,Fees & Charges Income - General,Alvony House Residential Care Home,-698.64, 05-Apr-2022
158,Revenue,CAHD,CSC - Vinney Green Secure Unit,R & M by Departments,Amari Plastics PLC,418.15, 29-Apr-2022
159,Revenue,CAHD,CSC - Vinney Green Secure Unit,R & M by Departments,Amari Plastics PLC,444.97, 08-Apr-2022
160,Revenue,CAHD,CSC - Residential Placements,Permanent Residential,Amberleigh Care Ltd,16771.00, 08-Apr-2022
161,Revenue,CAHD,CSC - Residential Placements,Permanent Residential,Amberleigh Care Ltd,16230.00, 29-Apr-2022
162,Revenue,CAHD,CSC - Residential Placements,Permanent Residential,Ambito Care and Education,19920.87, 29-Apr-2022
163,Revenue,CAHD,CSC - Residential Placements,Permanent Residential,Ambito Care and Education,19930.88, 29-Apr-2022
164,Revenue,CAHD,CSC - Agency Fostering,Foster Parent Allowances,Amicus Foster Care Ltd,4879.00, 29-Apr-2022
165,Revenue,CAHD,CSC - Agency Fostering,Foster Parent Allowances,Amicus Foster Care Ltd,4796.44, 01-Apr-2022
166,Revenue,CAHD,Preparing for Adulthood Team,Other Employee Expenses,Amy Jenkins,750.00, 13-Apr-2022
167,Revenue,CAHD,Supporting People Programme,Grants to Voluntary Bodies,Anchor Hanover Group,1070.50, 06-Apr-2022
168,Revenue,CAHD,Supporting People Programme,Grants to Voluntary Bodies,Anchor Hanover Group,1070.50, 29-Apr-2022
169,Revenue,CAHD,Supporting People Programme,Grants to Voluntary Bodies,Anchor Hanover Group,873.08, 06-Apr-2022
170,Revenue,CAHD,Supporting People Programme,Grants to Voluntary Bodies,Anchor Hanover Group,873.08, 29-Apr-2022
171,Revenue,CAHD,Covid - ASC - Infection Control,Grants to Voluntary Bodies,Angel Care Support Limited,607.52, 01-Apr-2022
172,Revenue,CAHD,Covid  - Workforce capacity,Grants to Voluntary Bodies,Angel Care Support Limited,834.72, 01-Apr-2022
173,Revenue,CAHD,Social Lettings Agency,Rent,Individual,822.73, 20-Apr-2022
174,Revenue,CAHD,Social Lettings Agency,Fees & Charges Income - General,Individual,-65.82, 20-Apr-2022
175,Revenue,CAHD,Social Lettings Agency,Rent,Individual,822.73, 01-Apr-2022
176,Revenue,CAHD,Social Lettings Agency,Fees & Charges Income - General,Individual,-65.82, 01-Apr-2022
177,Revenue,CAHD,Social Lettings Agency,Rent,Individual,822.73, 29-Apr-2022
178,Revenue,CAHD,Social Lettings Agency,Fees & Charges Income - General,Individual,-65.82, 29-Apr-2022
179,Revenue,CAHD,Early Years Inclusion Fund,Other Public Bodies,Apple Tree Pre-School,750.00, 25-Apr-2022
180,Revenue,CAHD,Early Years - Strategy Planning,Schools Funding,Apple Tree Pre-School,740.50, 12-Apr-2022
181,Revenue,CAHD,CSC - Vinney Green Secure Unit,Educational Materials,AQA Education Ltd,635.80, 19-Apr-2022
182,Revenue,CAHD,Younger MH non-res purchasing,Supported Living,Arch Care Rehab Services Ltd,756.80, 25-Apr-2022
183,Revenue,CAHD,Younger MH non-res purchasing,Supported Living,Arch Care Rehab Services Ltd,718.96, 21-Apr-2022
184,Revenue,CAHD,Younger MH non-res purchasing,Supported Living,Arch Care Rehab Services Ltd,700.04, 21-Apr-2022
185,Revenue,CAHD,Younger MH non-res purchasing,Supported Living,Arch Care Rehab Services Ltd,718.96, 21-Apr-2022
186,Revenue,CAHD,Younger MH non-res purchasing,Supported Living,Arch Care Rehab Services Ltd,718.96, 21-Apr-2022
187,Revenue,CAHD,Younger MH non-res purchasing,Supported Living,Arch Care Rehab Services Ltd,756.80, 21-Apr-2022
188,Revenue,CAHD,Schools Specific Grant Income,Other Public Bodies,Archbishop McGrath Catholic High School,500.00, 08-Apr-2022
189,Revenue,CAHD,Schools Specific Grant Income,Other Public Bodies,Archbishop McGrath Catholic High School,500.00, 08-Apr-2022
190,Revenue,CAHD,Schools Specific Grant Income,Other Public Bodies,Archbishop McGrath Catholic High School,2000.00, 08-Apr-2022
191,Revenue,CAHD,Younger MH non-res purchasing,Respite Care,Archcare Rehab Limited,0.00, 05-Apr-2022
192,Revenue,CAHD,Younger MH non-res purchasing,Supported Living,Archcare Rehab Limited,2002.44, 05-Apr-2022
193,Revenue,CAHD,Younger MH non-res purchasing,Other Small Contracts,Archcare Rehab Limited,1494.68, 20-Apr-2022
194,Revenue,CAHD,CSC - Vinney Green Secure Unit,Educational Materials,Ascentis,600.00, 22-Apr-2022
195,Revenue,CAHD,South - Commissioned Services,Permanent Residential,Ash Lea House,5551.92, 05-Apr-2022
196,Revenue,CAHD,South - Commissioned Services,Fees & Charges Income - General,Ash Lea House,-428.90, 05-Apr-2022
197,Revenue,CAHD,North - Community based support,Permanent Residential,Ash View House,7099.52, 05-Apr-2022
198,Revenue,CAHD,North - Community based support,Permanent Residential,Ash View House,7120.00, 05-Apr-2022
199,Revenue,CAHD,North - Community based support,Fees & Charges Income - General,Ash View House,-428.90, 05-Apr-2022
200,Revenue,CAHD,North - Community based support,Fees & Charges Income - General,Ash View House,-428.90, 05-Apr-2022
201,Revenue,CAHD,South - Commissioned Services,Permanent Residential,Ash View House,6903.04, 05-Apr-2022
202,Revenue,CAHD,South - Commissioned Services,Permanent Residential,Ash View House,5655.48, 05-Apr-2022
203,Revenue,CAHD,South - Commissioned Services,Fees & Charges Income - General,Ash View House,-428.90, 05-Apr-2022
204,Revenue,CAHD,South - Commissioned Services,Fees & Charges Income - General,Ash View House,-379.55, 05-Apr-2022
205,Revenue,CAHD,South - S117,Permanent Residential,Ash View House,6983.64, 05-Apr-2022
206,Revenue,CAHD,Section 117 Placements MH Younger,Permanent Residential,Ash View House,5135.96, 05-Apr-2022
207,Revenue,CAHD,Jointly Funded H&SC Packages,Permanent Residential,Ash View House,1160.84, 05-Apr-2022
208,Revenue,CAHD,Jointly Funded H&SC Packages,Permanent Residential,Ash View House,2204.28, 05-Apr-2022
209,Revenue,CAHD,S117 Placements PCT,Permanent Residential,Ash View House,7884.72, 05-Apr-2022
210,Revenue,CAHD,CSC - Legal Fees,Legal Fees,Individual,800.00, 11-Apr-2022
211,Revenue,CAHD,Supporting People Programme,Grants to Voluntary Bodies,Aspects and Milestones Trust,3544.83, 06-Apr-2022
212,Revenue,CAHD,Supporting People Programme,Grants to Voluntary Bodies,Aspects and Milestones Trust,1777.17, 06-Apr-2022
213,Revenue,CAHD,Supporting People Programme,Grants to Voluntary Bodies,Aspects and Milestones Trust,3544.83, 29-Apr-2022
214,Revenue,CAHD,Supporting People Programme,Grants to Voluntary Bodies,Aspects and Milestones Trust,1777.17, 29-Apr-2022
215,Revenue,CAHD,North - Community based support,Other Small Contracts,Aspirations,3444.44, 19-Apr-2022
216,Revenue,CAHD,South - Commissioned Services,Other Small Contracts,Aspirations,1477.72, 19-Apr-2022
217,Revenue,CAHD,South - Commissioned Services,Supported Living,Aspirations,14344.68, 19-Apr-2022
218,Revenue,CAHD,Central - Commissioned Services,Other Small Contracts,Aspirations,3079.04, 19-Apr-2022
219,Revenue,CAHD,18-25 Year Olds,Other Small Contracts,Aspirations,4051.53, 19-Apr-2022
220,Revenue,CAHD,North - Community based support,Other Small Contracts,Aspirations,3444.44, 26-Apr-2022
221,Revenue,CAHD,South - Commissioned Services,Other Small Contracts,Aspirations,1477.72, 26-Apr-2022
222,Revenue,CAHD,South - Commissioned Services,Supported Living,Aspirations,14344.68, 26-Apr-2022
223,Revenue,CAHD,Central - Commissioned Services,Other Small Contracts,Aspirations,3079.04, 26-Apr-2022
224,Revenue,CAHD,18-25 Year Olds,Other Small Contracts,Aspirations,4051.53, 26-Apr-2022
225,Revenue,CAHD,North - Community based support,Other Small Contracts,Aspirations,3444.44, 14-Apr-2022
226,Revenue,CAHD,South - Commissioned Services,Other Small Contracts,Aspirations,1477.72, 14-Apr-2022
227,Revenue,CAHD,South - Commissioned Services,Supported Living,Aspirations,14344.68, 14-Apr-2022
228,Revenue,CAHD,Central - Commissioned Services,Other Small Contracts,Aspirations,3079.04, 14-Apr-2022
229,Revenue,CAHD,18-25 Year Olds,Other Small Contracts,Aspirations,4051.53, 14-Apr-2022
230,Revenue,CAHD,CSC - Care Leavers Independent Living,Adults - Family Support,Aspirations Support Bristol Limited,15419.68, 08-Apr-2022
231,Revenue,CAHD,CSC - Care Leavers Independent Living,Adults - Family Support,Aspirations Support Bristol Limited,15419.68, 29-Apr-2022
232,Revenue,CAHD,CSC - Vinney Green Secure Unit,R & M by Departments,Assa Abloy Limited,17055.31, 27-Apr-2022
233,Revenue,CAHD,HQ Office & Communications (ICT),Membership Fees,Association of Directors of Childrens Services Ltd,2740.00, 07-Apr-2022
234,Revenue,CAHD,SEN High Needs - Not at School Base,Other Private Contractors,AT Therapy,915.21, 26-Apr-2022
235,Revenue,CAHD,South - Commissioned Services,Adults - Family Support,Ategi Limited,746.01, 21-Apr-2022
236,Revenue,CAHD,South - Commissioned Services,Adults - Family Support,Ategi Limited,580.23, 12-Apr-2022
237,Revenue,CAHD,South - Commissioned Services,Adults - Family Support,Ategi Limited,663.12, 12-Apr-2022
238,Revenue,CAHD,18-25 Year Olds,Adults - Family Support,Ategi Limited,1598.60, 05-Apr-2022
239,Revenue,CAHD,18-25 Year Olds,Adults - Family Support,Ategi Limited,2647.28, 05-Apr-2022
240,Revenue,CAHD,18-25 Year Olds,Adults - Family Support,Ategi Limited,1598.60, 05-Apr-2022
241,Revenue,CAHD,18-25 Year Olds,Adults - Family Support,Ategi Limited,2287.28, 05-Apr-2022
242,Revenue,CAHD,18-25 Year Olds,Respite Care,Ategi Limited,0.00, 05-Apr-2022
243,Revenue,CAHD,18-25 Year Olds,Respite Care,Ategi Limited,0.00, 05-Apr-2022
244,Revenue,CAHD,18-25 Year Olds,Respite Care,Ategi Limited,0.00, 05-Apr-2022
245,Revenue,CAHD,18-25 Year Olds,Respite Care,Ategi Limited,0.00, 05-Apr-2022
246,Revenue,CAHD,South - Commissioned Services,Adults - Family Support,Ategi Limited,2287.28, 05-Apr-2022
247,Revenue,CAHD,South - Commissioned Services,Adults - Family Support,Ategi Limited,2287.28, 05-Apr-2022
248,Revenue,CAHD,South - Commissioned Services,Adults - Family Support,Ategi Limited,1598.60, 05-Apr-2022
249,Revenue,CAHD,South - Commissioned Services,Respite Care,Ategi Limited,0.00, 05-Apr-2022
250,Revenue,CAHD,South - Commissioned Services,Respite Care,Ategi Limited,0.00, 05-Apr-2022
251,Revenue,CAHD,South - Commissioned Services,Respite Care,Ategi Limited,0.00, 05-Apr-2022
252,Revenue,CAHD,North - Community based support,Adults - Family Support,Ategi Limited,1139.44, 05-Apr-2022
253,Revenue,CAHD,North - Community based support,Adults - Family Support,Ategi Limited,1598.60, 05-Apr-2022
254,Revenue,CAHD,North - Community based support,Respite Care,Ategi Limited,0.00, 05-Apr-2022
255,Revenue,CAHD,North - Community based support,Respite Care,Ategi Limited,0.00, 05-Apr-2022
256,Revenue,CAHD,Schools Specific Grant Income,Other Public Bodies,Athelstan Trust,2000.00, 01-Apr-2022
257,Revenue,CAHD,Statemented Support Academies,Other Public Bodies,Athelstan Trust,718.08, 25-Apr-2022
258,Revenue,CAHD,Statemented Support Academies,Other Public Bodies,Athelstan Trust,722.42, 25-Apr-2022
259,Revenue,CAHD,Statemented Support Academies,Other Public Bodies,Athelstan Trust,1342.25, 25-Apr-2022
260,Revenue,CAHD,Statemented Support Academies,Other Public Bodies,Athelstan Trust,1367.64, 25-Apr-2022
261,Revenue,CAHD,Statemented Support Academies,Other Public Bodies,Athelstan Trust,771.42, 25-Apr-2022
262,Revenue,CAHD,Statemented Support Academies,Other Public Bodies,Athelstan Trust,1436.25, 25-Apr-2022
263,Revenue,CAHD,Statemented Support Academies,Other Public Bodies,Athelstan Trust,588.75, 25-Apr-2022
264,Revenue,CAHD,CSC - CLA Placements,Supported Living,Athelstan Trust,934.13, 25-Apr-2022
265,Revenue,CAHD,Statemented Support Academies,Other Public Bodies,Athelstan Trust,3514.12, 25-Apr-2022
266,Revenue,CAHD,Statemented Support Academies,Other Public Bodies,Athelstan Trust,926.58, 25-Apr-2022
267,Revenue,CAHD,Statemented Support Academies,Other Public Bodies,Athelstan Trust,1066.65, 25-Apr-2022
268,Revenue,CAHD,Academy Resource Base Funding,Other Public Bodies,Athelstan Trust,1643.84, 25-Apr-2022
269,Revenue,CAHD,Academy Resource Base Funding,Other Public Bodies,Athelstan Trust,2432.79, 25-Apr-2022
270,Revenue,CAHD,Academy Resource Base Funding,Other Public Bodies,Athelstan Trust,2432.79, 25-Apr-2022
271,Revenue,CAHD,Academy Resource Base Funding,Other Public Bodies,Athelstan Trust,2432.79, 25-Apr-2022
272,Revenue,CAHD,Academy Resource Base Funding,Other Public Bodies,Athelstan Trust,2432.79, 25-Apr-2022
273,Revenue,CAHD,Academy Resource Base Funding,Other Public Bodies,Athelstan Trust,2432.79, 25-Apr-2022
274,Revenue,CAHD,Academy Resource Base Funding,Other Public Bodies,Athelstan Trust,2432.79, 25-Apr-2022
275,Revenue,CAHD,Academy Resource Base Funding,Other Public Bodies,Athelstan Trust,2432.79, 25-Apr-2022
276,Revenue,CAHD,Academy Resource Base Funding,Other Public Bodies,Athelstan Trust,2432.79, 25-Apr-2022
277,Revenue,CAHD,Academy Resource Base Funding,Other Public Bodies,Athelstan Trust,2432.79, 25-Apr-2022
278,Revenue,CAHD,Academy Resource Base Funding,Other Public Bodies,Athelstan Trust,2432.79, 25-Apr-2022
279,Revenue,CAHD,Academy Resource Base Funding,Other Public Bodies,Athelstan Trust,2432.79, 25-Apr-2022
280,Revenue,CAHD,Academy Resource Base Funding,Other Public Bodies,Athelstan Trust,2432.79, 25-Apr-2022
281,Revenue,CAHD,CSC - Vinney Green Secure Unit,R & M by Departments,Atus Systems Limited,1197.22, 14-Apr-2022
282,Revenue,CAHD,CSC - Vinney Green Secure Unit,R & M by Departments,Atus Systems Limited,1488.35, 21-Apr-2022
283,Revenue,CAHD,Independent Special Placements - Pre 16,Other Private Contractors,Aurora Hedgeway School,24572.82, 08-Apr-2022
284,Revenue,CAHD,Independent Special Placements - Pre 16,Other Private Contractors,Aurora Hedgeway School,26844.70, 25-Apr-2022
285,Revenue,CAHD,Independent Special Placements - Post 16,Other Private Contractors,Aurora Hedgeway School,15766.57, 08-Apr-2022
286,Revenue,CAHD,Independent Special Placements - Post 16,Other Private Contractors,Aurora Hedgeway School,15766.57, 08-Apr-2022
287,Revenue,CAHD,Independent Special Placements - Post 16,Other Private Contractors,Aurora Hedgeway School,21794.99, 14-Apr-2022
288,Revenue,CAHD,Independent Special Placements - Pre 16,Other Private Contractors,Aurora Hedgeway School,15766.57, 08-Apr-2022
289,Revenue,CAHD,Independent Special Placements - Pre 16,Other Private Contractors,Aurora Hedgeway School,19088.00, 08-Apr-2022
290,Revenue,CAHD,Independent Special Placements - Pre 16,Other Private Contractors,Aurora Hedgeway School,19088.00, 08-Apr-2022
291,Revenue,CAHD,Independent Special Placements - Pre 16,Other Private Contractors,Aurora Hedgeway School,23159.65, 13-Apr-2022
292,Revenue,CAHD,Independent Special Placements - Pre 16,Other Private Contractors,Aurora Hedgeway School,26317.00, 08-Apr-2022
293,Revenue,CAHD,Independent Special Placements - Pre 16,Other Private Contractors,Aurora Hedgeway School,21516.00, 13-Apr-2022
294,Revenue,CAHD,Independent Special Placements - Pre 16,Other Private Contractors,Aurora Hedgeway School,15766.57, 13-Apr-2022
295,Revenue,CAHD,Independent Special Placements - Pre 16,Other Private Contractors,Aurora Hedgeway School,15766.57, 13-Apr-2022
296,Revenue,CAHD,Independent Special Placements - Pre 16,Other Private Contractors,Aurora Hedgeway School,21618.00, 13-Apr-2022
297,Revenue,CAHD,Independent Special Placements - Post 16,Other Private Contractors,Aurora Hedgeway School,27647.00, 13-Apr-2022
298,Revenue,CAHD,Independent Special Placements - Pre 16,Other Private Contractors,Aurora Hedgeway School,15766.57, 08-Apr-2022
299,Revenue,CAHD,Independent Special Placements - Post 16,Other Private Contractors,Aurora Hedgeway School,558.76, 26-Apr-2022
300,Revenue,CAHD,Independent Special Placements - Post 16,Bus Revenue Support,Aurora Severnside School,16656.00, 14-Apr-2022
301,Revenue,CAHD,South - Commissioned Services,Permanent Residential,Autism Specialised Care Homes,6506.88, 05-Apr-2022
302,Revenue,CAHD,South - Commissioned Services,Fees & Charges Income - General,Autism Specialised Care Homes,-428.90, 05-Apr-2022
303,Revenue,CAHD,CSC - Adoption Support Fund,Post Adoption,Avalon Thomas,561.00, 13-Apr-2022
304,Revenue,CAHD,Younger Adult Mental Health,Agency Staff (Admin/Support Staff) Pay,Avon & Wiltshire Mental Health,2322.00, 19-Apr-2022
305,Revenue,CAHD,Younger Adult Mental Health,Agency Staff (Admin/Support Staff) Pay,Avon & Wiltshire Mental Health,5501.00, 25-Apr-2022
306,Revenue,CAHD,Leadership and Business Support,Drugs & Medical Supplies,Avon Local Pharmaceutical Committee,3672.00, 22-Apr-2022
307,Revenue,CAHD,South - Commissioned Services,Permanent Nursing,Avon Lodge Care Centre,17664.08, 11-Apr-2022
308,Revenue,CAHD,South - bed purchasing and direct  payments,Fees & Charges Income - General,Avon Lodge Care Centre,818.11, 05-Apr-2022
309,Revenue,CAHD,South Glos Users in South Glos Homes,Permanent Nursing,Avon Lodge Care Centre,750.40, 05-Apr-2022
310,Revenue,CAHD,South Glos Users in South Glos Homes,Permanent Nursing,Avon Lodge Care Centre,-1447.20, 05-Apr-2022
311,Revenue,CAHD,South Glos Users in South Glos Homes,Permanent Nursing,Avon Lodge Care Centre,750.40, 05-Apr-2022
312,Revenue,CAHD,South Glos Users in South Glos Homes,Permanent Nursing,Avon Lodge Care Centre,750.40, 05-Apr-2022
313,Revenue,CAHD,South Glos Users in South Glos Homes,Permanent Nursing,Avon Lodge Care Centre,750.40, 05-Apr-2022
314,Revenue,CAHD,South Glos Users in South Glos Homes,Permanent Nursing,Avon Lodge Care Centre,750.40, 05-Apr-2022
315,Revenue,CAHD,South Glos Users in South Glos Homes,Permanent Nursing,Avon Lodge Care Centre,750.40, 05-Apr-2022
316,Revenue,CAHD,South Glos Users in South Glos Homes,Permanent Nursing,Avon Lodge Care Centre,750.40, 05-Apr-2022
317,Revenue,CAHD,South Glos Users in South Glos Homes,Permanent Nursing,Avon Lodge Care Centre,750.40, 05-Apr-2022
318,Revenue,CAHD,South Glos Users in South Glos Homes,Permanent Nursing,Avon Lodge Care Centre,750.40, 05-Apr-2022
319,Revenue,CAHD,South Glos Users in South Glos Homes,Permanent Nursing,Avon Lodge Care Centre,750.40, 05-Apr-2022
320,Revenue,CAHD,South Glos Users in South Glos Homes,Permanent Nursing,Avon Lodge Care Centre,750.40, 05-Apr-2022
321,Revenue,CAHD,South Glos Users in South Glos Homes,Permanent Nursing,Avon Lodge Care Centre,750.40, 05-Apr-2022
322,Revenue,CAHD,South Glos Users in South Glos Homes,Permanent Nursing,Avon Lodge Care Centre,750.40, 05-Apr-2022
323,Revenue,CAHD,South Glos Users in South Glos Homes,Permanent Nursing,Avon Lodge Care Centre,750.40, 05-Apr-2022
324,Revenue,CAHD,South Glos Users in South Glos Homes,Permanent Nursing,Avon Lodge Care Centre,750.40, 05-Apr-2022
325,Revenue,CAHD,South Glos Users in South Glos Homes,Permanent Nursing,Avon Lodge Care Centre,750.40, 05-Apr-2022
326,Revenue,CAHD,South Glos Users in South Glos Homes,Permanent Nursing,Avon Lodge Care Centre,750.40, 05-Apr-2022
327,Revenue,CAHD,South Glos Users in South Glos Homes,Permanent Nursing,Avon Lodge Care Centre,750.40, 05-Apr-2022
328,Revenue,CAHD,South Glos Users in South Glos Homes,Permanent Nursing,Avon Lodge Care Centre,750.40, 05-Apr-2022
329,Revenue,CAHD,South Glos Users in South Glos Homes,Permanent Nursing,Avon Lodge Care Centre,750.40, 05-Apr-2022
330,Revenue,CAHD,South Glos Users in South Glos Homes,Permanent Nursing,Avon Lodge Care Centre,750.40, 05-Apr-2022
331,Revenue,CAHD,South Glos Users in South Glos Homes,Permanent Nursing,Avon Lodge Care Centre,750.40, 05-Apr-2022
332,Revenue,CAHD,South Glos Users in South Glos Homes,Permanent Nursing,Avon Lodge Care Centre,750.40, 05-Apr-2022
333,Revenue,CAHD,South Glos Users in South Glos Homes,Permanent Nursing,Avon Lodge Care Centre,750.40, 05-Apr-2022
334,Revenue,CAHD,South Glos Users in South Glos Homes,Permanent Nursing,Avon Lodge Care Centre,750.40, 05-Apr-2022
335,Revenue,CAHD,South Glos Users in South Glos Homes,Permanent Nursing,Avon Lodge Care Centre,750.40, 05-Apr-2022
336,Revenue,CAHD,South Glos Users in South Glos Homes,Permanent Nursing,Avon Lodge Care Centre,750.40, 05-Apr-2022
337,Revenue,CAHD,South Glos Users in South Glos Homes,Permanent Nursing,Avon Lodge Care Centre,750.40, 05-Apr-2022
338,Revenue,CAHD,Central - Commissioned Services,Permanent Nursing,Avon Lodge Care Centre,3974.16, 05-Apr-2022
339,Revenue,CAHD,Central - Commissioned Services,Permanent Nursing,Avon Lodge Care Centre,3887.40, 05-Apr-2022
340,Revenue,CAHD,Central - Commissioned Services,Fees & Charges Income - General,Avon Lodge Care Centre,-682.84, 05-Apr-2022
341,Revenue,CAHD,Central - Commissioned Services,Fees & Charges Income - General,Avon Lodge Care Centre,-935.30, 05-Apr-2022
342,Revenue,CAHD,South - Commissioned Services,Permanent Residential,Avon Lodge Care Centre,3130.40, 05-Apr-2022
343,Revenue,CAHD,South - Commissioned Services,Permanent Residential,Avon Lodge Care Centre,3600.00, 05-Apr-2022
344,Revenue,CAHD,South - Commissioned Services,Permanent Residential,Avon Lodge Care Centre,3460.00, 05-Apr-2022
345,Revenue,CAHD,South - Commissioned Services,Permanent Nursing,Avon Lodge Care Centre,-6598.16, 05-Apr-2022
346,Revenue,CAHD,South - Commissioned Services,Permanent Nursing,Avon Lodge Care Centre,3800.00, 05-Apr-2022
347,Revenue,CAHD,South - Commissioned Services,Permanent Nursing,Avon Lodge Care Centre,5046.88, 05-Apr-2022
348,Revenue,CAHD,South - Commissioned Services,Permanent Nursing,Avon Lodge Care Centre,3339.08, 05-Apr-2022
349,Revenue,CAHD,South - Commissioned Services,Permanent Nursing,Avon Lodge Care Centre,4296.00, 05-Apr-2022
350,Revenue,CAHD,South - Commissioned Services,Permanent Nursing,Avon Lodge Care Centre,3539.60, 05-Apr-2022
351,Revenue,CAHD,South - Commissioned Services,Permanent Nursing,Avon Lodge Care Centre,4447.88, 05-Apr-2022
352,Revenue,CAHD,South - Commissioned Services,Permanent Nursing,Avon Lodge Care Centre,4505.12, 05-Apr-2022
353,Revenue,CAHD,South - Commissioned Services,Permanent Nursing,Avon Lodge Care Centre,4410.32, 05-Apr-2022
354,Revenue,CAHD,South - Commissioned Services,Permanent Nursing,Avon Lodge Care Centre,13200.00, 05-Apr-2022
355,Revenue,CAHD,South - Commissioned Services,Permanent Nursing,Avon Lodge Care Centre,3887.40, 05-Apr-2022
356,Revenue,CAHD,South - Commissioned Services,Permanent Nursing,Avon Lodge Care Centre,9513.63, 05-Apr-2022
357,Revenue,CAHD,South - Commissioned Services,Permanent Nursing,Avon Lodge Care Centre,4296.48, 05-Apr-2022
358,Revenue,CAHD,South - Commissioned Services,Permanent Nursing,Avon Lodge Care Centre,4634.24, 05-Apr-2022
359,Revenue,CAHD,South - Commissioned Services,Respite Planned - Nursing,Avon Lodge Care Centre,6444.72, 05-Apr-2022
360,Revenue,CAHD,South - Commissioned Services,Fees & Charges Income - General,Avon Lodge Care Centre,1047.88, 05-Apr-2022
361,Revenue,CAHD,South - Commissioned Services,Fees & Charges Income - General,Avon Lodge Care Centre,-751.35, 05-Apr-2022
362,Revenue,CAHD,South - Commissioned Services,Fees & Charges Income - General,Avon Lodge Care Centre,-712.04, 05-Apr-2022
363,Revenue,CAHD,South - Commissioned Services,Fees & Charges Income - General,Avon Lodge Care Centre,-1490.53, 05-Apr-2022
364,Revenue,CAHD,South - Commissioned Services,Fees & Charges Income - General,Avon Lodge Care Centre,-428.90, 05-Apr-2022
365,Revenue,CAHD,South - Commissioned Services,Fees & Charges Income - General,Avon Lodge Care Centre,-1252.27, 05-Apr-2022
366,Revenue,CAHD,South - Commissioned Services,Fees & Charges Income - General,Avon Lodge Care Centre,-994.40, 05-Apr-2022
367,Revenue,CAHD,South - Commissioned Services,Fees & Charges Income - General,Avon Lodge Care Centre,-835.73, 05-Apr-2022
368,Revenue,CAHD,South - Commissioned Services,Fees & Charges Income - General,Avon Lodge Care Centre,-1035.99, 05-Apr-2022
369,Revenue,CAHD,South - Commissioned Services,Fees & Charges Income - General,Avon Lodge Care Centre,-613.55, 05-Apr-2022
370,Revenue,CAHD,South - Commissioned Services,Fees & Charges Income - General,Avon Lodge Care Centre,-602.85, 05-Apr-2022
371,Revenue,CAHD,North - Community based support,Permanent Residential,Avon Lodge Care Centre,3539.60, 05-Apr-2022
372,Revenue,CAHD,North - Community based support,Permanent Nursing,Avon Lodge Care Centre,4296.00, 05-Apr-2022
373,Revenue,CAHD,North - Community based support,Permanent Nursing,Avon Lodge Care Centre,3887.40, 05-Apr-2022
374,Revenue,CAHD,North - Community based support,Fees & Charges Income - General,Avon Lodge Care Centre,-1459.41, 05-Apr-2022
375,Revenue,CAHD,North - Community based support,Fees & Charges Income - General,Avon Lodge Care Centre,-776.36, 05-Apr-2022
376,Revenue,CAHD,South - S117,Permanent Nursing,Avon Lodge Care Centre,3974.84, 05-Apr-2022
377,Revenue,CAHD,Covid  - Workforce capacity,Grants to Voluntary Bodies,Avon Lodge Care Centre,2949.34, 01-Apr-2022
378,Revenue,CAHD,South - Commissioned Services,Permanent Residential,Avon Valley Care Home,1878.24, 07-Apr-2022
379,Revenue,CAHD,Central - Commissioned Services,Permanent Residential,Avon Valley Care Home,4092.00, 05-Apr-2022
380,Revenue,CAHD,Central - Commissioned Services,Fees & Charges Income - General,Avon Valley Care Home,-640.04, 05-Apr-2022
381,Revenue,CAHD,South - Commissioned Services,Permanent Residential,Avon Valley Care Home,4092.00, 05-Apr-2022
382,Revenue,CAHD,South - Commissioned Services,Permanent Residential,Avon Valley Care Home,4092.00, 05-Apr-2022
383,Revenue,CAHD,South - Commissioned Services,Permanent Residential,Avon Valley Care Home,4270.00, 05-Apr-2022
384,Revenue,CAHD,South - Commissioned Services,Permanent Residential,Avon Valley Care Home,4270.00, 05-Apr-2022
385,Revenue,CAHD,South - Commissioned Services,Permanent Residential,Avon Valley Care Home,4051.08, 05-Apr-2022
386,Revenue,CAHD,South - Commissioned Services,Permanent Residential,Avon Valley Care Home,4230.00, 05-Apr-2022
387,Revenue,CAHD,South - Commissioned Services,Permanent Residential,Avon Valley Care Home,4051.08, 05-Apr-2022
388,Revenue,CAHD,South - Commissioned Services,Permanent Residential,Avon Valley Care Home,4270.00, 05-Apr-2022
389,Revenue,CAHD,South - Commissioned Services,Permanent Residential,Avon Valley Care Home,3032.16, 05-Apr-2022
390,Revenue,CAHD,South - Commissioned Services,Permanent Residential,Avon Valley Care Home,4230.00, 05-Apr-2022
391,Revenue,CAHD,South - Commissioned Services,Permanent Residential,Avon Valley Care Home,3641.88, 05-Apr-2022
392,Revenue,CAHD,South - Commissioned Services,Permanent Residential,Avon Valley Care Home,4230.00, 05-Apr-2022
393,Revenue,CAHD,South - Commissioned Services,Permanent Residential,Avon Valley Care Home,4178.92, 05-Apr-2022
394,Revenue,CAHD,South - Commissioned Services,Permanent Residential,Avon Valley Care Home,4230.00, 05-Apr-2022
395,Revenue,CAHD,South - Commissioned Services,Fees & Charges Income - General,Avon Valley Care Home,-949.10, 05-Apr-2022
396,Revenue,CAHD,South - Commissioned Services,Fees & Charges Income - General,Avon Valley Care Home,-658.64, 05-Apr-2022
397,Revenue,CAHD,South - Commissioned Services,Fees & Charges Income - General,Avon Valley Care Home,-1088.62, 05-Apr-2022
398,Revenue,CAHD,South - Commissioned Services,Fees & Charges Income - General,Avon Valley Care Home,-987.97, 05-Apr-2022
399,Revenue,CAHD,South - Commissioned Services,Fees & Charges Income - General,Avon Valley Care Home,1673.18, 05-Apr-2022
400,Revenue,CAHD,South - Commissioned Services,Fees & Charges Income - General,Avon Valley Care Home,-1253.87, 05-Apr-2022
401,Revenue,CAHD,South - Commissioned Services,Fees & Charges Income - General,Avon Valley Care Home,-1020.01, 05-Apr-2022
402,Revenue,CAHD,South - Commissioned Services,Fees & Charges Income - General,Avon Valley Care Home,-1878.24, 05-Apr-2022
403,Revenue,CAHD,South - Commissioned Services,Fees & Charges Income - General,Avon Valley Care Home,1341.94, 05-Apr-2022
404,Revenue,CAHD,South - Commissioned Services,Fees & Charges Income - General,Avon Valley Care Home,-1587.82, 05-Apr-2022
405,Revenue,CAHD,South - Commissioned Services,Fees & Charges Income - General,Avon Valley Care Home,-1157.83, 05-Apr-2022
406,Revenue,CAHD,South - Commissioned Services,Fees & Charges Income - General,Avon Valley Care Home,-1129.69, 05-Apr-2022
407,Revenue,CAHD,South - Commissioned Services,Fees & Charges Income - General,Avon Valley Care Home,-1152.58, 05-Apr-2022
408,Revenue,CAHD,South - S117,Permanent Residential,Avon Valley Care Home,4092.00, 05-Apr-2022
409,Revenue,CAHD,Covid - ASC - Infection Control,Grants to Voluntary Bodies,Avon Valley Care Home,2750.00, 06-Apr-2022
410,Revenue,CAHD,North - Community based support,Permanent Residential,Avonmere Care Home,4680.00, 05-Apr-2022
411,Revenue,CAHD,North - Community based support,Permanent Residential,Avonmere Care Home,4892.00, 05-Apr-2022
412,Revenue,CAHD,North - Community based support,Permanent Residential,Avonmere Care Home,4521.68, 05-Apr-2022
413,Revenue,CAHD,North - Community based support,Permanent Residential,Avonmere Care Home,4600.00, 05-Apr-2022
414,Revenue,CAHD,North - Community based support,Permanent Residential,Avonmere Care Home,4720.00, 05-Apr-2022
415,Revenue,CAHD,North - Community based support,Fees & Charges Income - General,Avonmere Care Home,-1068.00, 05-Apr-2022
416,Revenue,CAHD,North - Community based support,Fees & Charges Income - General,Avonmere Care Home,-613.55, 05-Apr-2022
417,Revenue,CAHD,North - Community based support,Fees & Charges Income - General,Avonmere Care Home,-980.28, 05-Apr-2022
418,Revenue,CAHD,North - Community based support,Fees & Charges Income - General,Avonmere Care Home,-1089.82, 05-Apr-2022
419,Revenue,CAHD,North - Community based support,Fees & Charges Income - General,Avonmere Care Home,-1147.74, 05-Apr-2022
420,Revenue,CAHD,Covid - ASC - Infection Control,Grants to Voluntary Bodies,Avonmere Care Home,2750.00, 06-Apr-2022
421,Revenue,CAHD,South Glos Users in South Glos Homes,Permanent Nursing,Badminton Place,750.40, 05-Apr-2022
422,Revenue,CAHD,South Glos Users in South Glos Homes,Permanent Nursing,Badminton Place,750.40, 05-Apr-2022
423,Revenue,CAHD,South Glos Users in South Glos Homes,Permanent Nursing,Badminton Place,750.40, 05-Apr-2022
424,Revenue,CAHD,Central - Commissioned Services,Respite Care,Badminton Place,-0.08, 05-Apr-2022
425,Revenue,CAHD,Central - Commissioned Services,Respite Planned - Residential,Badminton Place,3480.00, 05-Apr-2022
426,Revenue,CAHD,Central - Commissioned Services,Respite Planned - Nursing,Badminton Place,21857.14, 05-Apr-2022
427,Revenue,CAHD,North - Community based support,Permanent Nursing,Badminton Place,4864.32, 05-Apr-2022
428,Revenue,CAHD,North - Community based support,Permanent Nursing,Badminton Place,5800.00, 05-Apr-2022
429,Revenue,CAHD,North - Community based support,Fees & Charges Income - General,Badminton Place,-788.27, 05-Apr-2022
430,Revenue,CAHD,Covid  - Workforce capacity,Grants to Voluntary Bodies,Badminton Place,1057.31, 06-Apr-2022
431,Revenue,CAHD,Covid  - Workforce capacity,Grants to Voluntary Bodies,Badminton Place,2918.50, 04-Apr-2022
432,Revenue,CAHD,Covid  - Workforce capacity,Grants to Voluntary Bodies,Badminton Place,1250.78, 07-Apr-2022
433,Revenue,CAHD,Independent Special Placements - Post 16,Other Private Contractors,Bath Road Priory,41267.91, 11-Apr-2022
434,Revenue,CAHD,Community Emergency Beds,Respite Emergency - Residential,Beaufort Care Ltd,7600.00, 26-Apr-2022
435,Revenue,CAHD,South Glos Users in South Glos Homes,Permanent Nursing,Beaufort Grange Care Home,750.40, 05-Apr-2022
436,Revenue,CAHD,South Glos Users in South Glos Homes,Permanent Nursing,Beaufort Grange Care Home,750.40, 05-Apr-2022
437,Revenue,CAHD,South Glos Users in South Glos Homes,Permanent Nursing,Beaufort Grange Care Home,750.40, 05-Apr-2022
438,Revenue,CAHD,South Glos Users in South Glos Homes,Permanent Nursing,Beaufort Grange Care Home,7396.80, 05-Apr-2022
439,Revenue,CAHD,South Glos Users in South Glos Homes,Permanent Nursing,Beaufort Grange Care Home,750.40, 05-Apr-2022
440,Revenue,CAHD,South Glos Users in South Glos Homes,Permanent Nursing,Beaufort Grange Care Home,750.40, 05-Apr-2022
441,Revenue,CAHD,South Glos Users in South Glos Homes,Permanent Nursing,Beaufort Grange Care Home,750.40, 05-Apr-2022
442,Revenue,CAHD,South Glos Users in South Glos Homes,Permanent Nursing,Beaufort Grange Care Home,750.40, 05-Apr-2022
443,Revenue,CAHD,South Glos Users in South Glos Homes,Permanent Nursing,Beaufort Grange Care Home,750.40, 05-Apr-2022
444,Revenue,CAHD,South Glos Users in South Glos Homes,Permanent Nursing,Beaufort Grange Care Home,5547.60, 05-Apr-2022
445,Revenue,CAHD,South Glos Users in South Glos Homes,Permanent Nursing,Beaufort Grange Care Home,750.40, 05-Apr-2022
446,Revenue,CAHD,South Glos Users in South Glos Homes,Permanent Nursing,Beaufort Grange Care Home,3564.40, 05-Apr-2022
447,Revenue,CAHD,South Glos Users in South Glos Homes,Permanent Nursing,Beaufort Grange Care Home,750.40, 05-Apr-2022
448,Revenue,CAHD,South Glos Users in South Glos Homes,Permanent Nursing,Beaufort Grange Care Home,750.40, 05-Apr-2022
449,Revenue,CAHD,South Glos Users in South Glos Homes,Permanent Nursing,Beaufort Grange Care Home,750.40, 05-Apr-2022
450,Revenue,CAHD,South Glos Users in South Glos Homes,Permanent Nursing,Beaufort Grange Care Home,750.40, 05-Apr-2022
451,Revenue,CAHD,South Glos Users in South Glos Homes,Permanent Nursing,Beaufort Grange Care Home,750.40, 05-Apr-2022
452,Revenue,CAHD,South Glos Users in South Glos Homes,Permanent Nursing,Beaufort Grange Care Home,750.40, 05-Apr-2022
453,Revenue,CAHD,South Glos Users in South Glos Homes,Permanent Nursing,Beaufort Grange Care Home,750.40, 05-Apr-2022
454,Revenue,CAHD,South Glos Users in South Glos Homes,Permanent Nursing,Beaufort Grange Care Home,750.40, 05-Apr-2022
455,Revenue,CAHD,South Glos Users in South Glos Homes,Permanent Nursing,Beaufort Grange Care Home,750.40, 05-Apr-2022
456,Revenue,CAHD,South Glos Users in South Glos Homes,Permanent Nursing,Beaufort Grange Care Home,750.40, 05-Apr-2022
457,Revenue,CAHD,South Glos Users in South Glos Homes,Permanent Nursing,Beaufort Grange Care Home,2599.60, 05-Apr-2022
458,Revenue,CAHD,South Glos Users in South Glos Homes,Permanent Nursing,Beaufort Grange Care Home,750.40, 05-Apr-2022
459,Revenue,CAHD,South Glos Users in South Glos Homes,Permanent Nursing,Beaufort Grange Care Home,750.40, 05-Apr-2022
460,Revenue,CAHD,South Glos Users in South Glos Homes,Permanent Nursing,Beaufort Grange Care Home,750.40, 05-Apr-2022
461,Revenue,CAHD,South Glos Users in South Glos Homes,Permanent Nursing,Beaufort Grange Care Home,750.40, 05-Apr-2022
462,Revenue,CAHD,South Glos Users in South Glos Homes,Permanent Nursing,Beaufort Grange Care Home,750.40, 05-Apr-2022
463,Revenue,CAHD,South Glos Users in South Glos Homes,Permanent Nursing,Beaufort Grange Care Home,750.40, 05-Apr-2022
464,Revenue,CAHD,South Glos Users in South Glos Homes,Permanent Nursing,Beaufort Grange Care Home,750.40, 05-Apr-2022
465,Revenue,CAHD,South Glos Users in South Glos Homes,Permanent Nursing,Beaufort Grange Care Home,750.40, 05-Apr-2022
466,Revenue,CAHD,South Glos Users in South Glos Homes,Permanent Nursing,Beaufort Grange Care Home,750.40, 05-Apr-2022
467,Revenue,CAHD,South Glos Users in South Glos Homes,Permanent Nursing,Beaufort Grange Care Home,750.40, 05-Apr-2022
468,Revenue,CAHD,South Glos Users in South Glos Homes,Permanent Nursing,Beaufort Grange Care Home,750.40, 05-Apr-2022
469,Revenue,CAHD,South Glos Users in South Glos Homes,Permanent Nursing,Beaufort Grange Care Home,-6646.40, 05-Apr-2022
470,Revenue,CAHD,South Glos Users in South Glos Homes,Permanent Nursing,Beaufort Grange Care Home,750.40, 05-Apr-2022
471,Revenue,CAHD,South Glos Users in South Glos Homes,Permanent Nursing,Beaufort Grange Care Home,750.40, 05-Apr-2022
472,Revenue,CAHD,Central - Commissioned Services,Permanent Residential,Beaufort Grange Care Home,7200.00, 05-Apr-2022
473,Revenue,CAHD,Central - Commissioned Services,Permanent Nursing,Beaufort Grange Care Home,5500.00, 05-Apr-2022
474,Revenue,CAHD,Central - Commissioned Services,Permanent Nursing,Beaufort Grange Care Home,11684.00, 05-Apr-2022
475,Revenue,CAHD,Central - Commissioned Services,Permanent Nursing,Beaufort Grange Care Home,5400.00, 05-Apr-2022
476,Revenue,CAHD,Central - Commissioned Services,Permanent Nursing,Beaufort Grange Care Home,5500.00, 05-Apr-2022
477,Revenue,CAHD,Central - Commissioned Services,Fees & Charges Income - General,Beaufort Grange Care Home,-593.55, 05-Apr-2022
478,Revenue,CAHD,South - Commissioned Services,Permanent Nursing,Beaufort Grange Care Home,4449.60, 05-Apr-2022
479,Revenue,CAHD,South - Commissioned Services,Fees & Charges Income - General,Beaufort Grange Care Home,-613.55, 05-Apr-2022
480,Revenue,CAHD,North - Community based support,Permanent Nursing,Beaufort Grange Care Home,4369.60, 05-Apr-2022
481,Revenue,CAHD,North - Community based support,Permanent Nursing,Beaufort Grange Care Home,10620.00, 05-Apr-2022
482,Revenue,CAHD,North - Community based support,Fees & Charges Income - General,Beaufort Grange Care Home,-613.55, 05-Apr-2022
483,Revenue,CAHD,North - Community based support,Fees & Charges Income - General,Beaufort Grange Care Home,-428.90, 05-Apr-2022
484,Revenue,CAHD,Central Team - S117,Permanent Nursing,Beaufort Grange Care Home,13907.14, 05-Apr-2022
485,Revenue,CAHD,North - S117,Permanent Nursing,Beaufort Grange Care Home,5400.00, 05-Apr-2022
486,Revenue,CAHD,Central - Commissioned Services,Permanent Residential,Beaufort House,2991.84, 05-Apr-2022
487,Revenue,CAHD,Central - Commissioned Services,Permanent Residential,Beaufort House,2896.24, 05-Apr-2022
488,Revenue,CAHD,Central - Commissioned Services,Permanent Residential,Beaufort House,3800.00, 05-Apr-2022
489,Revenue,CAHD,Central - Commissioned Services,Permanent Residential,Beaufort House,4000.00, 05-Apr-2022
490,Revenue,CAHD,Central - Commissioned Services,Permanent Residential,Beaufort House,3380.00, 05-Apr-2022
491,Revenue,CAHD,Central - Commissioned Services,Permanent Residential,Beaufort House,3200.00, 05-Apr-2022
492,Revenue,CAHD,Central - Commissioned Services,Permanent Residential,Beaufort House,4000.00, 05-Apr-2022
493,Revenue,CAHD,Central - Commissioned Services,Permanent Residential,Beaufort House,10800.00, 05-Apr-2022
494,Revenue,CAHD,Central - Commissioned Services,Permanent Residential,Beaufort House,3600.00, 05-Apr-2022
495,Revenue,CAHD,Central - Commissioned Services,Fees & Charges Income - General,Beaufort House,-802.52, 05-Apr-2022
496,Revenue,CAHD,Central - Commissioned Services,Fees & Charges Income - General,Beaufort House,-920.35, 05-Apr-2022
497,Revenue,CAHD,Central - Commissioned Services,Fees & Charges Income - General,Beaufort House,-714.82, 05-Apr-2022
498,Revenue,CAHD,Central - Commissioned Services,Fees & Charges Income - General,Beaufort House,-1418.99, 05-Apr-2022
499,Revenue,CAHD,Central - Commissioned Services,Fees & Charges Income - General,Beaufort House,-734.31, 05-Apr-2022
500,Revenue,CAHD,Central - Commissioned Services,Fees & Charges Income - General,Beaufort House,-613.55, 05-Apr-2022
501,Revenue,CAHD,North - Community based support,Permanent Residential,Beaufort House,4000.00, 05-Apr-2022
502,Revenue,CAHD,North - Community based support,Permanent Residential,Beaufort House,2817.28, 05-Apr-2022
503,Revenue,CAHD,North - Community based support,Permanent Residential,Beaufort House,4000.00, 05-Apr-2022
504,Revenue,CAHD,North - Community based support,Fees & Charges Income - General,Beaufort House,-1140.15, 05-Apr-2022
505,Revenue,CAHD,North - Community based support,Fees & Charges Income - General,Beaufort House,-613.55, 05-Apr-2022
506,Revenue,CAHD,North - Community based support,Fees & Charges Income - General,Beaufort House,-649.55, 05-Apr-2022
507,Revenue,CAHD,South Glos Users in South Glos Homes,Permanent Nursing,Beech House,750.40, 05-Apr-2022
508,Revenue,CAHD,South Glos Users in South Glos Homes,Permanent Nursing,Beech House,750.40, 05-Apr-2022
509,Revenue,CAHD,South Glos Users in South Glos Homes,Permanent Nursing,Beech House,750.40, 05-Apr-2022
510,Revenue,CAHD,South Glos Users in South Glos Homes,Permanent Nursing,Beech House,2358.40, 05-Apr-2022
511,Revenue,CAHD,South Glos Users in South Glos Homes,Permanent Nursing,Beech House,750.40, 05-Apr-2022
512,Revenue,CAHD,South Glos Users in South Glos Homes,Permanent Nursing,Beech House,750.40, 05-Apr-2022
513,Revenue,CAHD,South Glos Users in South Glos Homes,Permanent Nursing,Beech House,750.40, 05-Apr-2022
514,Revenue,CAHD,South Glos Users in South Glos Homes,Permanent Nursing,Beech House,750.40, 05-Apr-2022
515,Revenue,CAHD,South Glos Users in South Glos Homes,Permanent Nursing,Beech House,750.40, 05-Apr-2022
516,Revenue,CAHD,South Glos Users in South Glos Homes,Permanent Nursing,Beech House,750.40, 05-Apr-2022
517,Revenue,CAHD,South Glos Users in South Glos Homes,Permanent Nursing,Beech House,3189.20, 05-Apr-2022
518,Revenue,CAHD,South Glos Users in South Glos Homes,Permanent Nursing,Beech House,750.40, 05-Apr-2022
519,Revenue,CAHD,South Glos Users in South Glos Homes,Permanent Nursing,Beech House,750.40, 05-Apr-2022
520,Revenue,CAHD,South Glos Users in South Glos Homes,Permanent Nursing,Beech House,750.40, 05-Apr-2022
521,Revenue,CAHD,South Glos Users in South Glos Homes,Permanent Nursing,Beech House,750.40, 05-Apr-2022
522,Revenue,CAHD,South Glos Users in South Glos Homes,Permanent Nursing,Beech House,750.40, 05-Apr-2022
523,Revenue,CAHD,South Glos Users in South Glos Homes,Permanent Nursing,Beech House,3457.20, 05-Apr-2022
524,Revenue,CAHD,South Glos Users in South Glos Homes,Permanent Nursing,Beech House,750.40, 05-Apr-2022
525,Revenue,CAHD,South Glos Users in South Glos Homes,Permanent Nursing,Beech House,750.40, 05-Apr-2022
526,Revenue,CAHD,South - Commissioned Services,Permanent Residential,Beech House,4480.00, 05-Apr-2022
527,Revenue,CAHD,South - Commissioned Services,Fees & Charges Income - General,Beech House,-774.57, 05-Apr-2022
528,Revenue,CAHD,North - Community based support,Permanent Residential,Beech House,4460.28, 05-Apr-2022
529,Revenue,CAHD,North - Community based support,Permanent Residential,Beech House,4480.00, 05-Apr-2022
530,Revenue,CAHD,North - Community based support,Permanent Residential,Beech House,4480.00, 05-Apr-2022
531,Revenue,CAHD,North - Community based support,Permanent Residential,Beech House,4480.00, 05-Apr-2022
532,Revenue,CAHD,North - Community based support,Permanent Residential,Beech House,4480.00, 05-Apr-2022
533,Revenue,CAHD,North - Community based support,Permanent Residential,Beech House,13042.86, 05-Apr-2022
534,Revenue,CAHD,North - Community based support,Permanent Nursing,Beech House,4400.00, 05-Apr-2022
535,Revenue,CAHD,North - Community based support,Permanent Nursing,Beech House,4378.44, 05-Apr-2022
536,Revenue,CAHD,North - Community based support,Permanent Nursing,Beech House,4407.12, 05-Apr-2022
537,Revenue,CAHD,North - Community based support,Fees & Charges Income - General,Beech House,-1019.22, 05-Apr-2022
538,Revenue,CAHD,North - Community based support,Fees & Charges Income - General,Beech House,-613.55, 05-Apr-2022
539,Revenue,CAHD,North - Community based support,Fees & Charges Income - General,Beech House,-649.55, 05-Apr-2022
540,Revenue,CAHD,North - Community based support,Fees & Charges Income - General,Beech House,-1816.39, 05-Apr-2022
541,Revenue,CAHD,North - Community based support,Fees & Charges Income - General,Beech House,-714.48, 05-Apr-2022
542,Revenue,CAHD,North - Community based support,Fees & Charges Income - General,Beech House,-614.81, 05-Apr-2022
543,Revenue,CAHD,North - Community based support,Fees & Charges Income - General,Beech House,-4480.00, 05-Apr-2022
544,Revenue,CAHD,North - Community based support,Fees & Charges Income - General,Beech House,-824.38, 05-Apr-2022
545,Revenue,CAHD,South Glos Users in South Glos Homes,Permanent Nursing,Beechwood Care Home,1122.40, 05-Apr-2022
546,Revenue,CAHD,18-25 Year Olds,Permanent Residential,Beechwood Court Ltd,14491.31, 29-Apr-2022
547,Revenue,CAHD,18-25 Year Olds,Permanent Residential,Beechwood Court Ltd,20867.62, 29-Apr-2022
548,Revenue,CAHD,Central - Commissioned Services,Permanent Nursing,Begbrook House Nursing Home,3400.00, 05-Apr-2022
549,Revenue,CAHD,South - Commissioned Services,Permanent Residential,Begbrook House Nursing Home,3400.00, 05-Apr-2022
550,Revenue,CAHD,South - Commissioned Services,Permanent Nursing,Begbrook House Nursing Home,3593.88, 05-Apr-2022
551,Revenue,CAHD,South - Commissioned Services,Fees & Charges Income - General,Begbrook House Nursing Home,-1057.10, 05-Apr-2022
552,Revenue,CAHD,South - Commissioned Services,Fees & Charges Income - General,Begbrook House Nursing Home,-878.01, 05-Apr-2022
553,Revenue,CAHD,North - Community based support,Permanent Nursing,Begbrook House Nursing Home,3234.72, 05-Apr-2022
554,Revenue,CAHD,North - Community based support,Fees & Charges Income - General,Begbrook House Nursing Home,-613.55, 05-Apr-2022
555,Revenue,CAHD,Schools Specific Grant Income,Other Public Bodies,Begbrook Primary Academy,500.00, 01-Apr-2022
556,Revenue,CAHD,Homeless - Private Sector Leasing,Legal Fees,Bevan Brittan LLP,2664.00, 19-Apr-2022
557,Revenue,CAHD,South - S117,Permanent Residential,Bidna House,3774.24, 05-Apr-2022
558,Revenue,CAHD,CSC - Vinney Green Secure Unit,R & M by Departments,Binns Fencing Limited,8890.00, 29-Apr-2022
559,Revenue,CAHD,Tobacco Control,Other Small Contracts,Bionical Solutions Limited,7602.07, 27-Apr-2022
560,Revenue,CAHD,Placements OLA Special Schools and RB,Other L.A.s - General,Blaise High School,807.94, 26-Apr-2022
561,Revenue,CAHD,Placements OLA Special Schools and RB,Other L.A.s - General,Blaise High School,766.84, 26-Apr-2022
562,Revenue,CAHD,Statemented Support Payments to OLAs,Other L.A.s - General,Blaise High School,907.83, 25-Apr-2022
563,Revenue,CAHD,Placements OLA Special Schools and RB,Other L.A.s - General,Blaise High School,766.84, 26-Apr-2022
564,Revenue,CAHD,North - Community based support,Other Small Contracts,Blakehill Healthcare Ltd,4319.89, 19-Apr-2022
565,Revenue,CAHD,South - Commissioned Services,Other Small Contracts,Blakehill Healthcare Ltd,4453.76, 19-Apr-2022
566,Revenue,CAHD,Central - Commissioned Services,Other Small Contracts,Blakehill Healthcare Ltd,5876.67, 19-Apr-2022
567,Revenue,CAHD,North - Community based support,Other Small Contracts,Blakehill Healthcare Ltd,4319.89, 26-Apr-2022
568,Revenue,CAHD,South - Commissioned Services,Other Small Contracts,Blakehill Healthcare Ltd,4453.76, 26-Apr-2022
569,Revenue,CAHD,Central - Commissioned Services,Other Small Contracts,Blakehill Healthcare Ltd,5876.67, 26-Apr-2022
570,Revenue,CAHD,North - Community based support,Other Small Contracts,Blakehill Healthcare Ltd,4319.89, 14-Apr-2022
571,Revenue,CAHD,South - Commissioned Services,Other Small Contracts,Blakehill Healthcare Ltd,4453.76, 14-Apr-2022
572,Revenue,CAHD,Central - Commissioned Services,Other Small Contracts,Blakehill Healthcare Ltd,5876.67, 14-Apr-2022
573,Revenue,CAHD,Covid  - Workforce capacity,Grants to Voluntary Bodies,Blakehill Healthcare Ltd,1725.09, 01-Apr-2022
574,Revenue,CAHD,Covid  - Workforce capacity,Grants to Voluntary Bodies,Blakehill Healthcare Ltd,3163.75, 06-Apr-2022
575,Revenue,CAHD,South Glos Users in South Glos Homes,Permanent Nursing,Blossom Fields Nursing Home,750.40, 05-Apr-2022
576,Revenue,CAHD,South Glos Users in South Glos Homes,Permanent Nursing,Blossom Fields Nursing Home,750.40, 05-Apr-2022
577,Revenue,CAHD,South Glos Users in South Glos Homes,Permanent Nursing,Blossom Fields Nursing Home,750.40, 05-Apr-2022
578,Revenue,CAHD,South Glos Users in South Glos Homes,Permanent Nursing,Blossom Fields Nursing Home,750.40, 05-Apr-2022
579,Revenue,CAHD,South Glos Users in South Glos Homes,Permanent Nursing,Blossom Fields Nursing Home,750.40, 05-Apr-2022
580,Revenue,CAHD,South Glos Users in South Glos Homes,Permanent Nursing,Blossom Fields Nursing Home,750.40, 05-Apr-2022
581,Revenue,CAHD,South Glos Users in South Glos Homes,Permanent Nursing,Blossom Fields Nursing Home,750.40, 05-Apr-2022
582,Revenue,CAHD,South Glos Users in South Glos Homes,Permanent Nursing,Blossom Fields Nursing Home,750.40, 05-Apr-2022
583,Revenue,CAHD,South Glos Users in South Glos Homes,Permanent Nursing,Blossom Fields Nursing Home,750.40, 05-Apr-2022
584,Revenue,CAHD,South Glos Users in South Glos Homes,Permanent Nursing,Blossom Fields Nursing Home,750.40, 05-Apr-2022
585,Revenue,CAHD,South Glos Users in South Glos Homes,Permanent Nursing,Blossom Fields Nursing Home,750.40, 05-Apr-2022
586,Revenue,CAHD,South Glos Users in South Glos Homes,Permanent Nursing,Blossom Fields Nursing Home,750.40, 05-Apr-2022
587,Revenue,CAHD,South Glos Users in South Glos Homes,Permanent Nursing,Blossom Fields Nursing Home,750.40, 05-Apr-2022
588,Revenue,CAHD,South Glos Users in South Glos Homes,Permanent Nursing,Blossom Fields Nursing Home,750.40, 05-Apr-2022
589,Revenue,CAHD,South Glos Users in South Glos Homes,Permanent Nursing,Blossom Fields Nursing Home,750.40, 05-Apr-2022
590,Revenue,CAHD,South Glos Users in South Glos Homes,Permanent Nursing,Blossom Fields Nursing Home,750.40, 05-Apr-2022
591,Revenue,CAHD,South Glos Users in South Glos Homes,Permanent Nursing,Blossom Fields Nursing Home,750.40, 05-Apr-2022
592,Revenue,CAHD,South Glos Users in South Glos Homes,Permanent Nursing,Blossom Fields Nursing Home,750.40, 05-Apr-2022
593,Revenue,CAHD,South Glos Users in South Glos Homes,Permanent Nursing,Blossom Fields Nursing Home,750.40, 05-Apr-2022
594,Revenue,CAHD,South Glos Users in South Glos Homes,Permanent Nursing,Blossom Fields Nursing Home,750.40, 05-Apr-2022
595,Revenue,CAHD,South Glos Users in South Glos Homes,Permanent Nursing,Blossom Fields Nursing Home,750.40, 05-Apr-2022
596,Revenue,CAHD,South Glos Users in South Glos Homes,Permanent Nursing,Blossom Fields Nursing Home,750.40, 05-Apr-2022
597,Revenue,CAHD,South Glos Users in South Glos Homes,Permanent Nursing,Blossom Fields Nursing Home,80.40, 05-Apr-2022
598,Revenue,CAHD,South Glos Users in South Glos Homes,Permanent Nursing,Blossom Fields Nursing Home,-1608.00, 05-Apr-2022
599,Revenue,CAHD,South Glos Users in South Glos Homes,Permanent Nursing,Blossom Fields Nursing Home,750.40, 05-Apr-2022
600,Revenue,CAHD,Central - Commissioned Services,Permanent Nursing,Blossom Fields Nursing Home,4280.81, 05-Apr-2022
601,Revenue,CAHD,Central - Commissioned Services,Permanent Nursing,Blossom Fields Nursing Home,4132.12, 05-Apr-2022
602,Revenue,CAHD,Central - Commissioned Services,Permanent Nursing,Blossom Fields Nursing Home,-1232.80, 05-Apr-2022
603,Revenue,CAHD,Central - Commissioned Services,Respite Planned - Nursing,Blossom Fields Nursing Home,9149.69, 05-Apr-2022
604,Revenue,CAHD,Central - Commissioned Services,Fees & Charges Income - General,Blossom Fields Nursing Home,-619.52, 05-Apr-2022
605,Revenue,CAHD,South - Commissioned Services,Permanent Nursing,Blossom Fields Nursing Home,4800.00, 05-Apr-2022
606,Revenue,CAHD,South - Commissioned Services,Permanent Nursing,Blossom Fields Nursing Home,4091.60, 05-Apr-2022
607,Revenue,CAHD,South - Commissioned Services,Fees & Charges Income - General,Blossom Fields Nursing Home,-847.92, 05-Apr-2022
608,Revenue,CAHD,South - Commissioned Services,Fees & Charges Income - General,Blossom Fields Nursing Home,-733.60, 05-Apr-2022
609,Revenue,CAHD,North - Community based support,Permanent Nursing,Blossom Fields Nursing Home,4910.28, 05-Apr-2022
610,Revenue,CAHD,North - Community based support,Permanent Nursing,Blossom Fields Nursing Home,3792.92, 05-Apr-2022
611,Revenue,CAHD,North - Community based support,Permanent Nursing,Blossom Fields Nursing Home,17500.00, 05-Apr-2022
612,Revenue,CAHD,North - Community based support,Permanent Nursing,Blossom Fields Nursing Home,14928.57, 05-Apr-2022
613,Revenue,CAHD,North - Community based support,Permanent Nursing,Blossom Fields Nursing Home,4132.12, 05-Apr-2022
614,Revenue,CAHD,North - Community based support,Permanent Nursing,Blossom Fields Nursing Home,80.40, 05-Apr-2022
615,Revenue,CAHD,North - Community based support,Permanent Nursing,Blossom Fields Nursing Home,4132.00, 05-Apr-2022
616,Revenue,CAHD,North - Community based support,Permanent Nursing,Blossom Fields Nursing Home,4132.12, 05-Apr-2022
617,Revenue,CAHD,North - Community based support,Permanent Nursing,Blossom Fields Nursing Home,442.84, 05-Apr-2022
618,Revenue,CAHD,North - Community based support,Respite Planned - Nursing,Blossom Fields Nursing Home,13042.86, 05-Apr-2022
619,Revenue,CAHD,North - Community based support,Fees & Charges Income - General,Blossom Fields Nursing Home,-613.55, 05-Apr-2022
620,Revenue,CAHD,North - Community based support,Fees & Charges Income - General,Blossom Fields Nursing Home,-664.76, 05-Apr-2022
621,Revenue,CAHD,North - Community based support,Fees & Charges Income - General,Blossom Fields Nursing Home,-649.55, 05-Apr-2022
622,Revenue,CAHD,North - Community based support,Fees & Charges Income - General,Blossom Fields Nursing Home,-921.83, 05-Apr-2022
623,Revenue,CAHD,North - Community based support,Permanent Residential,Blossom Fields Nursing Home,500.00, 07-Apr-2022
624,Revenue,CAHD,South - bed purchasing and direct  payments,Fees & Charges Income - General,Blossom Fields Nursing Home,3705.57, 05-Apr-2022
625,Revenue,CAHD,South Glos Users in South Glos Homes,Permanent Nursing,Blossom Fields Nursing Home,750.40, 05-Apr-2022
626,Revenue,CAHD,South Glos Users in South Glos Homes,Permanent Nursing,Blossom Fields Nursing Home,750.40, 05-Apr-2022
627,Revenue,CAHD,South Glos Users in South Glos Homes,Permanent Nursing,Blossom Fields Nursing Home,750.40, 05-Apr-2022
628,Revenue,CAHD,South Glos Users in South Glos Homes,Permanent Nursing,Blossom Fields Nursing Home,750.40, 05-Apr-2022
629,Revenue,CAHD,South Glos Users in South Glos Homes,Permanent Nursing,Blossom Fields Nursing Home,750.40, 05-Apr-2022
630,Revenue,CAHD,South Glos Users in South Glos Homes,Permanent Nursing,Blossom Fields Nursing Home,3216.00, 05-Apr-2022
631,Revenue,CAHD,South Glos Users in South Glos Homes,Permanent Nursing,Blossom Fields Nursing Home,750.40, 05-Apr-2022
632,Revenue,CAHD,South Glos Users in South Glos Homes,Permanent Nursing,Blossom Fields Nursing Home,750.40, 05-Apr-2022
633,Revenue,CAHD,South Glos Users in South Glos Homes,Permanent Nursing,Blossom Fields Nursing Home,750.40, 05-Apr-2022
634,Revenue,CAHD,South Glos Users in South Glos Homes,Permanent Nursing,Blossom Fields Nursing Home,750.40, 05-Apr-2022
635,Revenue,CAHD,South Glos Users in South Glos Homes,Permanent Nursing,Blossom Fields Nursing Home,750.40, 05-Apr-2022
636,Revenue,CAHD,South Glos Users in South Glos Homes,Permanent Nursing,Blossom Fields Nursing Home,750.40, 05-Apr-2022
637,Revenue,CAHD,South Glos Users in South Glos Homes,Permanent Nursing,Blossom Fields Nursing Home,750.40, 05-Apr-2022
638,Revenue,CAHD,South Glos Users in South Glos Homes,Permanent Nursing,Blossom Fields Nursing Home,750.40, 05-Apr-2022
639,Revenue,CAHD,South Glos Users in South Glos Homes,Permanent Nursing,Blossom Fields Nursing Home,2412.00, 05-Apr-2022
640,Revenue,CAHD,South Glos Users in South Glos Homes,Permanent Nursing,Blossom Fields Nursing Home,750.40, 05-Apr-2022
641,Revenue,CAHD,South Glos Users in South Glos Homes,Permanent Nursing,Blossom Fields Nursing Home,750.40, 05-Apr-2022
642,Revenue,CAHD,South Glos Users in South Glos Homes,Permanent Nursing,Blossom Fields Nursing Home,750.40, 05-Apr-2022
643,Revenue,CAHD,South Glos Users in South Glos Homes,Permanent Nursing,Blossom Fields Nursing Home,750.40, 05-Apr-2022
644,Revenue,CAHD,South Glos Users in South Glos Homes,Permanent Nursing,Blossom Fields Nursing Home,750.40, 05-Apr-2022
645,Revenue,CAHD,South Glos Users in South Glos Homes,Permanent Nursing,Blossom Fields Nursing Home,3886.00, 05-Apr-2022
646,Revenue,CAHD,South Glos Users in South Glos Homes,Permanent Nursing,Blossom Fields Nursing Home,2572.80, 05-Apr-2022
647,Revenue,CAHD,South Glos Users in South Glos Homes,Permanent Nursing,Blossom Fields Nursing Home,750.40, 05-Apr-2022
648,Revenue,CAHD,South Glos Users in South Glos Homes,Permanent Nursing,Blossom Fields Nursing Home,750.40, 05-Apr-2022
649,Revenue,CAHD,South Glos Users in South Glos Homes,Permanent Nursing,Blossom Fields Nursing Home,750.40, 05-Apr-2022
650,Revenue,CAHD,South Glos Users in South Glos Homes,Permanent Nursing,Blossom Fields Nursing Home,750.40, 05-Apr-2022
651,Revenue,CAHD,South Glos Users in South Glos Homes,Permanent Nursing,Blossom Fields Nursing Home,750.40, 05-Apr-2022
652,Revenue,CAHD,South Glos Users in South Glos Homes,Permanent Nursing,Blossom Fields Nursing Home,750.40, 05-Apr-2022
653,Revenue,CAHD,South Glos Users in South Glos Homes,Permanent Nursing,Blossom Fields Nursing Home,750.40, 05-Apr-2022
654,Revenue,CAHD,South Glos Users in South Glos Homes,Permanent Nursing,Blossom Fields Nursing Home,750.40, 05-Apr-2022
655,Revenue,CAHD,South Glos Users in South Glos Homes,Permanent Nursing,Blossom Fields Nursing Home,-1313.20, 05-Apr-2022
656,Revenue,CAHD,South Glos Users in South Glos Homes,Permanent Nursing,Blossom Fields Nursing Home,750.40, 05-Apr-2022
657,Revenue,CAHD,South Glos Users in South Glos Homes,Permanent Nursing,Blossom Fields Nursing Home,750.40, 05-Apr-2022
658,Revenue,CAHD,South Glos Users in South Glos Homes,Permanent Nursing,Blossom Fields Nursing Home,750.40, 05-Apr-2022
659,Revenue,CAHD,South Glos Users in South Glos Homes,Permanent Nursing,Blossom Fields Nursing Home,750.40, 05-Apr-2022
660,Revenue,CAHD,South Glos Users in South Glos Homes,Permanent Nursing,Blossom Fields Nursing Home,750.40, 05-Apr-2022
661,Revenue,CAHD,South Glos Users in South Glos Homes,Permanent Nursing,Blossom Fields Nursing Home,750.40, 05-Apr-2022
662,Revenue,CAHD,South Glos Users in South Glos Homes,Permanent Nursing,Blossom Fields Nursing Home,750.40, 05-Apr-2022
663,Revenue,CAHD,South Glos Users in South Glos Homes,Permanent Nursing,Blossom Fields Nursing Home,750.40, 05-Apr-2022
664,Revenue,CAHD,South Glos Users in South Glos Homes,Permanent Nursing,Blossom Fields Nursing Home,750.40, 05-Apr-2022
665,Revenue,CAHD,South Glos Users in South Glos Homes,Permanent Nursing,Blossom Fields Nursing Home,2358.40, 05-Apr-2022
666,Revenue,CAHD,South Glos Users in South Glos Homes,Permanent Nursing,Blossom Fields Nursing Home,750.40, 05-Apr-2022
667,Revenue,CAHD,South Glos Users in South Glos Homes,Permanent Nursing,Blossom Fields Nursing Home,750.40, 05-Apr-2022
668,Revenue,CAHD,South Glos Users in South Glos Homes,Permanent Nursing,Blossom Fields Nursing Home,750.40, 05-Apr-2022
669,Revenue,CAHD,South Glos Users in South Glos Homes,Permanent Nursing,Blossom Fields Nursing Home,750.40, 05-Apr-2022
670,Revenue,CAHD,South Glos Users in South Glos Homes,Permanent Nursing,Blossom Fields Nursing Home,750.40, 05-Apr-2022
671,Revenue,CAHD,South Glos Users in South Glos Homes,Permanent Nursing,Blossom Fields Nursing Home,750.40, 05-Apr-2022
672,Revenue,CAHD,South Glos Users in South Glos Homes,Permanent Nursing,Blossom Fields Nursing Home,4288.00, 05-Apr-2022
673,Revenue,CAHD,South Glos Users in South Glos Homes,Permanent Nursing,Blossom Fields Nursing Home,750.40, 05-Apr-2022
674,Revenue,CAHD,South Glos Users in South Glos Homes,Permanent Nursing,Blossom Fields Nursing Home,750.40, 05-Apr-2022
675,Revenue,CAHD,South Glos Users in South Glos Homes,Permanent Nursing,Blossom Fields Nursing Home,750.40, 05-Apr-2022
676,Revenue,CAHD,South Glos Users in South Glos Homes,Permanent Nursing,Blossom Fields Nursing Home,750.40, 05-Apr-2022
677,Revenue,CAHD,South Glos Users in South Glos Homes,Permanent Nursing,Blossom Fields Nursing Home,750.40, 05-Apr-2022
678,Revenue,CAHD,Central - Commissioned Services,Permanent Residential,Blossom Fields Nursing Home,3800.00, 05-Apr-2022
679,Revenue,CAHD,Central - Commissioned Services,Permanent Residential,Blossom Fields Nursing Home,3600.00, 05-Apr-2022
680,Revenue,CAHD,Central - Commissioned Services,Permanent Nursing,Blossom Fields Nursing Home,11448.27, 05-Apr-2022
681,Revenue,CAHD,Central - Commissioned Services,Permanent Nursing,Blossom Fields Nursing Home,5123.80, 05-Apr-2022
682,Revenue,CAHD,Central - Commissioned Services,Permanent Nursing,Blossom Fields Nursing Home,4132.12, 05-Apr-2022
683,Revenue,CAHD,Central - Commissioned Services,Permanent Nursing,Blossom Fields Nursing Home,4132.12, 05-Apr-2022
684,Revenue,CAHD,Central - Commissioned Services,Permanent Nursing,Blossom Fields Nursing Home,4790.76, 05-Apr-2022
685,Revenue,CAHD,Central - Commissioned Services,Permanent Nursing,Blossom Fields Nursing Home,4818.72, 05-Apr-2022
686,Revenue,CAHD,Central - Commissioned Services,Permanent Nursing,Blossom Fields Nursing Home,4132.12, 05-Apr-2022
687,Revenue,CAHD,Central - Commissioned Services,Permanent Nursing,Blossom Fields Nursing Home,-8542.86, 05-Apr-2022
688,Revenue,CAHD,Central - Commissioned Services,Permanent Nursing,Blossom Fields Nursing Home,5115.00, 05-Apr-2022
689,Revenue,CAHD,Central - Commissioned Services,Permanent Nursing,Blossom Fields Nursing Home,4600.00, 05-Apr-2022
690,Revenue,CAHD,Central - Commissioned Services,Permanent Nursing,Blossom Fields Nursing Home,4132.12, 05-Apr-2022
691,Revenue,CAHD,Central - Commissioned Services,Fees & Charges Income - General,Blossom Fields Nursing Home,-613.55, 05-Apr-2022
692,Revenue,CAHD,Central - Commissioned Services,Fees & Charges Income - General,Blossom Fields Nursing Home,-1214.16, 05-Apr-2022
693,Revenue,CAHD,Central - Commissioned Services,Fees & Charges Income - General,Blossom Fields Nursing Home,-2529.00, 05-Apr-2022
694,Revenue,CAHD,Central - Commissioned Services,Fees & Charges Income - General,Blossom Fields Nursing Home,-476.92, 05-Apr-2022
695,Revenue,CAHD,Central - Commissioned Services,Fees & Charges Income - General,Blossom Fields Nursing Home,-1182.36, 05-Apr-2022
696,Revenue,CAHD,Central - Commissioned Services,Fees & Charges Income - General,Blossom Fields Nursing Home,-1159.33, 05-Apr-2022
697,Revenue,CAHD,Central - Commissioned Services,Fees & Charges Income - General,Blossom Fields Nursing Home,3097.19, 05-Apr-2022
698,Revenue,CAHD,Central - Commissioned Services,Fees & Charges Income - General,Blossom Fields Nursing Home,3374.03, 05-Apr-2022
699,Revenue,CAHD,Central - Commissioned Services,Fees & Charges Income - General,Blossom Fields Nursing Home,-849.40, 05-Apr-2022
700,Revenue,CAHD,South - Commissioned Services,Permanent Nursing,Blossom Fields Nursing Home,4790.76, 05-Apr-2022
701,Revenue,CAHD,South - Commissioned Services,Permanent Nursing,Blossom Fields Nursing Home,3943.04, 05-Apr-2022
702,Revenue,CAHD,South - Commissioned Services,Permanent Nursing,Blossom Fields Nursing Home,4133.20, 05-Apr-2022
703,Revenue,CAHD,South - Commissioned Services,Permanent Nursing,Blossom Fields Nursing Home,5000.00, 05-Apr-2022
704,Revenue,CAHD,South - Commissioned Services,Permanent Nursing,Blossom Fields Nursing Home,3600.00, 05-Apr-2022
705,Revenue,CAHD,South - Commissioned Services,Fees & Charges Income - General,Blossom Fields Nursing Home,-1002.20, 05-Apr-2022
706,Revenue,CAHD,South - Commissioned Services,Fees & Charges Income - General,Blossom Fields Nursing Home,-1121.04, 05-Apr-2022
707,Revenue,CAHD,South - Commissioned Services,Fees & Charges Income - General,Blossom Fields Nursing Home,-909.91, 05-Apr-2022
708,Revenue,CAHD,North - Community based support,Permanent Residential,Blossom Fields Nursing Home,3300.00, 05-Apr-2022
709,Revenue,CAHD,North - Community based support,Permanent Nursing,Blossom Fields Nursing Home,492.86, 05-Apr-2022
710,Revenue,CAHD,North - Community based support,Permanent Nursing,Blossom Fields Nursing Home,4133.20, 05-Apr-2022
711,Revenue,CAHD,North - Community based support,Respite Planned - Nursing,Blossom Fields Nursing Home,16680.41, 05-Apr-2022
712,Revenue,CAHD,North - Community based support,Fees & Charges Income - General,Blossom Fields Nursing Home,-1363.10, 05-Apr-2022
713,Revenue,CAHD,North - Community based support,Fees & Charges Income - General,Blossom Fields Nursing Home,-613.55, 05-Apr-2022
714,Revenue,CAHD,North - S117,Permanent Residential,Blossom Fields Nursing Home,4910.40, 05-Apr-2022
715,Revenue,CAHD,North - S117,Permanent Residential,Blossom Fields Nursing Home,5115.00, 05-Apr-2022
716,Revenue,CAHD,North - S117,Permanent Nursing,Blossom Fields Nursing Home,4132.12, 05-Apr-2022
717,Revenue,CAHD,Statemented Support Payments to OLAs,Other L.A.s - General,Blue Coat CE VA Primary School,837.09, 25-Apr-2022
718,Revenue,CAHD,Statemented Support Payments to OLAs,Other L.A.s - General,Blue Coat CE VA Primary School,1292.50, 25-Apr-2022
719,Revenue,CAHD,North - Community based support,Permanent Residential,Bluebells,3699.60, 05-Apr-2022
720,Revenue,CAHD,North - Community based support,Fees & Charges Income - General,Bluebells,-835.00, 05-Apr-2022
721,Revenue,CAHD,Central - Commissioned Services,Other Small Contracts,Bluebird Care (South Gloucestershire),22119.05, 20-Apr-2022
722,Revenue,CAHD,North - Community based support,Other Small Contracts,Bluebird Care (South Gloucestershire),4656.41, 19-Apr-2022
723,Revenue,CAHD,South - Commissioned Services,Other Small Contracts,Bluebird Care (South Gloucestershire),3832.17, 19-Apr-2022
724,Revenue,CAHD,Central - Commissioned Services,Other Small Contracts,Bluebird Care (South Gloucestershire),12920.21, 19-Apr-2022
725,Revenue,CAHD,North - Community based support,Other Small Contracts,Bluebird Care (South Gloucestershire),4656.41, 26-Apr-2022
726,Revenue,CAHD,South - Commissioned Services,Other Small Contracts,Bluebird Care (South Gloucestershire),3832.17, 26-Apr-2022
727,Revenue,CAHD,Central - Commissioned Services,Other Small Contracts,Bluebird Care (South Gloucestershire),12920.21, 26-Apr-2022
728,Revenue,CAHD,North - Community based support,Other Small Contracts,Bluebird Care (South Gloucestershire),4656.41, 14-Apr-2022
729,Revenue,CAHD,South - Commissioned Services,Other Small Contracts,Bluebird Care (South Gloucestershire),3832.17, 14-Apr-2022
730,Revenue,CAHD,Central - Commissioned Services,Other Small Contracts,Bluebird Care (South Gloucestershire),12920.21, 14-Apr-2022
731,Revenue,CAHD,CSC - Asylum Seekers - Unaccompanied,Independent Living,Blueline Healthcare Solutions Ltd T/A Blueline Car,4207.14, 13-Apr-2022
732,Revenue,CAHD,CSC - Asylum Seekers - Unaccompanied,Independent Living,Blueline Healthcare Solutions Ltd T/A Blueline Car,4207.14, 13-Apr-2022
733,Revenue,CAHD,CSC - Asylum Seekers - Unaccompanied,Independent Living,Blueline Healthcare Solutions Ltd T/A Blueline Car,4207.14, 13-Apr-2022
734,Revenue,CAHD,Schools Specific Grant Income,Educational Materials,Booktrust,4650.48, 22-Apr-2022
735,Revenue,CAHD,Social Lettings Agency,Prop.Serv. General Repairs,BPM Contracting Services Limited,715.00, 13-Apr-2022
736,Revenue,CAHD,S28A cases,Permanent Residential,Bradbury House,6505.16, 05-Apr-2022
737,Revenue,CAHD,S28A cases,Fees & Charges Income - General,Bradbury House,-428.90, 05-Apr-2022
738,Revenue,CAHD,North - S117,Permanent Residential,Bradbury House,7106.96, 05-Apr-2022
739,Revenue,CAHD,Jointly Funded H&SC Packages,Permanent Residential,Bradbury House,7106.96, 05-Apr-2022
740,Revenue,CAHD,"Drugs, Alcohol and Sexual Health",Other Small Contracts,Bradley Stoke Surgery,1837.60, 06-Apr-2022
741,Revenue,CAHD,Contain Outbreak Mgmt Fund,Project Funding,Bradley Stoke Town Council,500.00, 28-Apr-2022
742,Revenue,CAHD,CSC - Residential Placements,Permanent Residential,Branas ISAF Ltd,21214.20, 25-Apr-2022
743,Revenue,CAHD,Social Lettings Agency,Rent,Individual,822.73, 25-Apr-2022
744,Revenue,CAHD,Social Lettings Agency,Fees & Charges Income - General,Individual,-102.80, 25-Apr-2022
745,Revenue,CAHD,Social Lettings Agency,Rent,Individual,915.00, 01-Apr-2022
746,Revenue,CAHD,Social Lettings Agency,Fees & Charges Income - General,Individual,-73.20, 01-Apr-2022
747,Revenue,CAHD,Placements OLA Special Schools and RB,Other L.A.s - General,Briarwood School,2685.20, 26-Apr-2022
748,Revenue,CAHD,Placements OLA Special Schools and RB,Other L.A.s - General,Briarwood School,766.83, 26-Apr-2022
749,Revenue,CAHD,North - Community based support,Permanent Residential,Bridge House Care Home,3100.00, 05-Apr-2022
750,Revenue,CAHD,North - Community based support,Permanent Residential,Bridge House Care Home,2913.52, 05-Apr-2022
751,Revenue,CAHD,North - Community based support,Fees & Charges Income - General,Bridge House Care Home,-613.55, 05-Apr-2022
752,Revenue,CAHD,North - Community based support,Fees & Charges Income - General,Bridge House Care Home,-1642.26, 05-Apr-2022
753,Revenue,CAHD,North - Community based support,Permanent Residential,Bridgwater Court Care Home,10773.64, 05-Apr-2022
754,Revenue,CAHD,CSC - Vinney Green Secure Unit,Operational Equipment,Bristol Carpet Manufacturing Co Ltd,799.92, 29-Apr-2022
755,Revenue,CAHD,Statemented Support Payments to OLAs,Other L.A.s - General,Bristol Cathedral Choir School,942.58, 25-Apr-2022
756,Revenue,CAHD,Statemented Support Payments to OLAs,Other L.A.s - General,Bristol Cathedral Choir School,880.08, 25-Apr-2022
757,Revenue,CAHD,Statemented Support Payments to OLAs,Other L.A.s - General,Bristol Cathedral Choir School,978.57, 25-Apr-2022
758,Revenue,CAHD,CSC - Agency Fostering,Foster Parent Allowances,Bristol City Council,2800.00, 14-Apr-2022
759,Revenue,CAHD,Sensory Support Services,Other L.A.s - General,Bristol City Council,4201.00, 22-Apr-2022
760,Revenue,CAHD,CSC - Agency Fostering,Foster Parent Allowances,Bristol City Council,3100.00, 25-Apr-2022
761,Revenue,CAHD,Mental Health and Community Engagement,Other Supplies & Services,Bristol City Council,5929.59, 19-Apr-2022
762,Revenue,CAHD,Statemented Support Payments to OLAs,Other L.A.s - General,Bristol City Council Schools General,897.42, 25-Apr-2022
763,Revenue,CAHD,Statemented Support Payments to OLAs,Other L.A.s - General,Bristol City Council Schools General,635.33, 25-Apr-2022
764,Revenue,CAHD,Schools Specific Grant Income,Other Public Bodies,Bristol City Council Schools General,500.00, 01-Apr-2022
765,Revenue,CAHD,Schools Specific Grant Income,Other Public Bodies,Bristol City Council Schools General,2000.00, 28-Apr-2022
766,Revenue,CAHD,Placements OLA Special Schools and RB,Other L.A.s - General,Bristol Hospital Education,858.90, 26-Apr-2022
767,Revenue,CAHD,Other Alternative Provision Services,Other Private Contractors,Bristol Tuition Limited,630.00, 13-Apr-2022
768,Revenue,CAHD,Other Alternative Provision Services,Other Private Contractors,Bristol Tuition Limited,800.00, 14-Apr-2022
769,Revenue,CAHD,Intermediate Care Accommodation,Water Charges,Bristol Wessex Billing Services Limited,556.53, 01-Apr-2022
770,Revenue,CAHD,Drug and Alcohol Programme,Water Charges,Bristol Wessex Billing Services Limited,823.77, 01-Apr-2022
771,Revenue,CAHD,Statemented Support Payments to OLAs,Other L.A.s - General,Broadlands Academy,835.17, 25-Apr-2022
772,Revenue,CAHD,North - Community based support,Permanent Residential,Brockhills Farm,3200.00, 05-Apr-2022
773,Revenue,CAHD,North - Community based support,Fees & Charges Income - General,Brockhills Farm,-644.05, 05-Apr-2022
774,Revenue,CAHD,Supporting People Programme,Grants to Voluntary Bodies,Bromford  :  Merlin Housing Society,2824.17, 06-Apr-2022
775,Revenue,CAHD,Supporting People Programme,Grants to Voluntary Bodies,Bromford  :  Merlin Housing Society,23628.83, 06-Apr-2022
776,Revenue,CAHD,Supporting People Programme,Grants to Voluntary Bodies,Bromford  :  Merlin Housing Society,1146.92, 06-Apr-2022
777,Revenue,CAHD,Supporting People Programme,Grants to Voluntary Bodies,Bromford  :  Merlin Housing Society,2824.17, 29-Apr-2022
778,Revenue,CAHD,Supporting People Programme,Grants to Voluntary Bodies,Bromford  :  Merlin Housing Society,23628.83, 29-Apr-2022
779,Revenue,CAHD,Supporting People Programme,Grants to Voluntary Bodies,Bromford  :  Merlin Housing Society,1146.92, 29-Apr-2022
780,Revenue,CAHD,Parent Partnership & Disagreement Resolutions,Fees - General,Browne Jacobson,450.00, 22-Apr-2022
781,Revenue,CAHD,Community Support - South,Preventative Assistance,Brunel Abba Cars Limited,676.00, 29-Apr-2022
782,Revenue,CAHD,South Glos Users in South Glos Homes,Permanent Nursing,Brunelcare,750.40, 01-Apr-2022
783,Revenue,CAHD,South Glos Users in South Glos Homes,Permanent Nursing,Brunelcare,750.40, 01-Apr-2022
784,Revenue,CAHD,South Glos Users in South Glos Homes,Permanent Nursing,Brunelcare,750.40, 01-Apr-2022
785,Revenue,CAHD,South Glos Users in South Glos Homes,Permanent Nursing,Brunelcare,750.40, 01-Apr-2022
786,Revenue,CAHD,South Glos Users in South Glos Homes,Permanent Nursing,Brunelcare,750.40, 01-Apr-2022
787,Revenue,CAHD,South Glos Users in South Glos Homes,Permanent Nursing,Brunelcare,750.40, 01-Apr-2022
788,Revenue,CAHD,South Glos Users in South Glos Homes,Permanent Nursing,Brunelcare,750.40, 01-Apr-2022
789,Revenue,CAHD,North - S117,Permanent Nursing,Brunelcare,3458.04, 01-Apr-2022
790,Revenue,CAHD,North - S117,Permanent Nursing,Brunelcare,3458.04, 01-Apr-2022
791,Revenue,CAHD,South - Commissioned Services,Permanent Nursing,Brunelcare,4208.44, 01-Apr-2022
792,Revenue,CAHD,South - Commissioned Services,Permanent Nursing,Brunelcare,2477.60, 01-Apr-2022
793,Revenue,CAHD,South - Commissioned Services,Permanent Nursing,Brunelcare,3055.68, 01-Apr-2022
794,Revenue,CAHD,South - Commissioned Services,Permanent Nursing,Brunelcare,2796.88, 01-Apr-2022
795,Revenue,CAHD,South - Commissioned Services,Permanent Nursing,Brunelcare,2849.24, 01-Apr-2022
796,Revenue,CAHD,South - Commissioned Services,Permanent Nursing,Brunelcare,2864.44, 01-Apr-2022
797,Revenue,CAHD,South - Commissioned Services,Permanent Nursing,Brunelcare,3907.84, 01-Apr-2022
798,Revenue,CAHD,Central - Commissioned Services,Permanent Nursing,Brunelcare,2597.92, 01-Apr-2022
799,Revenue,CAHD,South - Commissioned Services,Respite Planned - Nursing,Brunelcare,4208.44, 01-Apr-2022
800,Revenue,CAHD,North - Community based support,Permanent Nursing,Brunelcare,3458.04, 01-Apr-2022
801,Revenue,CAHD,South - Commissioned Services,Permanent Nursing,Brunelcare,7574.49, 01-Apr-2022
802,Revenue,CAHD,South - Commissioned Services,Permanent Nursing,Brunelcare,1452.44, 01-Apr-2022
803,Revenue,CAHD,South - Commissioned Services,Other Small Contracts,Brunelcare,13503.64, 19-Apr-2022
804,Revenue,CAHD,South - Commissioned Services,Other Small Contracts,Brunelcare,13503.64, 26-Apr-2022
805,Revenue,CAHD,South - Commissioned Services,Other Small Contracts,Brunelcare,13503.64, 14-Apr-2022
806,Revenue,CAHD,North - S117,Permanent Residential,Buckland Care,3600.00, 05-Apr-2022
807,Revenue,CAHD,Early Years - Strategy Planning,Schools Funding,Butterflies Childminders,1086.30, 12-Apr-2022
808,Revenue,CAHD,CSC - Vinney Green Secure Unit,Service Contracts (Premises),BWS Standfast Fire & Security Systems,62277.00, 08-Apr-2022
809,Revenue,CAHD,CSC - Vinney Green Secure Unit,R & M by Departments,BWS Standfast Fire & Security Systems,1399.00, 19-Apr-2022
810,Revenue,CAHD,CSC - Asylum Seekers - Unaccompanied,Foster Parent Allowances,By the Bridge Ltd,4647.53, 14-Apr-2022
811,Revenue,CAHD,CSC - Asylum Seekers - Unaccompanied,Foster Parent Allowances,By the Bridge Ltd,4647.53, 14-Apr-2022
812,Revenue,CAHD,CSC - Agency Fostering,Foster Parent Allowances,By the Bridge Ltd,3321.34, 08-Apr-2022
813,Revenue,CAHD,CSC - Agency Fostering,Foster Parent Allowances,By the Bridge Ltd,957.95, 14-Apr-2022
814,Revenue,CAHD,Social Lettings Agency,Rent,Individual,947.40, 13-Apr-2022
815,Revenue,CAHD,Social Lettings Agency,Fees & Charges Income - General,Individual,-94.74, 13-Apr-2022
816,Revenue,CAHD,Statemented Support Academies,Other Public Bodies,Cabot Learning Federation,19560.00, 08-Apr-2022
817,Revenue,CAHD,Statemented Support Academies,Other Public Bodies,Cabot Learning Federation,1019.33, 25-Apr-2022
818,Revenue,CAHD,Statemented Support Academies,Other Public Bodies,Cabot Learning Federation,1179.67, 25-Apr-2022
819,Revenue,CAHD,Statemented Support Academies,Other Public Bodies,Cabot Learning Federation,646.67, 25-Apr-2022
820,Revenue,CAHD,Statemented Support Academies,Other Public Bodies,Cabot Learning Federation,836.67, 25-Apr-2022
821,Revenue,CAHD,Statemented Support Academies,Other Public Bodies,Cabot Learning Federation,2227.06, 25-Apr-2022
822,Revenue,CAHD,Statemented Support Academies,Other Public Bodies,Cabot Learning Federation,1103.25, 25-Apr-2022
823,Revenue,CAHD,Statemented Support Academies,Other Public Bodies,Cabot Learning Federation,1899.58, 25-Apr-2022
824,Revenue,CAHD,Statemented Support Academies,Other Public Bodies,Cabot Learning Federation,1654.33, 25-Apr-2022
825,Revenue,CAHD,Statemented Support Academies,Other Public Bodies,Cabot Learning Federation,1671.08, 25-Apr-2022
826,Revenue,CAHD,Statemented Support Academies,Other Public Bodies,Cabot Learning Federation,973.50, 25-Apr-2022
827,Revenue,CAHD,Statemented Support Academies,Other Public Bodies,Cabot Learning Federation,632.67, 25-Apr-2022
828,Revenue,CAHD,Statemented Support Academies,Other Public Bodies,Cabot Learning Federation,695.61, 25-Apr-2022
829,Revenue,CAHD,Statemented Support Academies,Other Public Bodies,Cabot Learning Federation,918.75, 25-Apr-2022
830,Revenue,CAHD,Statemented Support Academies,Other Public Bodies,Cabot Learning Federation,975.58, 25-Apr-2022
831,Revenue,CAHD,Statemented Support Academies,Other Public Bodies,Cabot Learning Federation,705.00, 25-Apr-2022
832,Revenue,CAHD,Statemented Support Academies,Other Public Bodies,Cabot Learning Federation,1084.17, 25-Apr-2022
833,Revenue,CAHD,Academy Resource Base Funding,Other Public Bodies,Cabot Learning Federation,4109.60, 25-Apr-2022
834,Revenue,CAHD,Academy Resource Base Funding,Other Public Bodies,Cabot Learning Federation,1491.13, 25-Apr-2022
835,Revenue,CAHD,Academy Resource Base Funding,Other Public Bodies,Cabot Learning Federation,2432.79, 25-Apr-2022
836,Revenue,CAHD,Academy Resource Base Funding,Other Public Bodies,Cabot Learning Federation,1137.94, 25-Apr-2022
837,Revenue,CAHD,Academy Resource Base Funding,Other Public Bodies,Cabot Learning Federation,1137.94, 25-Apr-2022
838,Revenue,CAHD,Academy Resource Base Funding,Other Public Bodies,Cabot Learning Federation,1491.13, 25-Apr-2022
839,Revenue,CAHD,Academy Resource Base Funding,Other Public Bodies,Cabot Learning Federation,1137.94, 25-Apr-2022
840,Revenue,CAHD,Academy Resource Base Funding,Other Public Bodies,Cabot Learning Federation,627.77, 25-Apr-2022
841,Revenue,CAHD,Academy Resource Base Funding,Other Public Bodies,Cabot Learning Federation,1491.13, 25-Apr-2022
842,Revenue,CAHD,Academy Resource Base Funding,Other Public Bodies,Cabot Learning Federation,1137.94, 25-Apr-2022
843,Revenue,CAHD,Academy Resource Base Funding,Other Public Bodies,Cabot Learning Federation,1137.94, 25-Apr-2022
844,Revenue,CAHD,Academy Resource Base Funding,Other Public Bodies,Cabot Learning Federation,1648.03, 25-Apr-2022
845,Revenue,CAHD,Academy Resource Base Funding,Other Public Bodies,Cabot Learning Federation,1137.94, 25-Apr-2022
846,Revenue,CAHD,Academy Resource Base Funding,Other Public Bodies,Cabot Learning Federation,1648.03, 25-Apr-2022
847,Revenue,CAHD,Academy Resource Base Funding,Other Public Bodies,Cabot Learning Federation,1137.94, 25-Apr-2022
848,Revenue,CAHD,Academy Resource Base Funding,Other Public Bodies,Cabot Learning Federation,627.77, 25-Apr-2022
849,Revenue,CAHD,Academy Resource Base Funding,Other Public Bodies,Cabot Learning Federation,1491.13, 25-Apr-2022
850,Revenue,CAHD,Academy Resource Base Funding,Other Public Bodies,Cabot Learning Federation,1648.03, 25-Apr-2022
851,Revenue,CAHD,Academy Resource Base Funding,Other Public Bodies,Cabot Learning Federation,981.04, 25-Apr-2022
852,Revenue,CAHD,Academy Resource Base Funding,Other Public Bodies,Cabot Learning Federation,1648.03, 25-Apr-2022
853,Revenue,CAHD,Academy Resource Base Funding,Other Public Bodies,Cabot Learning Federation,1648.03, 25-Apr-2022
854,Revenue,CAHD,Academy Resource Base Funding,Other Public Bodies,Cabot Learning Federation,1648.03, 25-Apr-2022
855,Revenue,CAHD,Academy Resource Base Funding,Other Public Bodies,Cabot Learning Federation,2118.90, 25-Apr-2022
856,Revenue,CAHD,Academy Resource Base Funding,Other Public Bodies,Cabot Learning Federation,1137.94, 25-Apr-2022
857,Revenue,CAHD,Statemented Support Academies,Other Public Bodies,Cabot Learning Federation,1626.67, 25-Apr-2022
858,Revenue,CAHD,Statemented Support Academies,Other Public Bodies,Cabot Learning Federation,710.58, 25-Apr-2022
859,Revenue,CAHD,Statemented Support Academies,Other Public Bodies,Cabot Learning Federation,804.08, 25-Apr-2022
860,Revenue,CAHD,Statemented Support Academies,Other Public Bodies,Cabot Learning Federation,855.08, 25-Apr-2022
861,Revenue,CAHD,Statemented Support Academies,Other Public Bodies,Cabot Learning Federation,554.13, 25-Apr-2022
862,Revenue,CAHD,Statemented Support Academies,Other Public Bodies,Cabot Learning Federation,742.77, 25-Apr-2022
863,Revenue,CAHD,Statemented Support Academies,Other Public Bodies,Cabot Learning Federation,778.14, 25-Apr-2022
864,Revenue,CAHD,Statemented Support Academies,Other Public Bodies,Cabot Learning Federation,1202.67, 25-Apr-2022
865,Revenue,CAHD,Statemented Support Academies,Other Public Bodies,Cabot Learning Federation,813.51, 25-Apr-2022
866,Revenue,CAHD,Schools Specific Grant Income,Other Public Bodies,Cabot Learning Federation,2000.00, 01-Apr-2022
867,Revenue,CAHD,Schools Specific Grant Income,Other Public Bodies,Cabot Learning Federation,4000.00, 01-Apr-2022
868,Revenue,CAHD,Statemented Support Payments to OLAs,Other L.A.s - General,Cabot Learning Federation,601.29, 25-Apr-2022
869,Revenue,CAHD,Statemented Support Academies,Other Public Bodies,Cabot Learning Federation,661.33, 25-Apr-2022
870,Revenue,CAHD,Statemented Support Academies,Other Public Bodies,Cabot Learning Federation,1131.84, 25-Apr-2022
871,Revenue,CAHD,Statemented Support Academies,Other Public Bodies,Cabot Learning Federation,1202.67, 25-Apr-2022
872,Revenue,CAHD,Statemented Support Academies,Other Public Bodies,Cabot Learning Federation,554.13, 25-Apr-2022
873,Revenue,CAHD,Statemented Support Academies,Other Public Bodies,Cabot Learning Federation,1028.08, 25-Apr-2022
874,Revenue,CAHD,Statemented Support Academies,Other Public Bodies,Cabot Learning Federation,1096.47, 25-Apr-2022
875,Revenue,CAHD,Statemented Support Academies,Other Public Bodies,Cabot Learning Federation,1429.42, 25-Apr-2022
876,Revenue,CAHD,Statemented Support Academies,Other Public Bodies,Cabot Learning Federation,730.98, 25-Apr-2022
877,Revenue,CAHD,Statemented Support Academies,Other Public Bodies,Cabot Learning Federation,680.42, 25-Apr-2022
878,Revenue,CAHD,Statemented Support Academies,Other Public Bodies,Cabot Learning Federation,1150.25, 25-Apr-2022
879,Revenue,CAHD,Statemented Support Academies,Other Public Bodies,Cabot Learning Federation,685.33, 25-Apr-2022
880,Revenue,CAHD,Statemented Support Academies,Other Public Bodies,Cabot Learning Federation,530.55, 25-Apr-2022
881,Revenue,CAHD,Statemented Support Payments to OLAs,Other L.A.s - General,Cabot Learning Federation,1062.33, 25-Apr-2022
882,Revenue,CAHD,Statemented Support Payments to OLAs,Other L.A.s - General,Cabot Learning Federation,809.75, 25-Apr-2022
883,Revenue,CAHD,South Glos Alternative Provision,Fees & Charges Income - General,Cabot Learning Federation,4242.14, 06-Apr-2022
884,Revenue,CAHD,Statemented Support Payments to OLAs,Other L.A.s - General,Cabot Learning Federation,888.33, 25-Apr-2022
885,Revenue,CAHD,Statemented Support Academies,Other Public Bodies,Cabot Learning Federation,577.50, 25-Apr-2022
886,Revenue,CAHD,Statemented Support Academies,Other Public Bodies,Cabot Learning Federation,1297.08, 25-Apr-2022
887,Revenue,CAHD,Statemented Support Academies,Other Public Bodies,Cabot Learning Federation,966.83, 25-Apr-2022
888,Revenue,CAHD,Statemented Support Academies,Other Public Bodies,Cabot Learning Federation,526.00, 25-Apr-2022
889,Revenue,CAHD,Statemented Support Academies,Other Public Bodies,Cabot Learning Federation,671.71, 25-Apr-2022
890,Revenue,CAHD,Schools Specific Grant Income - from OLA,Other Public Bodies,Cabot Learning Federation,1125.00, 04-Apr-2022
891,Revenue,CAHD,Schools Specific Grant Income,Other Public Bodies,Cabot Learning Federation,500.00, 01-Apr-2022
892,Revenue,CAHD,Statemented Support Payments to OLAs,Other L.A.s - General,Cabot Learning Federation,665.33, 25-Apr-2022
893,Revenue,CAHD,"Drugs, Alcohol and Sexual Health",Other Small Contracts,Cadbury Heath Healthcare,2312.50, 06-Apr-2022
894,Revenue,CAHD,South - Commissioned Services,Permanent Nursing,Caernarvon House,4915.20, 05-Apr-2022
895,Revenue,CAHD,South - Commissioned Services,Permanent Nursing,Caernarvon House,2039.36, 05-Apr-2022
896,Revenue,CAHD,South - Commissioned Services,Permanent Nursing,Caernarvon House,2960.00, 05-Apr-2022
897,Revenue,CAHD,South - Commissioned Services,Fees & Charges Income - General,Caernarvon House,-1213.48, 05-Apr-2022
898,Revenue,CAHD,South - Commissioned Services,Fees & Charges Income - General,Caernarvon House,-756.08, 05-Apr-2022
899,Revenue,CAHD,North - Community based support,Permanent Nursing,Caernarvon House,4710.40, 05-Apr-2022
900,Revenue,CAHD,North - Community based support,Permanent Nursing,Caernarvon House,3339.08, 05-Apr-2022
901,Revenue,CAHD,North - Community based support,Fees & Charges Income - General,Caernarvon House,-613.55, 05-Apr-2022
902,Revenue,CAHD,North - Community based support,Fees & Charges Income - General,Caernarvon House,-1016.52, 05-Apr-2022
903,Revenue,CAHD,South - S117,Permanent Nursing,Caernarvon House,4915.20, 05-Apr-2022
904,Revenue,CAHD,North - S117,Permanent Nursing,Caernarvon House,3990.24, 05-Apr-2022
905,Revenue,CAHD,Post 16 High Needs Placements,Other Private Contractors,Cambian Asperger Syndrome Services Limited,68703.00, 07-Apr-2022
906,Revenue,CAHD,Post 16 High Needs Placements,Other Private Contractors,Cambian Whinfell School Limited,72041.83, 20-Apr-2022
907,Revenue,CAHD,Post 16 High Needs Placements,Other Private Contractors,Cambian Whinfell School Limited,60372.64, 20-Apr-2022
908,Revenue,CAHD,Post 16 High Needs Placements,Other Private Contractors,Cambian Whinfell School Limited,69591.56, 29-Apr-2022
909,Revenue,CAHD,"Strategy, Advice and Public Protection",Project Funding,Can`t Sit Still Ltd,500.00, 12-Apr-2022
910,Revenue,CAHD,MH Purchasing - Younger,Permanent Residential,Canonbury Residential Home,3400.00, 05-Apr-2022
911,Revenue,CAHD,MH Purchasing - Younger,Fees & Charges Income - General,Canonbury Residential Home,-613.55, 05-Apr-2022
912,Revenue,CAHD,CSC - Agency Fostering,Foster Parent Allowances,Capstone Foster Care (South West) Limited,3572.10, 29-Apr-2022
913,Revenue,CAHD,CSC - Agency Fostering,Foster Parent Allowances,Capstone Foster Care (South West) Limited,3572.10, 29-Apr-2022
914,Revenue,CAHD,CSC - Agency Fostering,Foster Parent Allowances,Capstone Foster Care (South West) Limited,3552.90, 29-Apr-2022
915,Revenue,CAHD,Covid - ASC - Infection Control,Grants to Voluntary Bodies,Cardale Care Limited,506.27, 08-Apr-2022
916,Revenue,CAHD,Covid  - Workforce capacity,Grants to Voluntary Bodies,Cardale Care Limited,2045.06, 06-Apr-2022
917,Revenue,CAHD,Covid  - Workforce capacity,Grants to Voluntary Bodies,Cardale Care Limited,1585.97, 07-Apr-2022
918,Revenue,CAHD,Covid  - Workforce capacity,Grants to Voluntary Bodies,Cardale Care Limited,876.46, 08-Apr-2022
919,Revenue,CAHD,North - Community based support,Other Small Contracts,Care 1st Homecare,597.02, 19-Apr-2022
920,Revenue,CAHD,Central - Commissioned Services,Other Small Contracts,Care 1st Homecare,3523.25, 19-Apr-2022
921,Revenue,CAHD,North - Community based support,Other Small Contracts,Care 1st Homecare,597.02, 26-Apr-2022
922,Revenue,CAHD,Central - Commissioned Services,Other Small Contracts,Care 1st Homecare,3523.25, 26-Apr-2022
923,Revenue,CAHD,North - Community based support,Other Small Contracts,Care 1st Homecare,597.02, 14-Apr-2022
924,Revenue,CAHD,Central - Commissioned Services,Other Small Contracts,Care 1st Homecare,3523.25, 14-Apr-2022
925,Revenue,CAHD,Research & Conferences,Membership Fees,Care and Support West,3000.00, 21-Apr-2022
926,Revenue,CAHD,Winter Incentive Payments,Other Supplies & Services,Care Friends,12792.00, 14-Apr-2022
927,Revenue,CAHD,Covid  - Workforce capacity,Grants to Voluntary Bodies,Care Futures,1168.61, 07-Apr-2022
928,Revenue,CAHD,South - Commissioned Services,Mentoring,Care Horizons,322.56, 05-Apr-2022
929,Revenue,CAHD,North - Community based support,Respite Care,Care Horizons,0.00, 05-Apr-2022
930,Revenue,CAHD,North - Community based support,Respite Care,Care Horizons,0.00, 05-Apr-2022
931,Revenue,CAHD,North - Community based support,Supported Living,Care Horizons,5560.28, 05-Apr-2022
932,Revenue,CAHD,North - Community based support,Supported Living,Care Horizons,5560.28, 05-Apr-2022
933,Revenue,CAHD,North - Community based support,Other Small Contracts,Care Horizons Limited,3479.19, 19-Apr-2022
934,Revenue,CAHD,Central - Commissioned Services,Other Small Contracts,Care Horizons Limited,4777.24, 19-Apr-2022
935,Revenue,CAHD,North - Community based support,Other Small Contracts,Care Horizons Limited,3479.19, 26-Apr-2022
936,Revenue,CAHD,Central - Commissioned Services,Other Small Contracts,Care Horizons Limited,4777.24, 26-Apr-2022
937,Revenue,CAHD,North - Community based support,Other Small Contracts,Care Horizons Limited,3479.19, 14-Apr-2022
938,Revenue,CAHD,Central - Commissioned Services,Other Small Contracts,Care Horizons Limited,4777.24, 14-Apr-2022
939,Revenue,CAHD,Covid - ASC - Infection Control,Grants to Voluntary Bodies,Care Horizons Limited,1872.50, 01-Apr-2022
940,Revenue,CAHD,South - Commissioned Services,Other Small Contracts,Care Unite Ltd t/a Home Instead Senior Care,825.44, 21-Apr-2022
941,Revenue,CAHD,South - Commissioned Services,Other Small Contracts,Care Unite Ltd t/a Home Instead Senior Care,619.08, 21-Apr-2022
942,Revenue,CAHD,South - Commissioned Services,Other Small Contracts,Care Unite Ltd t/a Home Instead Senior Care,958.10, 21-Apr-2022
943,Revenue,CAHD,South - Commissioned Services,Other Small Contracts,Care Unite Ltd t/a Home Instead Senior Care,235.84, 21-Apr-2022
944,Revenue,CAHD,CSC - Care Leavers Independent Living,Adults - Family Support,Caring for Communities and People,811.87, 07-Apr-2022
945,Revenue,CAHD,CSC - Care Leavers Independent Living,Independent Living,Caring for Communities and People,4017.71, 14-Apr-2022
946,Revenue,CAHD,CSC - Care Leavers Support Costs,Adults - Family Support,Caring for Communities and People,3300.00, 25-Apr-2022
947,Revenue,CAHD,Supporting People Programme,Grants to Voluntary Bodies,Caring for Communities and People,12256.75, 04-Apr-2022
948,Revenue,CAHD,Statemented Support Academies,Other Public Bodies,Castle School Education Trust,530.55, 25-Apr-2022
949,Revenue,CAHD,Statemented Support Academies,Other Public Bodies,Castle School Education Trust,778.14, 25-Apr-2022
950,Revenue,CAHD,Statemented Support Academies,Other Public Bodies,Castle School Education Trust,821.50, 25-Apr-2022
951,Revenue,CAHD,Statemented Support Academies,Other Public Bodies,Castle School Education Trust,947.08, 25-Apr-2022
952,Revenue,CAHD,Statemented Support Academies,Other Public Bodies,Castle School Education Trust,577.71, 25-Apr-2022
953,Revenue,CAHD,Statemented Support Academies,Other Public Bodies,Castle School Education Trust,505.08, 25-Apr-2022
954,Revenue,CAHD,Statemented Support Academies,Other Public Bodies,Castle School Education Trust,672.03, 25-Apr-2022
955,Revenue,CAHD,Statemented Support Academies,Other Public Bodies,Castle School Education Trust,636.66, 25-Apr-2022
956,Revenue,CAHD,Statemented Support Academies,Other Public Bodies,Castle School Education Trust,554.13, 25-Apr-2022
957,Revenue,CAHD,Statemented Support Academies,Other Public Bodies,Castle School Education Trust,543.42, 25-Apr-2022
958,Revenue,CAHD,Statemented Support Academies,Other Public Bodies,Castle School Education Trust,954.99, 25-Apr-2022
959,Revenue,CAHD,Statemented Support Academies,Other Public Bodies,Castle School Education Trust,577.71, 25-Apr-2022
960,Revenue,CAHD,Statemented Support Academies,Other Public Bodies,Castle School Education Trust,1248.33, 25-Apr-2022
961,Revenue,CAHD,Statemented Support Academies,Other Public Bodies,Castle School Education Trust,1190.79, 25-Apr-2022
962,Revenue,CAHD,Statemented Support Academies,Other Public Bodies,Castle School Education Trust,691.92, 25-Apr-2022
963,Revenue,CAHD,Statemented Support Academies,Other Public Bodies,Castle School Education Trust,1071.67, 25-Apr-2022
964,Revenue,CAHD,Statemented Support Academies,Other Public Bodies,Castle School Education Trust,1061.10, 25-Apr-2022
965,Revenue,CAHD,Statemented Support Academies,Other Public Bodies,Castle School Education Trust,577.71, 25-Apr-2022
966,Revenue,CAHD,Statemented Support Academies,Other Public Bodies,Castle School Education Trust,1143.63, 25-Apr-2022
967,Revenue,CAHD,Statemented Support Academies,Other Public Bodies,Castle School Education Trust,943.33, 25-Apr-2022
968,Revenue,CAHD,Statemented Support Academies,Other Public Bodies,Castle School Education Trust,754.25, 25-Apr-2022
969,Revenue,CAHD,Statemented Support Academies,Other Public Bodies,Castle School Education Trust,906.75, 25-Apr-2022
970,Revenue,CAHD,Statemented Support Academies,Other Public Bodies,Castle School Education Trust,1202.67, 25-Apr-2022
971,Revenue,CAHD,Statemented Support Academies,Other Public Bodies,Castle School Education Trust,1485.54, 25-Apr-2022
972,Revenue,CAHD,Statemented Support Academies,Other Public Bodies,Castle School Education Trust,515.08, 25-Apr-2022
973,Revenue,CAHD,Statemented Support Academies,Other Public Bodies,Castle School Education Trust,1177.50, 25-Apr-2022
974,Revenue,CAHD,Statemented Support Academies,Other Public Bodies,Castle School Education Trust,888.75, 25-Apr-2022
975,Revenue,CAHD,Statemented Support Academies,Other Public Bodies,Castle School Education Trust,1261.75, 25-Apr-2022
976,Revenue,CAHD,Statemented Support Academies,Other Public Bodies,Castle School Education Trust,1202.92, 25-Apr-2022
977,Revenue,CAHD,Statemented Support Academies,Other Public Bodies,Castle School Education Trust,896.08, 25-Apr-2022
978,Revenue,CAHD,Statemented Support Academies,Other Public Bodies,Castle School Education Trust,1244.58, 25-Apr-2022
979,Revenue,CAHD,Statemented Support Academies,Other Public Bodies,Castle School Education Trust,908.00, 25-Apr-2022
980,Revenue,CAHD,Statemented Support Academies,Other Public Bodies,Castle School Education Trust,801.92, 25-Apr-2022
981,Revenue,CAHD,Statemented Support Academies,Other Public Bodies,Castle School Education Trust,943.17, 25-Apr-2022
982,Revenue,CAHD,Statemented Support Academies,Other Public Bodies,Castle School Education Trust,1267.50, 25-Apr-2022
983,Revenue,CAHD,Academy Resource Base Funding,Other Public Bodies,Castle School Education Trust,3287.68, 25-Apr-2022
984,Revenue,CAHD,Academy Resource Base Funding,Other Public Bodies,Castle School Education Trust,2432.79, 25-Apr-2022
985,Revenue,CAHD,Academy Resource Base Funding,Other Public Bodies,Castle School Education Trust,1648.03, 25-Apr-2022
986,Revenue,CAHD,Academy Resource Base Funding,Other Public Bodies,Castle School Education Trust,1648.03, 25-Apr-2022
987,Revenue,CAHD,Academy Resource Base Funding,Other Public Bodies,Castle School Education Trust,1648.03, 25-Apr-2022
988,Revenue,CAHD,Academy Resource Base Funding,Other Public Bodies,Castle School Education Trust,1648.03, 25-Apr-2022
989,Revenue,CAHD,Academy Resource Base Funding,Other Public Bodies,Castle School Education Trust,2432.79, 25-Apr-2022
990,Revenue,CAHD,Academy Resource Base Funding,Other Public Bodies,Castle School Education Trust,1648.03, 25-Apr-2022
991,Revenue,CAHD,Academy Resource Base Funding,Other Public Bodies,Castle School Education Trust,2432.79, 25-Apr-2022
992,Revenue,CAHD,Academy Resource Base Funding,Other Public Bodies,Castle School Education Trust,1648.03, 25-Apr-2022
993,Revenue,CAHD,Academy Resource Base Funding,Other Public Bodies,Castle School Education Trust,1648.03, 25-Apr-2022
994,Revenue,CAHD,Academy Resource Base Funding,Other Public Bodies,Castle School Education Trust,1648.03, 25-Apr-2022
995,Revenue,CAHD,Academy Resource Base Funding,Other Public Bodies,Castle School Education Trust,2118.90, 25-Apr-2022
996,Revenue,CAHD,Academy Resource Base Funding,Other Public Bodies,Castle School Education Trust,2432.79, 25-Apr-2022
997,Revenue,CAHD,Academy Resource Base Funding,Other Public Bodies,Castle School Education Trust,1648.03, 25-Apr-2022
998,Revenue,CAHD,Academy Resource Base Funding,Other Public Bodies,Castle School Education Trust,1648.03, 25-Apr-2022
999,Revenue,CAHD,Statemented Support Academies,Other Public Bodies,Castle School Education Trust,672.03, 25-Apr-2022
1000,Revenue,CAHD,Statemented Support Academies,Other Public Bodies,Castle School Education Trust,822.50, 25-Apr-2022
1001,Revenue,CAHD,Statemented Support Academies,Other Public Bodies,Castle School Education Trust,872.46, 25-Apr-2022
1002,Revenue,CAHD,Statemented Support Academies,Other Public Bodies,Castle School Education Trust,848.88, 25-Apr-2022
1003,Revenue,CAHD,Statemented Support Academies,Other Public Bodies,Castle School Education Trust,541.58, 25-Apr-2022
1004,Revenue,CAHD,Statemented Support Academies,Other Public Bodies,Castle School Education Trust,723.17, 25-Apr-2022
1005,Revenue,CAHD,Statemented Support Academies,Other Public Bodies,Castle School Education Trust,956.00, 25-Apr-2022
1006,Revenue,CAHD,Statemented Support Academies,Other Public Bodies,Castle School Education Trust,560.17, 25-Apr-2022
1007,Revenue,CAHD,Statemented Support Academies,Other Public Bodies,Castle School Education Trust,3080.00, 08-Apr-2022
1008,Revenue,CAHD,Statemented Support Academies,Other Public Bodies,Castle School Education Trust,1202.67, 25-Apr-2022
1009,Revenue,CAHD,Statemented Support Academies,Other Public Bodies,Castle School Education Trust,630.58, 25-Apr-2022
1010,Revenue,CAHD,Statemented Support Academies,Other Public Bodies,Castle School Education Trust,778.14, 25-Apr-2022
1011,Revenue,CAHD,Statemented Support Academies,Other Public Bodies,Castle School Education Trust,941.58, 25-Apr-2022
1012,Revenue,CAHD,Statemented Support Academies,Other Public Bodies,Castle School Education Trust,1320.00, 08-Apr-2022
1013,Revenue,CAHD,Schools Specific Grant Income,Other Public Bodies,Castle School Education Trust,2000.00, 01-Apr-2022
1014,Revenue,CAHD,Schools Specific Grant Income,Other Public Bodies,Castle School Education Trust,2000.00, 01-Apr-2022
1015,Revenue,CAHD,Statemented Support Academies,Other Public Bodies,Castle School Education Trust,1240.00, 08-Apr-2022
1016,Revenue,CAHD,Statemented Support Academies,Other Public Bodies,Castle School Educational Academy Trust,1129.92, 25-Apr-2022
1017,Revenue,CAHD,Statemented Support Academies,Other Public Bodies,Castle School Educational Academy Trust,854.00, 25-Apr-2022
1018,Revenue,CAHD,Statemented Support Academies,Other Public Bodies,Castle School Educational Academy Trust,2005.17, 25-Apr-2022
1019,Revenue,CAHD,Statemented Support Academies,Other Public Bodies,Castle School Educational Academy Trust,940.75, 25-Apr-2022
1020,Revenue,CAHD,Statemented Support Academies,Other Public Bodies,Castle School Educational Academy Trust,790.58, 25-Apr-2022
1021,Revenue,CAHD,Statemented Support Academies,Other Public Bodies,Castle School Educational Academy Trust,508.67, 25-Apr-2022
1022,Revenue,CAHD,Statemented Support Academies,Other Public Bodies,Castle School Educational Academy Trust,1148.20, 25-Apr-2022
1023,Revenue,CAHD,Statemented Support Academies,Other Public Bodies,Castle School Educational Academy Trust,1097.25, 25-Apr-2022
1024,Revenue,CAHD,Statemented Support Academies,Other Public Bodies,Castle School Educational Academy Trust,580.67, 25-Apr-2022
1025,Revenue,CAHD,Statemented Support Academies,Other Public Bodies,Castle School Educational Academy Trust,925.08, 25-Apr-2022
1026,Revenue,CAHD,Statemented Support Academies,Other Public Bodies,Castle School Educational Academy Trust,652.58, 25-Apr-2022
1027,Revenue,CAHD,South Glos Alternative Provision,Fees & Charges Income - General,Castle School Educational Academy Trust,1318.69, 06-Apr-2022
1028,Revenue,CAHD,CSC - Care Leavers Support Costs,Membership Fees,Catch 22 Charity Ltd,2995.00, 20-Apr-2022
1029,Revenue,CAHD,CSC - Legal Fees,Legal Fees,Cater Walsh Reporting Limited,819.00, 14-Apr-2022
1030,Revenue,CAHD,Social Lettings Agency,Rent,Individual,658.30, 01-Apr-2022
1031,Revenue,CAHD,Social Lettings Agency,Fees & Charges Income - General,Individual,-52.66, 01-Apr-2022
1032,Revenue,CAHD,Social Lettings Agency,Rent,Individual,658.30, 29-Apr-2022
1033,Revenue,CAHD,Social Lettings Agency,Fees & Charges Income - General,Individual,-52.66, 29-Apr-2022
1034,Revenue,CAHD,CSC - CLA Placements,Client Transport,Cathedral Cars Ltd,3570.00, 29-Apr-2022
1035,Revenue,CAHD,18-25 Year Olds,Day Care / Social Activities,Causeway House,4606.60, 05-Apr-2022
1036,Revenue,CAHD,Central - Commissioned Services,Day Care / Social Activities,Causeway House,3811.00, 05-Apr-2022
1037,Revenue,CAHD,Central - Commissioned Services,Day Care / Social Activities,Causeway House,4060.80, 05-Apr-2022
1038,Revenue,CAHD,South - Commissioned Services,Day Care / Social Activities,Causeway House,5481.60, 05-Apr-2022
1039,Revenue,CAHD,North - Community based support,Day Care / Social Activities,Causeway House,5015.40, 05-Apr-2022
1040,Revenue,CAHD,North - Community based support,Day Care / Social Activities,Causeway House,593.04, 05-Apr-2022
1041,Revenue,CAHD,North - Community based support,Day Care / Social Activities,Causeway House,3366.40, 05-Apr-2022
1042,Revenue,CAHD,North - Community based support,Day Care / Social Activities,Causeway House,3286.00, 05-Apr-2022
1043,Revenue,CAHD,North - S117,Permanent Residential,Cavendish Care Home,2340.00, 05-Apr-2022
1044,Revenue,CAHD,Jointly Funded H&SC Packages,Permanent Residential,Cavendish Care Home,1560.00, 05-Apr-2022
1045,Revenue,CAHD,Central - Commissioned Services,Permanent Nursing,Cedar Court Care Home,4000.00, 05-Apr-2022
1046,Revenue,CAHD,Central - Commissioned Services,Fees & Charges Income - General,Cedar Court Care Home,-394.97, 05-Apr-2022
1047,Revenue,CAHD,Training - Adult Services,Training Expenses,Central Consultancy & Training,4340.00, 07-Apr-2022
1048,Revenue,CAHD,CSC - Care Leavers Independent Living,Independent Living,Centrepeacehomes Ltd,17100.00, 12-Apr-2022
1049,Revenue,CAHD,CSC - Care Leavers Independent Living,Independent Living,Centrepeacehomes Ltd,2960.00, 14-Apr-2022
1050,Revenue,CAHD,CSC - Care Leavers Independent Living,Independent Living,Centrepeacehomes Ltd,4440.00, 28-Apr-2022
1051,Revenue,CAHD,South - Commissioned Services,Permanent Residential,Challenge House,2894.80, 05-Apr-2022
1052,Revenue,CAHD,South - Commissioned Services,Fees & Charges Income - General,Challenge House,-1178.70, 05-Apr-2022
1053,Revenue,CAHD,Central - Commissioned Services,Permanent Residential,Challenge House,2452.44, 05-Apr-2022
1054,Revenue,CAHD,Central - Commissioned Services,Permanent Residential,Challenge House,2819.84, 05-Apr-2022
1055,Revenue,CAHD,Central - Commissioned Services,Fees & Charges Income - General,Challenge House,-7943.00, 05-Apr-2022
1056,Revenue,CAHD,Central - Commissioned Services,Fees & Charges Income - General,Challenge House,-816.90, 05-Apr-2022
1057,Revenue,CAHD,North - Community based support,Permanent Residential,Challenge House,2314.96, 05-Apr-2022
1058,Revenue,CAHD,North - Community based support,Permanent Residential,Challenge House,2902.76, 05-Apr-2022
1059,Revenue,CAHD,North - Community based support,Fees & Charges Income - General,Challenge House,-742.92, 05-Apr-2022
1060,Revenue,CAHD,North - Community based support,Permanent Residential,Challenge House,2894.76, 05-Apr-2022
1061,Revenue,CAHD,North - Community based support,Fees & Charges Income - General,Challenge House,-1033.86, 05-Apr-2022
1062,Revenue,CAHD,North - Community based support,Permanent Nursing,Challenge House,2505.52, 05-Apr-2022
1063,Revenue,CAHD,North - Community based support,Permanent Nursing,Challenge House,3205.48, 05-Apr-2022
1064,Revenue,CAHD,North - Community based support,Fees & Charges Income - General,Challenge House,-613.55, 05-Apr-2022
1065,Revenue,CAHD,North - Community based support,Fees & Charges Income - General,Challenge House,-613.55, 05-Apr-2022
1066,Revenue,CAHD,North - S117,Permanent Nursing,Challenge House,2505.52, 05-Apr-2022
1067,Revenue,CAHD,South - Commissioned Services,Permanent Nursing,Challenge House,958.00, 07-Apr-2022
1068,Revenue,CAHD,South Glos Users in South Glos Homes,Permanent Nursing,Challenge House,750.40, 05-Apr-2022
1069,Revenue,CAHD,South Glos Users in South Glos Homes,Permanent Nursing,Challenge House,750.40, 05-Apr-2022
1070,Revenue,CAHD,South Glos Users in South Glos Homes,Permanent Nursing,Challenge House,750.40, 05-Apr-2022
1071,Revenue,CAHD,South Glos Users in South Glos Homes,Permanent Nursing,Challenge House,750.40, 05-Apr-2022
1072,Revenue,CAHD,South Glos Users in South Glos Homes,Permanent Nursing,Challenge House,750.40, 05-Apr-2022
1073,Revenue,CAHD,South Glos Users in South Glos Homes,Permanent Nursing,Challenge House,750.40, 05-Apr-2022
1074,Revenue,CAHD,South Glos Users in South Glos Homes,Permanent Nursing,Challenge House,750.40, 05-Apr-2022
1075,Revenue,CAHD,South Glos Users in South Glos Homes,Permanent Nursing,Challenge House,750.40, 05-Apr-2022
1076,Revenue,CAHD,South Glos Users in South Glos Homes,Permanent Nursing,Challenge House,750.40, 05-Apr-2022
1077,Revenue,CAHD,South Glos Users in South Glos Homes,Permanent Nursing,Challenge House,2599.60, 05-Apr-2022
1078,Revenue,CAHD,South Glos Users in South Glos Homes,Permanent Nursing,Challenge House,750.40, 05-Apr-2022
1079,Revenue,CAHD,South Glos Users in South Glos Homes,Permanent Nursing,Challenge House,750.40, 05-Apr-2022
1080,Revenue,CAHD,South Glos Users in South Glos Homes,Permanent Nursing,Challenge House,750.40, 05-Apr-2022
1081,Revenue,CAHD,South Glos Users in South Glos Homes,Permanent Nursing,Challenge House,750.40, 05-Apr-2022
1082,Revenue,CAHD,South Glos Users in South Glos Homes,Permanent Nursing,Challenge House,750.40, 05-Apr-2022
1083,Revenue,CAHD,South Glos Users in South Glos Homes,Permanent Nursing,Challenge House,750.40, 05-Apr-2022
1084,Revenue,CAHD,South Glos Users in South Glos Homes,Permanent Nursing,Challenge House,750.40, 05-Apr-2022
1085,Revenue,CAHD,South Glos Users in South Glos Homes,Permanent Nursing,Challenge House,750.40, 05-Apr-2022
1086,Revenue,CAHD,South - Commissioned Services,Respite Care,Challenge House,0.00, 05-Apr-2022
1087,Revenue,CAHD,South - Commissioned Services,Permanent Residential,Challenge House,3400.00, 05-Apr-2022
1088,Revenue,CAHD,South - Commissioned Services,Permanent Residential,Challenge House,3400.00, 05-Apr-2022
1089,Revenue,CAHD,South - Commissioned Services,Permanent Residential,Challenge House,3600.00, 05-Apr-2022
1090,Revenue,CAHD,South - Commissioned Services,Respite Planned - Residential,Challenge House,-1335.71, 05-Apr-2022
1091,Revenue,CAHD,South - Commissioned Services,Permanent Nursing,Challenge House,2051.56, 05-Apr-2022
1092,Revenue,CAHD,South - Commissioned Services,Permanent Nursing,Challenge House,-4857.14, 05-Apr-2022
1093,Revenue,CAHD,South - Commissioned Services,Respite Planned - Nursing,Challenge House,4978.57, 05-Apr-2022
1094,Revenue,CAHD,South - Commissioned Services,Fees & Charges Income - General,Challenge House,-1915.92, 05-Apr-2022
1095,Revenue,CAHD,South - Commissioned Services,Fees & Charges Income - General,Challenge House,-604.62, 05-Apr-2022
1096,Revenue,CAHD,South - Commissioned Services,Fees & Charges Income - General,Challenge House,-613.55, 05-Apr-2022
1097,Revenue,CAHD,South - Commissioned Services,Fees & Charges Income - General,Challenge House,951.65, 05-Apr-2022
1098,Revenue,CAHD,North - Community based support,Permanent Residential,Challenge House,3193.00, 05-Apr-2022
1099,Revenue,CAHD,North - Community based support,Permanent Residential,Challenge House,3200.00, 05-Apr-2022
1100,Revenue,CAHD,North - Community based support,Permanent Residential,Challenge House,3500.00, 05-Apr-2022
1101,Revenue,CAHD,North - Community based support,Permanent Residential,Challenge House,-1118.00, 05-Apr-2022
1102,Revenue,CAHD,North - Community based support,Permanent Residential,Challenge House,3500.00, 05-Apr-2022
1103,Revenue,CAHD,North - Community based support,Permanent Residential,Challenge House,3800.00, 05-Apr-2022
1104,Revenue,CAHD,North - Community based support,Permanent Residential,Challenge House,10685.71, 05-Apr-2022
1105,Revenue,CAHD,North - Community based support,Permanent Residential,Challenge House,8007.14, 05-Apr-2022
1106,Revenue,CAHD,North - Community based support,Respite Planned - Residential,Challenge House,-1335.71, 05-Apr-2022
1107,Revenue,CAHD,North - Community based support,Permanent Nursing,Challenge House,3478.20, 05-Apr-2022
1108,Revenue,CAHD,North - Community based support,Permanent Nursing,Challenge House,3347.92, 05-Apr-2022
1109,Revenue,CAHD,North - Community based support,Permanent Nursing,Challenge House,3400.00, 05-Apr-2022
1110,Revenue,CAHD,North - Community based support,Permanent Nursing,Challenge House,8378.57, 05-Apr-2022
1111,Revenue,CAHD,North - Community based support,Permanent Nursing,Challenge House,2950.40, 05-Apr-2022
1112,Revenue,CAHD,North - Community based support,Permanent Nursing,Challenge House,3318.20, 05-Apr-2022
1113,Revenue,CAHD,North - Community based support,Permanent Nursing,Challenge House,11117.14, 05-Apr-2022
1114,Revenue,CAHD,North - Community based support,Fees & Charges Income - General,Challenge House,-731.04, 05-Apr-2022
1115,Revenue,CAHD,North - Community based support,Fees & Charges Income - General,Challenge House,-717.99, 05-Apr-2022
1116,Revenue,CAHD,North - Community based support,Fees & Charges Income - General,Challenge House,-1797.94, 05-Apr-2022
1117,Revenue,CAHD,North - Community based support,Fees & Charges Income - General,Challenge House,15436.85, 05-Apr-2022
1118,Revenue,CAHD,North - Community based support,Fees & Charges Income - General,Challenge House,-2046.50, 05-Apr-2022
1119,Revenue,CAHD,North - Community based support,Fees & Charges Income - General,Challenge House,-613.55, 05-Apr-2022
1120,Revenue,CAHD,North - Community based support,Fees & Charges Income - General,Challenge House,-1016.02, 05-Apr-2022
1121,Revenue,CAHD,North - Community based support,Fees & Charges Income - General,Challenge House,-1524.02, 05-Apr-2022
1122,Revenue,CAHD,North - Community based support,Fees & Charges Income - General,Challenge House,-1918.12, 05-Apr-2022
1123,Revenue,CAHD,North - Community based support,Fees & Charges Income - General,Challenge House,-733.52, 05-Apr-2022
1124,Revenue,CAHD,North - Community based support,Fees & Charges Income - General,Challenge House,-900.06, 05-Apr-2022
1125,Revenue,CAHD,North - Community based support,Fees & Charges Income - General,Challenge House,-1580.19, 05-Apr-2022
1126,Revenue,CAHD,North - Community based support,Fees & Charges Income - General,Challenge House,-1630.71, 05-Apr-2022
1127,Revenue,CAHD,North - Community based support,Permanent Residential,Challenge House,2688.45, 11-Apr-2022
1128,Revenue,CAHD,Central - Commissioned Services,Permanent Nursing,Challenge House,2490.00, 05-Apr-2022
1129,Revenue,CAHD,Central - Commissioned Services,Permanent Nursing,Challenge House,3200.00, 05-Apr-2022
1130,Revenue,CAHD,Central - Commissioned Services,Fees & Charges Income - General,Challenge House,-1202.72, 05-Apr-2022
1131,Revenue,CAHD,Central - Commissioned Services,Fees & Charges Income - General,Challenge House,-965.08, 05-Apr-2022
1132,Revenue,CAHD,North - Community based support,Permanent Residential,Challenge House,4178.57, 05-Apr-2022
1133,Revenue,CAHD,North - Community based support,Permanent Residential,Challenge House,3136.52, 05-Apr-2022
1134,Revenue,CAHD,North - Community based support,Respite Planned - Nursing,Challenge House,2808.00, 05-Apr-2022
1135,Revenue,CAHD,North - Community based support,Fees & Charges Income - General,Challenge House,-1454.73, 05-Apr-2022
1136,Revenue,CAHD,CSC - Age Related Allowances,Foster Parent Allowances,Individual,173.00, 01-Apr-2022
1137,Revenue,CAHD,CSC - Professional Fees Foster Carers,Band 1 Foster Care,Individual,390.00, 01-Apr-2022
1138,Revenue,CAHD,CSC - Professional Fees Foster Carers,Therapeutic Fostering Fee,Individual,577.00, 01-Apr-2022
1139,Revenue,CAHD,CSC - Age Related Allowances,Foster Parent Allowances,Individual,178.14, 08-Apr-2022
1140,Revenue,CAHD,CSC - Professional Fees Foster Carers,Band 1 Foster Care,Individual,390.00, 08-Apr-2022
1141,Revenue,CAHD,CSC - Professional Fees Foster Carers,Therapeutic Fostering Fee,Individual,577.00, 08-Apr-2022
1142,Revenue,CAHD,CSC - Age Related Allowances,Foster Parent Allowances,Individual,177.00, 14-Apr-2022
1143,Revenue,CAHD,CSC - Professional Fees Foster Carers,Band 1 Foster Care,Individual,390.00, 14-Apr-2022
1144,Revenue,CAHD,CSC - Professional Fees Foster Carers,Therapeutic Fostering Fee,Individual,577.00, 14-Apr-2022
1145,Revenue,CAHD,CSC - Age Related Allowances,Foster Parent Allowances,Individual,177.00, 22-Apr-2022
1146,Revenue,CAHD,CSC - Professional Fees Foster Carers,Band 1 Foster Care,Individual,390.00, 22-Apr-2022
1147,Revenue,CAHD,CSC - Professional Fees Foster Carers,Therapeutic Fostering Fee,Individual,577.00, 22-Apr-2022
1148,Revenue,CAHD,CSC - Age Related Allowances,Foster Parent Allowances,Individual,177.00, 29-Apr-2022
1149,Revenue,CAHD,CSC - Professional Fees Foster Carers,Band 1 Foster Care,Individual,390.00, 29-Apr-2022
1150,Revenue,CAHD,CSC - Professional Fees Foster Carers,Therapeutic Fostering Fee,Individual,577.00, 29-Apr-2022
1151,Revenue,CAHD,CSC - Vinney Green Secure Unit,"Provisions (Food, etc)",Charles Saunders Limited,539.00, 29-Apr-2022
1152,Revenue,CAHD,Training - Adult Services,Training Expenses,Individual,850.00, 11-Apr-2022
1153,Revenue,CAHD,Statemented Support Academies,Other Public Bodies,Charlton Wood Primary Academy,1202.67, 25-Apr-2022
1154,Revenue,CAHD,Statemented Support Academies,Other Public Bodies,Charlton Wood Primary Academy,1202.67, 25-Apr-2022
1155,Revenue,CAHD,Statemented Support Academies,Other Public Bodies,Charlton Wood Primary Academy,702.17, 25-Apr-2022
1156,Revenue,CAHD,Statemented Support Academies,Other Public Bodies,Charlton Wood Primary Academy,1202.67, 25-Apr-2022
1157,Revenue,CAHD,North - Community based support,Other Small Contracts,Cherish Able Care Limited,647.23, 19-Apr-2022
1158,Revenue,CAHD,South - Commissioned Services,Other Small Contracts,Cherish Able Care Limited,8956.77, 19-Apr-2022
1159,Revenue,CAHD,Central - Commissioned Services,Other Small Contracts,Cherish Able Care Limited,636.99, 19-Apr-2022
1160,Revenue,CAHD,North - Community based support,Other Small Contracts,Cherish Able Care Limited,647.23, 26-Apr-2022
1161,Revenue,CAHD,South - Commissioned Services,Other Small Contracts,Cherish Able Care Limited,8956.77, 26-Apr-2022
1162,Revenue,CAHD,Central - Commissioned Services,Other Small Contracts,Cherish Able Care Limited,636.99, 26-Apr-2022
1163,Revenue,CAHD,North - Community based support,Other Small Contracts,Cherish Able Care Limited,647.23, 14-Apr-2022
1164,Revenue,CAHD,South - Commissioned Services,Other Small Contracts,Cherish Able Care Limited,8956.77, 14-Apr-2022
1165,Revenue,CAHD,Central - Commissioned Services,Other Small Contracts,Cherish Able Care Limited,636.99, 14-Apr-2022
1166,Revenue,CAHD,Covid  - Workforce capacity,Grants to Voluntary Bodies,Cherish Able Care Limited,2058.97, 06-Apr-2022
1167,Revenue,CAHD,Covid  - Workforce capacity,Grants to Voluntary Bodies,Cherish Able Care Limited,2869.45, 06-Apr-2022
1168,Revenue,CAHD,CSC - Professional Fees Foster Carers,Children - Family Support,Individual,720.00, 08-Apr-2022
1169,Revenue,CAHD,CSC - Professional Fees Foster Carers,Children - Family Support,Individual,504.00, 14-Apr-2022
1170,Revenue,CAHD,CSC - Professional Fees Foster Carers,Children - Family Support,Individual,504.00, 22-Apr-2022
1171,Revenue,CAHD,CSC - Age Related Allowances,Children - Family Support,Individual,1938.28, 29-Apr-2022
1172,Revenue,CAHD,CSC - Fostering Carer Support,Operational Equipment,Individual,162.00, 29-Apr-2022
1173,Revenue,CAHD,CSC - Professional Fees Foster Carers,Children - Family Support,Individual,510.00, 29-Apr-2022
1174,Revenue,CAHD,CSC - Professional Fees Foster Carers,Band 1 Foster Care,Individual,-500.00, 29-Apr-2022
1175,Revenue,CAHD,18-25 Year Olds,Respite Care,Cherry Orchards,0.00, 05-Apr-2022
1176,Revenue,CAHD,18-25 Year Olds,Supported Living,Cherry Orchards,2077.24, 05-Apr-2022
1177,Revenue,CAHD,Central - Commissioned Services,Respite Care,Cherry Orchards,0.00, 05-Apr-2022
1178,Revenue,CAHD,Central - Commissioned Services,Supported Living,Cherry Orchards,2367.92, 05-Apr-2022
1179,Revenue,CAHD,South - Commissioned Services,Respite Care,Cherry Orchards,0.00, 05-Apr-2022
1180,Revenue,CAHD,South - Commissioned Services,Respite Care,Cherry Orchards,0.00, 05-Apr-2022
1181,Revenue,CAHD,South - Commissioned Services,Supported Living,Cherry Orchards,1049.08, 05-Apr-2022
1182,Revenue,CAHD,South - Commissioned Services,Supported Living,Cherry Orchards,1938.52, 05-Apr-2022
1183,Revenue,CAHD,North - Community based support,Respite Care,Cherry Orchards,0.00, 05-Apr-2022
1184,Revenue,CAHD,North - Community based support,Respite Care,Cherry Orchards,0.00, 05-Apr-2022
1185,Revenue,CAHD,North - Community based support,Supported Living,Cherry Orchards,1066.96, 05-Apr-2022
1186,Revenue,CAHD,North - Community based support,Supported Living,Cherry Orchards,1938.52, 05-Apr-2022
1187,Revenue,CAHD,Younger MH non-res purchasing,Respite Care,Cherry Orchards,0.00, 05-Apr-2022
1188,Revenue,CAHD,Younger MH non-res purchasing,Supported Living,Cherry Orchards,1958.12, 05-Apr-2022
1189,Revenue,CAHD,Central - Commissioned Services,Supported Living,Cherry Orchards,2109.38, 06-Apr-2022
1190,Revenue,CAHD,South - Commissioned Services,Supported Living,Cherry Orchards,1343.68, 06-Apr-2022
1191,Revenue,CAHD,North - Community based support,Supported Living,Cherry Orchards,1778.40, 06-Apr-2022
1192,Revenue,CAHD,North - Community based support,Supported Living,Cherry Orchards,711.36, 06-Apr-2022
1193,Revenue,CAHD,Central - Commissioned Services,Permanent Residential,Chescombe Trust Ltd,8910.48, 05-Apr-2022
1194,Revenue,CAHD,Central - Commissioned Services,Fees & Charges Income - General,Chescombe Trust Ltd,-428.90, 05-Apr-2022
1195,Revenue,CAHD,S28A cases,Permanent Residential,Chescombe Trust Ltd,10188.80, 05-Apr-2022
1196,Revenue,CAHD,S28A cases,Fees & Charges Income - General,Chescombe Trust Ltd,-428.90, 05-Apr-2022
1197,Revenue,CAHD,Other Alternative Provision Services,Other Private Contractors,Children`s Specialist Therapy Ltd,3872.50, 20-Apr-2022
1198,Revenue,CAHD,Other Alternative Provision Services,Other Private Contractors,Children`s Specialist Therapy Ltd,1740.00, 20-Apr-2022
1199,Revenue,CAHD,CSC - Emergency Duty Team,Preventative Assistance,Childrens Contact Services Ltd,2961.90, 28-Apr-2022
1200,Revenue,CAHD,CSC - Child Arrangement Orders (prev RO),Residence Order Allowances,Christine Horswell,504.44, 08-Apr-2022
1201,Revenue,CAHD,CSC - Child Arrangement Orders (prev RO),Xmas / Birthday Allowances,Individual,162.55, 08-Apr-2022
1202,Revenue,CAHD,CSC - Child Arrangement Orders (prev RO),Residence Order Allowances,Individual,503.20, 14-Apr-2022
1203,Revenue,CAHD,CSC - Child Arrangement Orders (prev RO),Residence Order Allowances,Individual,503.20, 22-Apr-2022
1204,Revenue,CAHD,CSC - Child Arrangement Orders (prev RO),Residence Order Allowances,Individual,533.62, 29-Apr-2022
1205,Revenue,CAHD,CSC - Child Arrangement Orders (prev RO),Xmas / Birthday Allowances,Individual,162.55, 29-Apr-2022
1206,Revenue,CAHD,Contain Outbreak Mgmt Fund,Consultants Fees,Christine Tapson,4725.00, 08-Apr-2022
1207,Revenue,CAHD,South - Commissioned Services,One-off Planned Direct Payment,Individual,237.71, 01-Apr-2022
1208,Revenue,CAHD,Statemented Support Payments to OLAs,Other L.A.s - General,Churchill Academy,1085.75, 25-Apr-2022
1209,Revenue,CAHD,South - Commissioned Services,Other Small Contracts,Cintre,1196.90, 19-Apr-2022
1210,Revenue,CAHD,Younger MH non-res purchasing,Other Small Contracts,Cintre,917.83, 19-Apr-2022
1211,Revenue,CAHD,South - Commissioned Services,Other Small Contracts,Cintre,1196.90, 26-Apr-2022
1212,Revenue,CAHD,Younger MH non-res purchasing,Other Small Contracts,Cintre,917.83, 26-Apr-2022
1213,Revenue,CAHD,South - Commissioned Services,Other Small Contracts,Cintre,1196.90, 14-Apr-2022
1214,Revenue,CAHD,Younger MH non-res purchasing,Other Small Contracts,Cintre,917.83, 14-Apr-2022
1215,Revenue,CAHD,Covid  - Workforce capacity,Grants to Voluntary Bodies,Cintre,1071.22, 06-Apr-2022
1216,Revenue,CAHD,18-25 Year Olds,Permanent Residential,Cintre,6188.60, 05-Apr-2022
1217,Revenue,CAHD,18-25 Year Olds,Fees & Charges Income - General,Cintre,-49.60, 05-Apr-2022
1218,Revenue,CAHD,Learning Difficulties,Premises Hire,Circadian Trust,955.50, 29-Apr-2022
1219,Revenue,CAHD,Learning Difficulties,Premises Hire,Circadian Trust,1029.00, 01-Apr-2022
1220,Revenue,CAHD,Learning Difficulties Development Fund,Other Supplies & Services,Circles South West Ltd,4500.00, 07-Apr-2022
1221,Revenue,CAHD,Central - Commissioned Services,Other Small Contracts,City of Bradford District Council,2846.25, 21-Apr-2022
1222,Revenue,CAHD,Central - Commissioned Services,Other Small Contracts,City of Bradford District Council,2035.00, 21-Apr-2022
1223,Revenue,CAHD,Central - Commissioned Services,Other Small Contracts,City of Bradford District Council,1790.94, 21-Apr-2022
1224,Revenue,CAHD,Placements OLA Special Schools and RB,Other L.A.s - General,Claremont School,1917.52, 26-Apr-2022
1225,Revenue,CAHD,Placements OLA Special Schools and RB,Other L.A.s - General,Claremont School,625.15, 26-Apr-2022
1226,Revenue,CAHD,Placements OLA Special Schools and RB,Other L.A.s - General,Claremont School,2685.22, 26-Apr-2022
1227,Revenue,CAHD,Placements OLA Special Schools and RB,Other L.A.s - General,Claremont School,625.15, 26-Apr-2022
1228,Revenue,CAHD,Placements OLA Special Schools and RB,Other L.A.s - General,Claremont School,1917.52, 26-Apr-2022
1229,Revenue,CAHD,Placements OLA Special Schools and RB,Other L.A.s - General,Claremont School,625.15, 26-Apr-2022
1230,Revenue,CAHD,Placements OLA Special Schools and RB,Other L.A.s - General,Claremont School,1917.52, 26-Apr-2022
1231,Revenue,CAHD,Placements OLA Special Schools and RB,Other L.A.s - General,Claremont School,625.15, 26-Apr-2022
1232,Revenue,CAHD,Placements OLA Special Schools and RB,Other L.A.s - General,Claremont School,767.02, 26-Apr-2022
1233,Revenue,CAHD,Placements OLA Special Schools and RB,Other L.A.s - General,Claremont School,2685.20, 26-Apr-2022
1234,Revenue,CAHD,Placements OLA Special Schools and RB,Other L.A.s - General,Claremont School,1917.52, 26-Apr-2022
1235,Revenue,CAHD,Placements OLA Special Schools and RB,Other L.A.s - General,Claremont School,625.15, 26-Apr-2022
1236,Revenue,CAHD,Placements OLA Special Schools and RB,Other L.A.s - General,Claremont School,2685.22, 26-Apr-2022
1237,Revenue,CAHD,Placements OLA Special Schools and RB,Other L.A.s - General,Claremont School,625.15, 26-Apr-2022
1238,Revenue,CAHD,Placements OLA Special Schools and RB,Other L.A.s - General,Claremont School,1534.01, 26-Apr-2022
1239,Revenue,CAHD,Placements OLA Special Schools and RB,Other L.A.s - General,Claremont School,500.12, 26-Apr-2022
1240,Revenue,CAHD,Placements OLA Special Schools and RB,Other L.A.s - General,Claremont School,1917.52, 26-Apr-2022
1241,Revenue,CAHD,Placements OLA Special Schools and RB,Other L.A.s - General,Claremont School,625.15, 26-Apr-2022
1242,Revenue,CAHD,Central - Commissioned Services,Permanent Residential,Cleeve Lodge,3273.60, 05-Apr-2022
1243,Revenue,CAHD,Central - Commissioned Services,Fees & Charges Income - General,Cleeve Lodge,-1039.66, 05-Apr-2022
1244,Revenue,CAHD,South - Commissioned Services,Permanent Residential,Cleeve Lodge,3492.00, 05-Apr-2022
1245,Revenue,CAHD,South - Commissioned Services,Permanent Residential,Cleeve Lodge,19964.29, 05-Apr-2022
1246,Revenue,CAHD,South - Commissioned Services,Permanent Residential,Cleeve Lodge,4910.40, 05-Apr-2022
1247,Revenue,CAHD,South - Commissioned Services,Permanent Residential,Cleeve Lodge,3739.76, 05-Apr-2022
1248,Revenue,CAHD,South - Commissioned Services,Permanent Residential,Cleeve Lodge,1365.28, 05-Apr-2022
1249,Revenue,CAHD,South - Commissioned Services,Permanent Residential,Cleeve Lodge,4501.20, 05-Apr-2022
1250,Revenue,CAHD,South - Commissioned Services,Permanent Residential,Cleeve Lodge,3018.76, 05-Apr-2022
1251,Revenue,CAHD,South - Commissioned Services,Permanent Nursing,Cleeve Lodge,3273.60, 05-Apr-2022
1252,Revenue,CAHD,South - Commissioned Services,Fees & Charges Income - General,Cleeve Lodge,-766.84, 05-Apr-2022
1253,Revenue,CAHD,South - Commissioned Services,Fees & Charges Income - General,Cleeve Lodge,-17966.78, 05-Apr-2022
1254,Revenue,CAHD,South - Commissioned Services,Fees & Charges Income - General,Cleeve Lodge,-636.60, 05-Apr-2022
1255,Revenue,CAHD,South - Commissioned Services,Fees & Charges Income - General,Cleeve Lodge,-733.27, 05-Apr-2022
1256,Revenue,CAHD,South - Commissioned Services,Fees & Charges Income - General,Cleeve Lodge,-694.24, 05-Apr-2022
1257,Revenue,CAHD,South - Commissioned Services,Fees & Charges Income - General,Cleeve Lodge,-641.55, 05-Apr-2022
1258,Revenue,CAHD,South - Commissioned Services,Fees & Charges Income - General,Cleeve Lodge,-908.13, 05-Apr-2022
1259,Revenue,CAHD,South - Commissioned Services,Fees & Charges Income - General,Cleeve Lodge,-645.92, 05-Apr-2022
1260,Revenue,CAHD,North - Community based support,Permanent Residential,Cleeve Lodge,4400.00, 05-Apr-2022
1261,Revenue,CAHD,North - Community based support,Fees & Charges Income - General,Cleeve Lodge,-902.57, 05-Apr-2022
1262,Revenue,CAHD,North - S117,Permanent Residential,Cleeve Lodge,3273.60, 05-Apr-2022
1263,Revenue,CAHD,North - Community based support,Permanent Nursing,Clevedon Court Nursing Home,3448.16, 05-Apr-2022
1264,Revenue,CAHD,North - Community based support,Fees & Charges Income - General,Clevedon Court Nursing Home,-1019.87, 05-Apr-2022
1265,Revenue,CAHD,"Drugs, Alcohol and Sexual Health",Other Small Contracts,Close Farm Surgery,877.50, 06-Apr-2022
1266,Revenue,CAHD,Central - Commissioned Services,Other Small Contracts,Clover Health and Home Care Ltd,975.52, 06-Apr-2022
1267,Revenue,CAHD,Central - Commissioned Services,Other Small Contracts,Clover Health and Home Care Ltd,6082.72, 06-Apr-2022
1268,Revenue,CAHD,Central - Commissioned Services,Other Small Contracts,Clover Health and Home Care Ltd,5954.08, 26-Apr-2022
1269,Revenue,CAHD,CSC - Vinney Green Secure Unit,Mechanical & Electrical Maintenance,Clover Technical Services,14042.40, 07-Apr-2022
1270,Revenue,CAHD,CSC - Vinney Green Secure Unit,Service Contracts (Premises),Clover Technical Services,18363.90, 07-Apr-2022
1271,Revenue,CAHD,South - Commissioned Services,Permanent Residential,Collingwood Care Home,3200.00, 05-Apr-2022
1272,Revenue,CAHD,South - Commissioned Services,Permanent Residential,Collingwood Care Home,3580.00, 05-Apr-2022
1273,Revenue,CAHD,South - Commissioned Services,Respite Planned - Residential,Collingwood Care Home,4740.00, 05-Apr-2022
1274,Revenue,CAHD,South - Commissioned Services,Fees & Charges Income - General,Collingwood Care Home,-846.43, 05-Apr-2022
1275,Revenue,CAHD,South - Commissioned Services,Fees & Charges Income - General,Collingwood Care Home,-697.52, 05-Apr-2022
1276,Revenue,CAHD,North - Community based support,Permanent Residential,Collingwood Care Home,3069.00, 05-Apr-2022
1277,Revenue,CAHD,North - Community based support,Fees & Charges Income - General,Collingwood Care Home,-979.72, 05-Apr-2022
1278,Revenue,CAHD,Covid  - Workforce capacity,Grants to Voluntary Bodies,Collingwood Care Home,1669.44, 01-Apr-2022
1279,Revenue,CAHD,Covid  - Workforce capacity,Grants to Voluntary Bodies,Collingwood Care Home,2207.27, 04-Apr-2022
1280,Revenue,CAHD,Statemented Support Payments to OLAs,Other L.A.s - General,Colston`s Girls School Trust,1582.50, 25-Apr-2022
1281,Revenue,CAHD,South - Commissioned Services,Permanent Residential,Community Theraputic Services,7776.36, 05-Apr-2022
1282,Revenue,CAHD,South - Commissioned Services,Fees & Charges Income - General,Community Theraputic Services,-428.90, 05-Apr-2022
1283,Revenue,CAHD,North - Community based support,Permanent Residential,Community Theraputic Services,8071.08, 05-Apr-2022
1284,Revenue,CAHD,North - Community based support,Fees & Charges Income - General,Community Theraputic Services,-613.55, 05-Apr-2022
1285,Revenue,CAHD,Jointly Funded H&SC Packages,Permanent Residential,Community Theraputic Services,4992.88, 05-Apr-2022
1286,Revenue,CAHD,Jointly Funded H&SC Packages,Permanent Residential,Community Theraputic Services,2076.20, 05-Apr-2022
1287,Revenue,CAHD,CSC - Agency Fostering,Foster Parent Allowances,Compass Fostering West Ltd,2083.01, 06-Apr-2022
1288,Revenue,CAHD,CSC - Agency Fostering,Foster Parent Allowances,Compass Fostering West Ltd,3618.63, 28-Apr-2022
1289,Revenue,CAHD,"Drugs, Alcohol and Sexual Health",Other Small Contracts,Concord Medical Centre,1878.90, 06-Apr-2022
1290,Revenue,CAHD,Statemented Support Equipment,Educational Supplies & Equipment,Connevans Limited,1040.00, 14-Apr-2022
1291,Revenue,CAHD,CSC - Care Leavers Independent Living,Adults - Family Support,Connolly & Callaghan Limited,436.80, 01-Apr-2022
1292,Revenue,CAHD,CSC - Care Leavers Independent Living,Adults - Family Support,Connolly & Callaghan Limited,436.80, 08-Apr-2022
1293,Revenue,CAHD,Bed and Breakfast,Bed & Breakfast,Connolly & Callaghan Limited,422.80, 13-Apr-2022
1294,Revenue,CAHD,Bed and Breakfast,Bed & Breakfast,Connolly & Callaghan Limited,548.80, 12-Apr-2022
1295,Revenue,CAHD,Bed and Breakfast,Bed & Breakfast,Connolly & Callaghan Limited,422.80, 13-Apr-2022
1296,Revenue,CAHD,Bed and Breakfast,Bed & Breakfast,Connolly & Callaghan Limited,548.80, 13-Apr-2022
1297,Revenue,CAHD,Bed and Breakfast,Bed & Breakfast,Connolly & Callaghan Limited,529.20, 13-Apr-2022
1298,Revenue,CAHD,Bed and Breakfast,Other Supplies & Services,Connolly & Callaghan Limited,597.80, 11-Apr-2022
1299,Revenue,CAHD,Bed and Breakfast,Bed & Breakfast,Connolly & Callaghan Limited,548.80, 13-Apr-2022
1300,Revenue,CAHD,Bed and Breakfast,Bed & Breakfast,Connolly & Callaghan Limited,422.80, 11-Apr-2022
1301,Revenue,CAHD,Bed and Breakfast,Bed & Breakfast,Connolly & Callaghan Limited,508.20, 11-Apr-2022
1302,Revenue,CAHD,Bed and Breakfast,Bed & Breakfast,Connolly & Callaghan Limited,508.20, 11-Apr-2022
1303,Revenue,CAHD,Bed and Breakfast,Bed & Breakfast,Connolly & Callaghan Limited,522.27, 11-Apr-2022
1304,Revenue,CAHD,Bed and Breakfast,Bed & Breakfast,Connolly & Callaghan Limited,508.20, 11-Apr-2022
1305,Revenue,CAHD,Bed and Breakfast,Bed & Breakfast,Connolly & Callaghan Limited,508.20, 11-Apr-2022
1306,Revenue,CAHD,Bed and Breakfast,Bed & Breakfast,Connolly & Callaghan Limited,422.80, 11-Apr-2022
1307,Revenue,CAHD,Bed and Breakfast,Bed & Breakfast,Connolly & Callaghan Limited,686.70, 11-Apr-2022
1308,Revenue,CAHD,CSC - Care Leavers Independent Living,Adults - Family Support,Connolly & Callaghan Limited,436.80, 13-Apr-2022
1309,Revenue,CAHD,Bed and Breakfast,Bed & Breakfast,Connolly & Callaghan Limited,422.80, 13-Apr-2022
1310,Revenue,CAHD,Bed and Breakfast,Bed & Breakfast,Connolly & Callaghan Limited,422.80, 13-Apr-2022
1311,Revenue,CAHD,Bed and Breakfast,Bed & Breakfast,Connolly & Callaghan Limited,548.80, 13-Apr-2022
1312,Revenue,CAHD,Bed and Breakfast,Bed & Breakfast,Connolly & Callaghan Limited,529.20, 13-Apr-2022
1313,Revenue,CAHD,Bed and Breakfast,Other Supplies & Services,Connolly & Callaghan Limited,597.80, 13-Apr-2022
1314,Revenue,CAHD,Bed and Breakfast,Bed & Breakfast,Connolly & Callaghan Limited,548.80, 13-Apr-2022
1315,Revenue,CAHD,Bed and Breakfast,Bed & Breakfast,Connolly & Callaghan Limited,422.80, 11-Apr-2022
1316,Revenue,CAHD,Bed and Breakfast,Bed & Breakfast,Connolly & Callaghan Limited,508.20, 13-Apr-2022
1317,Revenue,CAHD,Bed and Breakfast,Bed & Breakfast,Connolly & Callaghan Limited,508.20, 13-Apr-2022
1318,Revenue,CAHD,Bed and Breakfast,Bed & Breakfast,Connolly & Callaghan Limited,508.20, 13-Apr-2022
1319,Revenue,CAHD,Bed and Breakfast,Bed & Breakfast,Connolly & Callaghan Limited,508.20, 13-Apr-2022
1320,Revenue,CAHD,Bed and Breakfast,Bed & Breakfast,Connolly & Callaghan Limited,422.80, 13-Apr-2022
1321,Revenue,CAHD,Bed and Breakfast,Bed & Breakfast,Connolly & Callaghan Limited,686.70, 13-Apr-2022
1322,Revenue,CAHD,Bed and Breakfast,Bed & Breakfast,Connolly & Callaghan Limited,478.80, 13-Apr-2022
1323,Revenue,CAHD,CSC - Care Leavers Independent Living,Adults - Family Support,Connolly & Callaghan Limited,436.80, 21-Apr-2022
1324,Revenue,CAHD,Bed and Breakfast,Bed & Breakfast,Connolly & Callaghan Limited,422.80, 29-Apr-2022
1325,Revenue,CAHD,Bed and Breakfast,Bed & Breakfast,Connolly & Callaghan Limited,422.80, 29-Apr-2022
1326,Revenue,CAHD,Bed and Breakfast,Bed & Breakfast,Connolly & Callaghan Limited,548.80, 29-Apr-2022
1327,Revenue,CAHD,Bed and Breakfast,Bed & Breakfast,Connolly & Callaghan Limited,529.20, 29-Apr-2022
1328,Revenue,CAHD,Bed and Breakfast,Other Supplies & Services,Connolly & Callaghan Limited,597.80, 13-Apr-2022
1329,Revenue,CAHD,Bed and Breakfast,Bed & Breakfast,Connolly & Callaghan Limited,548.80, 29-Apr-2022
1330,Revenue,CAHD,Bed and Breakfast,Bed & Breakfast,Connolly & Callaghan Limited,422.80, 19-Apr-2022
1331,Revenue,CAHD,Bed and Breakfast,Bed & Breakfast,Connolly & Callaghan Limited,508.20, 19-Apr-2022
1332,Revenue,CAHD,Bed and Breakfast,Bed & Breakfast,Connolly & Callaghan Limited,477.40, 29-Apr-2022
1333,Revenue,CAHD,Bed and Breakfast,Bed & Breakfast,Connolly & Callaghan Limited,508.20, 14-Apr-2022
1334,Revenue,CAHD,Bed and Breakfast,Bed & Breakfast,Connolly & Callaghan Limited,522.27, 19-Apr-2022
1335,Revenue,CAHD,Bed and Breakfast,Bed & Breakfast,Connolly & Callaghan Limited,508.20, 13-Apr-2022
1336,Revenue,CAHD,Bed and Breakfast,Bed & Breakfast,Connolly & Callaghan Limited,427.00, 29-Apr-2022
1337,Revenue,CAHD,Bed and Breakfast,Bed & Breakfast,Connolly & Callaghan Limited,508.20, 13-Apr-2022
1338,Revenue,CAHD,Bed and Breakfast,Bed & Breakfast,Connolly & Callaghan Limited,422.80, 13-Apr-2022
1339,Revenue,CAHD,Bed and Breakfast,Bed & Breakfast,Connolly & Callaghan Limited,686.70, 20-Apr-2022
1340,Revenue,CAHD,Bed and Breakfast,Bed & Breakfast,Connolly & Callaghan Limited,478.80, 14-Apr-2022
1341,Revenue,CAHD,CSC - Care Leavers Independent Living,Adults - Family Support,Connolly & Callaghan Limited,436.80, 20-Apr-2022
1342,Revenue,CAHD,Bed and Breakfast,Bed & Breakfast,Connolly & Callaghan Limited,422.80, 28-Apr-2022
1343,Revenue,CAHD,Bed and Breakfast,Bed & Breakfast,Connolly & Callaghan Limited,508.20, 28-Apr-2022
1344,Revenue,CAHD,Bed and Breakfast,Bed & Breakfast,Connolly & Callaghan Limited,522.27, 29-Apr-2022
1345,Revenue,CAHD,Bed and Breakfast,Bed & Breakfast,Connolly & Callaghan Limited,508.20, 29-Apr-2022
1346,Revenue,CAHD,Bed and Breakfast,Bed & Breakfast,Connolly & Callaghan Limited,422.80, 29-Apr-2022
1347,Revenue,CAHD,Bed and Breakfast,Bed & Breakfast,Connolly & Callaghan Limited,686.70, 29-Apr-2022
1348,Revenue,CAHD,Bed and Breakfast,Bed & Breakfast,Connolly & Callaghan Limited,478.80, 29-Apr-2022
1349,Revenue,CAHD,Bed and Breakfast,Bed & Breakfast,Connolly & Callaghan Limited,3374.00, 19-Apr-2022
1350,Revenue,CAHD,North - Community based support,Non Residential Care Income,Individual,-234.90, 01-Apr-2022
1351,Revenue,CAHD,North - Community based support,Non Residential Care Income,Individual,-234.90, 14-Apr-2022
1352,Revenue,CAHD,North - Community based support,Non Residential Care Income,Individual,-234.90, 29-Apr-2022
1353,Revenue,CAHD,Independent Special Placements - Post 16,Other Private Contractors,Cotswold Chine School,24899.13, 08-Apr-2022
1354,Revenue,CAHD,Independent Special Placements - Pre 16,Other Private Contractors,Cotswold Chine School,26864.92, 08-Apr-2022
1355,Revenue,CAHD,Independent Special Placements - Pre 16,Other Private Contractors,Cotswold Chine School,26864.92, 11-Apr-2022
1356,Revenue,CAHD,Central - Commissioned Services,Permanent Nursing,Cotswold House Care Home,3484.32, 05-Apr-2022
1357,Revenue,CAHD,North - Community based support,Permanent Residential,Court House Residential C.H.,3400.00, 05-Apr-2022
1358,Revenue,CAHD,North - Community based support,Fees & Charges Income - General,Court House Residential C.H.,-663.59, 05-Apr-2022
1359,Revenue,CAHD,North - Community based support,Permanent Residential,Court House Retirement Home,3600.00, 05-Apr-2022
1360,Revenue,CAHD,North - Community based support,Fees & Charges Income - General,Court House Retirement Home,-829.75, 05-Apr-2022
1361,Revenue,CAHD,Covid  - Workforce capacity,Grants to Voluntary Bodies,Courtfield Healthcare Ltd,834.72, 06-Apr-2022
1362,Revenue,CAHD,Covid  - Workforce capacity,Grants to Voluntary Bodies,Courtfield Healthcare Ltd,1103.63, 06-Apr-2022
1363,Revenue,CAHD,"Drugs, Alcohol and Sexual Health",Other Small Contracts,Courtside Surgery,3189.98, 06-Apr-2022
1364,Revenue,CAHD,CSC - Fostering Carer Support,Advertising - General,Coventry City Council,874.59, 22-Apr-2022
1365,Revenue,CAHD,Childrens - Safeguarding Board,Training Expenses,Craft Training and Development,275.00, 11-Apr-2022
1366,Revenue,CAHD,Training - Adult Services,Training Expenses,Craft Training and Development,275.00, 11-Apr-2022
1367,Revenue,CAHD,Childrens - Safeguarding Board,Training Expenses,Craft Training and Development,1200.00, 11-Apr-2022
1368,Revenue,CAHD,Training - Adult Services,Training Expenses,Craft Training and Development,1200.00, 11-Apr-2022
1369,Revenue,CAHD,Childrens - Safeguarding Board,Training Expenses,Craft Training and Development,650.00, 11-Apr-2022
1370,Revenue,CAHD,Training - Adult Services,Training Expenses,Craft Training and Development,650.00, 11-Apr-2022
1371,Revenue,CAHD,Schools Specific Grant Income,Other Public Bodies,Craig Y Parc School,1369.00, 08-Apr-2022
1372,Revenue,CAHD,S28A cases,Permanent Residential,Creedy Court,10597.96, 05-Apr-2022
1373,Revenue,CAHD,S28A cases,Permanent Residential,Creedy Court,8904.92, 05-Apr-2022
1374,Revenue,CAHD,S28A cases,Fees & Charges Income - General,Creedy Court,-613.55, 05-Apr-2022
1375,Revenue,CAHD,S28A cases,Fees & Charges Income - General,Creedy Court,-613.55, 05-Apr-2022
1376,Revenue,CAHD,North - Community based support,Permanent Residential,Creedy Court,14054.00, 05-Apr-2022
1377,Revenue,CAHD,North - Community based support,Fees & Charges Income - General,Creedy Court,-428.90, 05-Apr-2022
1378,Revenue,CAHD,Supporting People Programme,Grants to Voluntary Bodies,Curo Housing Group,501.42, 06-Apr-2022
1379,Revenue,CAHD,Supporting People Programme,Grants to Voluntary Bodies,Curo Housing Group,501.42, 29-Apr-2022
1380,Revenue,CAHD,Central - Commissioned Services,Respite Care,Cygnet Healthcare Limited,0.00, 05-Apr-2022
1381,Revenue,CAHD,Central - Commissioned Services,Supported Living,Cygnet Healthcare Limited,3380.00, 05-Apr-2022
1382,Revenue,CAHD,South - Commissioned Services,Permanent Residential,Daneswood,12759.56, 05-Apr-2022
1383,Revenue,CAHD,South - Commissioned Services,Fees & Charges Income - General,Daneswood,-428.90, 05-Apr-2022
1384,Revenue,CAHD,North - Community based support,Permanent Residential,Daneswood,13579.68, 05-Apr-2022
1385,Revenue,CAHD,North - Community based support,Fees & Charges Income - General,Daneswood,-428.90, 05-Apr-2022
1386,Revenue,CAHD,South - Commissioned Services,Non Residential Care Income,Individual,640.80, 01-Apr-2022
1387,Revenue,CAHD,Learning Difficulties PSL,Rent,Individual,2400.00, 22-Apr-2022
1388,Revenue,CAHD,South - Commissioned Services,Day Care / Social Activities,Deafblind Uk,550.08, 21-Apr-2022
1389,Revenue,CAHD,Travel to School (HTST) - Special,Client Transport,Individual,584.10, 08-Apr-2022
1390,Revenue,CAHD,CSC - Age Related Allowances,Foster Parent Allowances,Individual,520.30, 08-Apr-2022
1391,Revenue,CAHD,CSC - Professional Fees Foster Carers,Children - Family Support,Individual,624.00, 08-Apr-2022
1392,Revenue,CAHD,CSC - Age Related Allowances,Foster Parent Allowances,Individual,282.00, 14-Apr-2022
1393,Revenue,CAHD,CSC - Professional Fees Foster Carers,Children - Family Support,Individual,336.00, 14-Apr-2022
1394,Revenue,CAHD,CSC - Age Related Allowances,Foster Parent Allowances,Individual,282.00, 22-Apr-2022
1395,Revenue,CAHD,CSC - Professional Fees Foster Carers,Children - Family Support,Individual,336.00, 22-Apr-2022
1396,Revenue,CAHD,CSC - Age Related Allowances,Foster Parent Allowances,Individual,282.00, 29-Apr-2022
1397,Revenue,CAHD,CSC - Professional Fees Foster Carers,Children - Family Support,Individual,340.00, 29-Apr-2022
1398,Revenue,CAHD,Central - Commissioned Services,Permanent Residential,Debt Recovery,4786.48, 05-Apr-2022
1399,Revenue,CAHD,Central - Commissioned Services,Permanent Residential,Debt Recovery,4326.88, 05-Apr-2022
1400,Revenue,CAHD,Central - Commissioned Services,Fees & Charges Income - General,Debt Recovery,-428.90, 05-Apr-2022
1401,Revenue,CAHD,Central - Commissioned Services,Fees & Charges Income - General,Debt Recovery,-613.55, 05-Apr-2022
1402,Revenue,CAHD,South - Commissioned Services,Permanent Residential,Debt Recovery,4422.88, 05-Apr-2022
1403,Revenue,CAHD,South - Commissioned Services,Fees & Charges Income - General,Debt Recovery,-428.90, 05-Apr-2022
1404,Revenue,CAHD,North - Community based support,Permanent Nursing,Debt Recovery,3822.52, 05-Apr-2022
1405,Revenue,CAHD,North - Community based support,Permanent Nursing,Debt Recovery,4642.48, 05-Apr-2022
1406,Revenue,CAHD,North - Community based support,Fees & Charges Income - General,Debt Recovery,-359.55, 05-Apr-2022
1407,Revenue,CAHD,North - Community based support,Fees & Charges Income - General,Debt Recovery,-428.90, 05-Apr-2022
1408,Revenue,CAHD,North - Community based support,Permanent Residential,Debt Recovery,3702.24, 05-Apr-2022
1409,Revenue,CAHD,North - Community based support,Permanent Nursing,Debt Recovery,4187.16, 05-Apr-2022
1410,Revenue,CAHD,North - Community based support,Permanent Nursing,Debt Recovery,5723.32, 05-Apr-2022
1411,Revenue,CAHD,North - Community based support,Permanent Nursing,Debt Recovery,3643.52, 05-Apr-2022
1412,Revenue,CAHD,North - Community based support,Permanent Nursing,Debt Recovery,5735.40, 05-Apr-2022
1413,Revenue,CAHD,North - Community based support,Fees & Charges Income - General,Debt Recovery,-503.58, 05-Apr-2022
1414,Revenue,CAHD,North - Community based support,Fees & Charges Income - General,Debt Recovery,-838.68, 05-Apr-2022
1415,Revenue,CAHD,North - Community based support,Fees & Charges Income - General,Debt Recovery,-428.90, 05-Apr-2022
1416,Revenue,CAHD,North - Community based support,Fees & Charges Income - General,Debt Recovery,-452.92, 05-Apr-2022
1417,Revenue,CAHD,North - Community based support,Fees & Charges Income - General,Debt Recovery,-428.90, 05-Apr-2022
1418,Revenue,CAHD,Jointly Funded H&SC Packages,Permanent Nursing,Debt Recovery,393.48, 05-Apr-2022
1419,Revenue,CAHD,South Glos Users in South Glos Homes,Permanent Nursing,Deerhurst Nursing Home,750.40, 05-Apr-2022
1420,Revenue,CAHD,South Glos Users in South Glos Homes,Permanent Nursing,Deerhurst Nursing Home,750.40, 05-Apr-2022
1421,Revenue,CAHD,South Glos Users in South Glos Homes,Permanent Nursing,Deerhurst Nursing Home,750.40, 05-Apr-2022
1422,Revenue,CAHD,South Glos Users in South Glos Homes,Permanent Nursing,Deerhurst Nursing Home,750.40, 05-Apr-2022
1423,Revenue,CAHD,South Glos Users in South Glos Homes,Permanent Nursing,Deerhurst Nursing Home,750.40, 05-Apr-2022
1424,Revenue,CAHD,South Glos Users in South Glos Homes,Permanent Nursing,Deerhurst Nursing Home,750.40, 05-Apr-2022
1425,Revenue,CAHD,South Glos Users in South Glos Homes,Permanent Nursing,Deerhurst Nursing Home,750.40, 05-Apr-2022
1426,Revenue,CAHD,South Glos Users in South Glos Homes,Permanent Nursing,Deerhurst Nursing Home,750.40, 05-Apr-2022
1427,Revenue,CAHD,South Glos Users in South Glos Homes,Permanent Nursing,Deerhurst Nursing Home,750.40, 05-Apr-2022
1428,Revenue,CAHD,South Glos Users in South Glos Homes,Permanent Nursing,Deerhurst Nursing Home,750.40, 05-Apr-2022
1429,Revenue,CAHD,South Glos Users in South Glos Homes,Permanent Nursing,Deerhurst Nursing Home,750.40, 05-Apr-2022
1430,Revenue,CAHD,South Glos Users in South Glos Homes,Permanent Nursing,Deerhurst Nursing Home,750.40, 05-Apr-2022
1431,Revenue,CAHD,South Glos Users in South Glos Homes,Permanent Nursing,Deerhurst Nursing Home,750.40, 05-Apr-2022
1432,Revenue,CAHD,South Glos Users in South Glos Homes,Permanent Nursing,Deerhurst Nursing Home,750.40, 05-Apr-2022
1433,Revenue,CAHD,South Glos Users in South Glos Homes,Permanent Nursing,Deerhurst Nursing Home,750.40, 05-Apr-2022
1434,Revenue,CAHD,South Glos Users in South Glos Homes,Permanent Nursing,Deerhurst Nursing Home,750.40, 05-Apr-2022
1435,Revenue,CAHD,South Glos Users in South Glos Homes,Permanent Nursing,Deerhurst Nursing Home,750.40, 05-Apr-2022
1436,Revenue,CAHD,South Glos Users in South Glos Homes,Permanent Nursing,Deerhurst Nursing Home,750.40, 05-Apr-2022
1437,Revenue,CAHD,South Glos Users in South Glos Homes,Permanent Nursing,Deerhurst Nursing Home,750.40, 05-Apr-2022
1438,Revenue,CAHD,South Glos Users in South Glos Homes,Permanent Nursing,Deerhurst Nursing Home,750.40, 05-Apr-2022
1439,Revenue,CAHD,South Glos Users in South Glos Homes,Permanent Nursing,Deerhurst Nursing Home,750.40, 05-Apr-2022
1440,Revenue,CAHD,South Glos Users in South Glos Homes,Permanent Nursing,Deerhurst Nursing Home,750.40, 05-Apr-2022
1441,Revenue,CAHD,South Glos Users in South Glos Homes,Permanent Nursing,Deerhurst Nursing Home,750.40, 05-Apr-2022
1442,Revenue,CAHD,South Glos Users in South Glos Homes,Permanent Nursing,Deerhurst Nursing Home,750.40, 05-Apr-2022
1443,Revenue,CAHD,South Glos Users in South Glos Homes,Permanent Nursing,Deerhurst Nursing Home,750.40, 05-Apr-2022
1444,Revenue,CAHD,South Glos Users in South Glos Homes,Permanent Nursing,Deerhurst Nursing Home,750.40, 05-Apr-2022
1445,Revenue,CAHD,South Glos Users in South Glos Homes,Permanent Nursing,Deerhurst Nursing Home,750.40, 05-Apr-2022
1446,Revenue,CAHD,South Glos Users in South Glos Homes,Permanent Nursing,Deerhurst Nursing Home,750.40, 05-Apr-2022
1447,Revenue,CAHD,South Glos Users in South Glos Homes,Permanent Nursing,Deerhurst Nursing Home,750.40, 05-Apr-2022
1448,Revenue,CAHD,South Glos Users in South Glos Homes,Permanent Nursing,Deerhurst Nursing Home,750.40, 05-Apr-2022
1449,Revenue,CAHD,South Glos Users in South Glos Homes,Permanent Nursing,Deerhurst Nursing Home,750.40, 05-Apr-2022
1450,Revenue,CAHD,South Glos Users in South Glos Homes,Permanent Nursing,Deerhurst Nursing Home,750.40, 05-Apr-2022
1451,Revenue,CAHD,South Glos Users in South Glos Homes,Permanent Nursing,Deerhurst Nursing Home,750.40, 05-Apr-2022
1452,Revenue,CAHD,South Glos Users in South Glos Homes,Permanent Nursing,Deerhurst Nursing Home,750.40, 05-Apr-2022
1453,Revenue,CAHD,South Glos Users in South Glos Homes,Permanent Nursing,Deerhurst Nursing Home,750.40, 05-Apr-2022
1454,Revenue,CAHD,South Glos Users in South Glos Homes,Permanent Nursing,Deerhurst Nursing Home,750.40, 05-Apr-2022
1455,Revenue,CAHD,South Glos Users in South Glos Homes,Permanent Nursing,Deerhurst Nursing Home,750.40, 05-Apr-2022
1456,Revenue,CAHD,South Glos Users in South Glos Homes,Permanent Nursing,Deerhurst Nursing Home,750.40, 05-Apr-2022
1457,Revenue,CAHD,South Glos Users in South Glos Homes,Permanent Nursing,Deerhurst Nursing Home,750.40, 05-Apr-2022
1458,Revenue,CAHD,South - Commissioned Services,Permanent Nursing,Deerhurst Nursing Home,3970.68, 05-Apr-2022
1459,Revenue,CAHD,South - Commissioned Services,Permanent Nursing,Deerhurst Nursing Home,4501.20, 05-Apr-2022
1460,Revenue,CAHD,South - Commissioned Services,Permanent Nursing,Deerhurst Nursing Home,4762.80, 05-Apr-2022
1461,Revenue,CAHD,South - Commissioned Services,Permanent Nursing,Deerhurst Nursing Home,-24000.00, 05-Apr-2022
1462,Revenue,CAHD,South - Commissioned Services,Permanent Nursing,Deerhurst Nursing Home,4182.12, 05-Apr-2022
1463,Revenue,CAHD,South - Commissioned Services,Permanent Nursing,Deerhurst Nursing Home,4180.04, 05-Apr-2022
1464,Revenue,CAHD,South - Commissioned Services,Permanent Nursing,Deerhurst Nursing Home,4060.32, 05-Apr-2022
1465,Revenue,CAHD,South - Commissioned Services,Permanent Nursing,Deerhurst Nursing Home,-340.00, 05-Apr-2022
1466,Revenue,CAHD,South - Commissioned Services,Permanent Nursing,Deerhurst Nursing Home,4760.00, 05-Apr-2022
1467,Revenue,CAHD,South - Commissioned Services,Permanent Nursing,Deerhurst Nursing Home,4760.00, 05-Apr-2022
1468,Revenue,CAHD,South - Commissioned Services,Permanent Nursing,Deerhurst Nursing Home,4762.80, 05-Apr-2022
1469,Revenue,CAHD,South - Commissioned Services,Fees & Charges Income - General,Deerhurst Nursing Home,-739.41, 05-Apr-2022
1470,Revenue,CAHD,South - Commissioned Services,Fees & Charges Income - General,Deerhurst Nursing Home,-618.56, 05-Apr-2022
1471,Revenue,CAHD,South - Commissioned Services,Fees & Charges Income - General,Deerhurst Nursing Home,-613.55, 05-Apr-2022
1472,Revenue,CAHD,South - Commissioned Services,Fees & Charges Income - General,Deerhurst Nursing Home,5763.80, 05-Apr-2022
1473,Revenue,CAHD,South - Commissioned Services,Fees & Charges Income - General,Deerhurst Nursing Home,-1211.36, 05-Apr-2022
1474,Revenue,CAHD,South - Commissioned Services,Fees & Charges Income - General,Deerhurst Nursing Home,-1027.77, 05-Apr-2022
1475,Revenue,CAHD,South - Commissioned Services,Fees & Charges Income - General,Deerhurst Nursing Home,-1205.10, 05-Apr-2022
1476,Revenue,CAHD,South - Commissioned Services,Fees & Charges Income - General,Deerhurst Nursing Home,62.29, 05-Apr-2022
1477,Revenue,CAHD,South - Commissioned Services,Fees & Charges Income - General,Deerhurst Nursing Home,-613.55, 05-Apr-2022
1478,Revenue,CAHD,South - Commissioned Services,Fees & Charges Income - General,Deerhurst Nursing Home,-613.55, 05-Apr-2022
1479,Revenue,CAHD,South - Commissioned Services,Fees & Charges Income - General,Deerhurst Nursing Home,-1063.63, 05-Apr-2022
1480,Revenue,CAHD,South - Commissioned Services,Day Care / Social Activities,Deerhurst Nursing Home,581.28, 05-Apr-2022
1481,Revenue,CAHD,South - bed purchasing and direct  payments,Fees & Charges Income - General,Deerhurst Nursing Home,7799.04, 05-Apr-2022
1482,Revenue,CAHD,South - Commissioned Services,Permanent Residential,Deerhurst Nursing Home,4129.00, 05-Apr-2022
1483,Revenue,CAHD,South - Commissioned Services,Permanent Residential,Deerhurst Nursing Home,3891.20, 05-Apr-2022
1484,Revenue,CAHD,South - Commissioned Services,Permanent Nursing,Deerhurst Nursing Home,4006.00, 05-Apr-2022
1485,Revenue,CAHD,South - Commissioned Services,Permanent Nursing,Deerhurst Nursing Home,4129.40, 05-Apr-2022
1486,Revenue,CAHD,South - Commissioned Services,Permanent Nursing,Deerhurst Nursing Home,4596.36, 05-Apr-2022
1487,Revenue,CAHD,South - Commissioned Services,Permanent Nursing,Deerhurst Nursing Home,4006.00, 05-Apr-2022
1488,Revenue,CAHD,South - Commissioned Services,Permanent Nursing,Deerhurst Nursing Home,1620.00, 05-Apr-2022
1489,Revenue,CAHD,South - Commissioned Services,Fees & Charges Income - General,Deerhurst Nursing Home,-1316.58, 05-Apr-2022
1490,Revenue,CAHD,South - Commissioned Services,Fees & Charges Income - General,Deerhurst Nursing Home,-220.63, 05-Apr-2022
1491,Revenue,CAHD,South - Commissioned Services,Fees & Charges Income - General,Deerhurst Nursing Home,-841.75, 05-Apr-2022
1492,Revenue,CAHD,South - Commissioned Services,Fees & Charges Income - General,Deerhurst Nursing Home,-613.55, 05-Apr-2022
1493,Revenue,CAHD,South - Commissioned Services,Fees & Charges Income - General,Deerhurst Nursing Home,16132.85, 05-Apr-2022
1494,Revenue,CAHD,South - Commissioned Services,Fees & Charges Income - General,Deerhurst Nursing Home,-923.85, 05-Apr-2022
1495,Revenue,CAHD,North - Community based support,Permanent Nursing,Deerhurst Nursing Home,4140.00, 05-Apr-2022
1496,Revenue,CAHD,North - Community based support,Fees & Charges Income - General,Deerhurst Nursing Home,-629.55, 05-Apr-2022
1497,Revenue,CAHD,South - Commissioned Services,Permanent Nursing,Deerhurst Nursing Home,3965.12, 05-Apr-2022
1498,Revenue,CAHD,South - Commissioned Services,Fees & Charges Income - General,Deerhurst Nursing Home,-254.00, 05-Apr-2022
1499,Revenue,CAHD,North - Community based support,Permanent Nursing,Deerhurst Nursing Home,3891.20, 05-Apr-2022
1500,Revenue,CAHD,North - Community based support,Fees & Charges Income - General,Deerhurst Nursing Home,-1046.24, 05-Apr-2022
1501,Revenue,CAHD,Central - Commissioned Services,Permanent Residential,Deerhurst Nursing Home,10621.12, 05-Apr-2022
1502,Revenue,CAHD,North - Community based support,Permanent Residential,Deerhurst Nursing Home,8699.20, 05-Apr-2022
1503,Revenue,CAHD,North - Community based support,Fees & Charges Income - General,Deerhurst Nursing Home,-428.90, 05-Apr-2022
1504,Revenue,CAHD,CSC - Section 17 0-25,Preventative Assistance,Descare Ltd,2925.00, 20-Apr-2022
1505,Revenue,CAHD,Learning Difficulties Development Fund,Other Supplies & Services,Design 4 Life Ltd,1800.00, 22-Apr-2022
1506,Revenue,CAHD,Central - Commissioned Services,Day Care / Social Activities,Design House,3060.40, 05-Apr-2022
1507,Revenue,CAHD,South - Commissioned Services,Day Care / Social Activities,Design House,538.88, 05-Apr-2022
1508,Revenue,CAHD,18-25 Year Olds,Respite Care,Design House,0.00, 05-Apr-2022
1509,Revenue,CAHD,18-25 Year Olds,Respite Care,Design House,0.00, 05-Apr-2022
1510,Revenue,CAHD,18-25 Year Olds,Respite Care,Design House,0.00, 05-Apr-2022
1511,Revenue,CAHD,18-25 Year Olds,Respite Care,Design House,0.00, 05-Apr-2022
1512,Revenue,CAHD,18-25 Year Olds,Supported Living,Design House,4094.76, 05-Apr-2022
1513,Revenue,CAHD,18-25 Year Olds,Supported Living,Design House,4094.76, 05-Apr-2022
1514,Revenue,CAHD,18-25 Year Olds,Supported Living,Design House,3083.24, 05-Apr-2022
1515,Revenue,CAHD,18-25 Year Olds,Supported Living,Design House,3107.04, 05-Apr-2022
1516,Revenue,CAHD,South - Commissioned Services,Respite Care,Design House,0.00, 05-Apr-2022
1517,Revenue,CAHD,South - Commissioned Services,Respite Care,Design House,0.00, 05-Apr-2022
1518,Revenue,CAHD,South - Commissioned Services,Respite Care,Design House,0.00, 05-Apr-2022
1519,Revenue,CAHD,South - Commissioned Services,Respite Care,Design House,0.00, 05-Apr-2022
1520,Revenue,CAHD,South - Commissioned Services,Respite Care,Design House,0.00, 05-Apr-2022
1521,Revenue,CAHD,South - Commissioned Services,Respite Care,Design House,0.00, 05-Apr-2022
1522,Revenue,CAHD,South - Commissioned Services,Respite Care,Design House,0.00, 05-Apr-2022
1523,Revenue,CAHD,South - Commissioned Services,Respite Care,Design House,0.00, 05-Apr-2022
1524,Revenue,CAHD,South - Commissioned Services,Respite Care,Design House,0.00, 05-Apr-2022
1525,Revenue,CAHD,South - Commissioned Services,Respite Care,Design House,0.00, 05-Apr-2022
1526,Revenue,CAHD,South - Commissioned Services,Respite Care,Design House,0.00, 05-Apr-2022
1527,Revenue,CAHD,South - Commissioned Services,Respite Care,Design House,0.00, 05-Apr-2022
1528,Revenue,CAHD,South - Commissioned Services,Respite Care,Design House,0.00, 05-Apr-2022
1529,Revenue,CAHD,South - Commissioned Services,Supported Living,Design House,2753.28, 05-Apr-2022
1530,Revenue,CAHD,South - Commissioned Services,Supported Living,Design House,2653.28, 05-Apr-2022
1531,Revenue,CAHD,South - Commissioned Services,Supported Living,Design House,2355.60, 05-Apr-2022
1532,Revenue,CAHD,South - Commissioned Services,Supported Living,Design House,2753.28, 05-Apr-2022
1533,Revenue,CAHD,South - Commissioned Services,Supported Living,Design House,3196.12, 05-Apr-2022
1534,Revenue,CAHD,South - Commissioned Services,Supported Living,Design House,2651.32, 05-Apr-2022
1535,Revenue,CAHD,South - Commissioned Services,Supported Living,Design House,2776.88, 05-Apr-2022
1536,Revenue,CAHD,South - Commissioned Services,Supported Living,Design House,3051.76, 05-Apr-2022
1537,Revenue,CAHD,South - Commissioned Services,Supported Living,Design House,2242.76, 05-Apr-2022
1538,Revenue,CAHD,South - Commissioned Services,Supported Living,Design House,1978.92, 05-Apr-2022
1539,Revenue,CAHD,South - Commissioned Services,Supported Living,Design House,4494.32, 05-Apr-2022
1540,Revenue,CAHD,South - Commissioned Services,Supported Living,Design House,2355.60, 05-Apr-2022
1541,Revenue,CAHD,South - Commissioned Services,Supported Living,Design House,2625.96, 05-Apr-2022
1542,Revenue,CAHD,North - Community based support,Respite Care,Design House,0.00, 05-Apr-2022
1543,Revenue,CAHD,North - Community based support,Supported Living,Design House,3434.00, 05-Apr-2022
1544,Revenue,CAHD,Bed and Breakfast,Bed & Breakfast,Designz Limited,882.00, 11-Apr-2022
1545,Revenue,CAHD,Bed and Breakfast,Bed & Breakfast,Designz Limited,616.00, 26-Apr-2022
1546,Revenue,CAHD,Bed and Breakfast,Bed & Breakfast,Designz Limited,1736.00, 11-Apr-2022
1547,Revenue,CAHD,Contain Outbreak Mgmt Fund,Project Funding,Dignifi Limited,28625.00, 22-Apr-2022
1548,Revenue,CAHD,School Improvement and Support,Premises Hire,Dings Crusaders RFC,853.33, 14-Apr-2022
1549,Revenue,CAHD,Training - Adult Services,Training Expenses,Do The Write Thing,1700.00, 08-Apr-2022
1550,Revenue,CAHD,North - Community based support,Permanent Nursing,Douglas House,3599.80, 05-Apr-2022
1551,Revenue,CAHD,North - Community based support,Fees & Charges Income - General,Douglas House,-359.58, 05-Apr-2022
1552,Revenue,CAHD,"Drugs, Alcohol and Sexual Health",Other Small Contracts,Downend Health Group,1651.78, 06-Apr-2022
1553,Revenue,CAHD,Statemented Support Academies,Other Public Bodies,Downend School,1544.42, 25-Apr-2022
1554,Revenue,CAHD,Statemented Support Academies,Other Public Bodies,Downend School,660.24, 25-Apr-2022
1555,Revenue,CAHD,Statemented Support Academies,Other Public Bodies,Downend School,1025.73, 25-Apr-2022
1556,Revenue,CAHD,Statemented Support Academies,Other Public Bodies,Downend School,1108.26, 25-Apr-2022
1557,Revenue,CAHD,Statemented Support Academies,Other Public Bodies,Downend School,554.13, 25-Apr-2022
1558,Revenue,CAHD,Statemented Support Academies,Other Public Bodies,Downend School,666.00, 25-Apr-2022
1559,Revenue,CAHD,Statemented Support Academies,Other Public Bodies,Downend School,822.83, 25-Apr-2022
1560,Revenue,CAHD,Statemented Support Academies,Other Public Bodies,Downend School,1079.67, 25-Apr-2022
1561,Revenue,CAHD,Statemented Support Academies,Other Public Bodies,Downend School,1438.38, 25-Apr-2022
1562,Revenue,CAHD,Statemented Support Academies,Other Public Bodies,Downend School,1709.55, 25-Apr-2022
1563,Revenue,CAHD,Statemented Support Academies,Other Public Bodies,Downend School,1192.50, 25-Apr-2022
1564,Revenue,CAHD,Statemented Support Academies,Other Public Bodies,Downend School,1544.49, 25-Apr-2022
1565,Revenue,CAHD,Statemented Support Academies,Other Public Bodies,Downend School,966.92, 25-Apr-2022
1566,Revenue,CAHD,Social Lettings Agency,Rent,Individual,822.73, 22-Apr-2022
1567,Revenue,CAHD,Social Lettings Agency,Fees & Charges Income - General,Individual,-65.82, 22-Apr-2022
1568,Revenue,CAHD,Independent Special Placements - Travel,Client Transport,Durham County Council,3650.00, 20-Apr-2022
1569,Revenue,CAHD,Independent Special Placements - Travel,Client Transport,Durham County Council,7634.00, 29-Apr-2022
1570,Revenue,CAHD,Independent Special Placements - Pre 16,Other Private Contractors,Durham School,11156.95, 21-Apr-2022
1571,Revenue,CAHD,Independent Special Placements - Pre 16,Other Private Contractors,Durham School,11156.95, 21-Apr-2022
1572,Revenue,CAHD,CSC - Care Leavers Independent Living,Adults - Family Support,Dynamic Youth Support Services,17271.34, 11-Apr-2022
1573,Revenue,CAHD,CSC - Care Leavers Support Costs,"Provisions (Food, etc)",Individual,550.00, 08-Apr-2022
1574,Revenue,CAHD,CSC - Age Related Allowances,Foster Parent Allowances,Individual,173.00, 01-Apr-2022
1575,Revenue,CAHD,CSC - Professional Fees Foster Carers,Fostering Plus Enhanced Fee,Individual,1327.00, 01-Apr-2022
1576,Revenue,CAHD,CSC - Asylum Seekers - Unaccompanied,Foster Parent Allowances,Individual,173.00, 01-Apr-2022
1577,Revenue,CAHD,CSC - Asylum Seekers - Unaccompanied,Band 3 Foster Care,Individual,241.00, 01-Apr-2022
1578,Revenue,CAHD,CSC - Age Related Allowances,Foster Parent Allowances,Individual,178.14, 08-Apr-2022
1579,Revenue,CAHD,CSC - Professional Fees Foster Carers,Fostering Plus Enhanced Fee,Individual,1327.00, 08-Apr-2022
1580,Revenue,CAHD,CSC - Asylum Seekers - Unaccompanied,Foster Parent Allowances,Individual,178.14, 08-Apr-2022
1581,Revenue,CAHD,CSC - Asylum Seekers - Unaccompanied,Band 3 Foster Care,Individual,243.57, 08-Apr-2022
1582,Revenue,CAHD,CSC - Age Related Allowances,Foster Parent Allowances,Individual,177.00, 14-Apr-2022
1583,Revenue,CAHD,CSC - Professional Fees Foster Carers,Fostering Plus Enhanced Fee,Individual,1327.00, 14-Apr-2022
1584,Revenue,CAHD,CSC - Asylum Seekers - Unaccompanied,Foster Parent Allowances,Individual,177.00, 14-Apr-2022
1585,Revenue,CAHD,CSC - Asylum Seekers - Unaccompanied,Band 3 Foster Care,Individual,243.00, 14-Apr-2022
1586,Revenue,CAHD,CSC - Age Related Allowances,Foster Parent Allowances,Individual,177.00, 22-Apr-2022
1587,Revenue,CAHD,CSC - Professional Fees Foster Carers,Fostering Plus Enhanced Fee,Individual,1327.00, 22-Apr-2022
1588,Revenue,CAHD,CSC - Asylum Seekers - Unaccompanied,Foster Parent Allowances,Individual,177.00, 22-Apr-2022
1589,Revenue,CAHD,CSC - Asylum Seekers - Unaccompanied,Band 3 Foster Care,Individual,243.00, 22-Apr-2022
1590,Revenue,CAHD,CSC - Age Related Allowances,Foster Parent Allowances,Individual,177.00, 29-Apr-2022
1591,Revenue,CAHD,CSC - Age Related Allowances,Respite Care,Individual,414.00, 29-Apr-2022
1592,Revenue,CAHD,CSC - Professional Fees Foster Carers,Respite Care,Individual,486.00, 29-Apr-2022
1593,Revenue,CAHD,CSC - Professional Fees Foster Carers,Fostering Plus Enhanced Fee,Individual,1327.00, 29-Apr-2022
1594,Revenue,CAHD,CSC - Asylum Seekers - Unaccompanied,Foster Parent Allowances,Individual,177.00, 29-Apr-2022
1595,Revenue,CAHD,CSC - Asylum Seekers - Unaccompanied,Band 3 Foster Care,Individual,243.00, 29-Apr-2022
1596,Revenue,CAHD,North - Community based support,Permanent Residential,East Court,2763.56, 05-Apr-2022
1597,Revenue,CAHD,North - Community based support,Fees & Charges Income - General,East Court,-428.90, 05-Apr-2022
1598,Revenue,CAHD,Business Support Badminton Road,Premises Hire,Eastwood Park Limited,475.00, 06-Apr-2022
1599,Revenue,CAHD,Family and Young People Support North,"Holidays, Outings & Visits",Eastwood Park Limited,633.33, 14-Apr-2022
1600,Revenue,CAHD,CSC - Asylum Seekers - Unaccompanied,Independent Living,Eclipse Properties Limited,5940.00, 08-Apr-2022
1601,Revenue,CAHD,CSC - Asylum Seekers - Unaccompanied,Independent Living,Eclipse Properties Limited,5940.00, 29-Apr-2022
1602,Revenue,CAHD,CSC - Asylum Seekers - Unaccompanied,Independent Living,Eclipse Properties Limited,5940.00, 08-Apr-2022
1603,Revenue,CAHD,CSC - Asylum Seekers - Unaccompanied,Independent Living,Eclipse Properties Limited,5940.00, 29-Apr-2022
1604,Revenue,CAHD,Training - Adult Services,Training Expenses,Edge Training & Consultancy Limited,875.00, 29-Apr-2022
1605,Revenue,CAHD,Central - Commissioned Services,Permanent Residential,Edgemont House Ltd,3200.00, 05-Apr-2022
1606,Revenue,CAHD,Central - Commissioned Services,Fees & Charges Income - General,Edgemont House Ltd,-844.60, 05-Apr-2022
1607,Revenue,CAHD,South - Commissioned Services,Permanent Residential,Edgemont House Ltd,3273.60, 05-Apr-2022
1608,Revenue,CAHD,South - Commissioned Services,Permanent Residential,Edgemont House Ltd,3339.08, 05-Apr-2022
1609,Revenue,CAHD,South - Commissioned Services,Permanent Residential,Edgemont House Ltd,3130.40, 05-Apr-2022
1610,Revenue,CAHD,South - Commissioned Services,Permanent Residential,Edgemont House Ltd,3000.00, 05-Apr-2022
1611,Revenue,CAHD,South - Commissioned Services,Permanent Residential,Edgemont House Ltd,3200.00, 05-Apr-2022
1612,Revenue,CAHD,South - Commissioned Services,Fees & Charges Income - General,Edgemont House Ltd,-1650.73, 05-Apr-2022
1613,Revenue,CAHD,South - Commissioned Services,Fees & Charges Income - General,Edgemont House Ltd,-639.34, 05-Apr-2022
1614,Revenue,CAHD,South - Commissioned Services,Fees & Charges Income - General,Edgemont House Ltd,-3130.40, 05-Apr-2022
1615,Revenue,CAHD,South - Commissioned Services,Fees & Charges Income - General,Edgemont House Ltd,-928.94, 05-Apr-2022
1616,Revenue,CAHD,South - Commissioned Services,Fees & Charges Income - General,Edgemont House Ltd,-987.93, 05-Apr-2022
1617,Revenue,CAHD,North - Community based support,Respite Planned - Residential,Edgemont House Ltd,10977.82, 05-Apr-2022
1618,Revenue,CAHD,South Glos Users in South Glos Homes,Permanent Nursing,Edgemont View Ltd,750.40, 05-Apr-2022
1619,Revenue,CAHD,South Glos Users in South Glos Homes,Permanent Nursing,Edgemont View Ltd,750.40, 05-Apr-2022
1620,Revenue,CAHD,South Glos Users in South Glos Homes,Permanent Nursing,Edgemont View Ltd,750.40, 05-Apr-2022
1621,Revenue,CAHD,South Glos Users in South Glos Homes,Permanent Nursing,Edgemont View Ltd,750.40, 05-Apr-2022
1622,Revenue,CAHD,South Glos Users in South Glos Homes,Permanent Nursing,Edgemont View Ltd,750.40, 05-Apr-2022
1623,Revenue,CAHD,South Glos Users in South Glos Homes,Permanent Nursing,Edgemont View Ltd,750.40, 05-Apr-2022
1624,Revenue,CAHD,South Glos Users in South Glos Homes,Permanent Nursing,Edgemont View Ltd,750.40, 05-Apr-2022
1625,Revenue,CAHD,South Glos Users in South Glos Homes,Permanent Nursing,Edgemont View Ltd,750.40, 05-Apr-2022
1626,Revenue,CAHD,South Glos Users in South Glos Homes,Permanent Nursing,Edgemont View Ltd,750.40, 05-Apr-2022
1627,Revenue,CAHD,South Glos Users in South Glos Homes,Permanent Nursing,Edgemont View Ltd,750.40, 05-Apr-2022
1628,Revenue,CAHD,South Glos Users in South Glos Homes,Permanent Nursing,Edgemont View Ltd,750.40, 05-Apr-2022
1629,Revenue,CAHD,South Glos Users in South Glos Homes,Permanent Nursing,Edgemont View Ltd,750.40, 05-Apr-2022
1630,Revenue,CAHD,South Glos Users in South Glos Homes,Permanent Nursing,Edgemont View Ltd,750.40, 05-Apr-2022
1631,Revenue,CAHD,South Glos Users in South Glos Homes,Permanent Nursing,Edgemont View Ltd,5065.20, 05-Apr-2022
1632,Revenue,CAHD,South Glos Users in South Glos Homes,Permanent Nursing,Edgemont View Ltd,750.40, 05-Apr-2022
1633,Revenue,CAHD,Central - Commissioned Services,Respite Planned - Nursing,Edgemont View Ltd,1157.14, 05-Apr-2022
1634,Revenue,CAHD,South - Commissioned Services,Permanent Nursing,Edgemont View Ltd,3739.76, 05-Apr-2022
1635,Revenue,CAHD,South - Commissioned Services,Permanent Nursing,Edgemont View Ltd,3580.52, 05-Apr-2022
1636,Revenue,CAHD,South - Commissioned Services,Permanent Nursing,Edgemont View Ltd,3478.20, 05-Apr-2022
1637,Revenue,CAHD,South - Commissioned Services,Permanent Nursing,Edgemont View Ltd,3547.76, 05-Apr-2022
1638,Revenue,CAHD,South - Commissioned Services,Permanent Nursing,Edgemont View Ltd,3478.20, 05-Apr-2022
1639,Revenue,CAHD,South - Commissioned Services,Permanent Nursing,Edgemont View Ltd,4250.40, 05-Apr-2022
1640,Revenue,CAHD,South - Commissioned Services,Permanent Nursing,Edgemont View Ltd,3682.80, 05-Apr-2022
1641,Revenue,CAHD,South - Commissioned Services,Permanent Nursing,Edgemont View Ltd,3580.52, 05-Apr-2022
1642,Revenue,CAHD,South - Commissioned Services,Permanent Nursing,Edgemont View Ltd,3547.76, 05-Apr-2022
1643,Revenue,CAHD,South - Commissioned Services,Permanent Nursing,Edgemont View Ltd,3500.00, 05-Apr-2022
1644,Revenue,CAHD,South - Commissioned Services,Fees & Charges Income - General,Edgemont View Ltd,-726.42, 05-Apr-2022
1645,Revenue,CAHD,South - Commissioned Services,Fees & Charges Income - General,Edgemont View Ltd,-670.32, 05-Apr-2022
1646,Revenue,CAHD,South - Commissioned Services,Fees & Charges Income - General,Edgemont View Ltd,-686.26, 05-Apr-2022
1647,Revenue,CAHD,South - Commissioned Services,Fees & Charges Income - General,Edgemont View Ltd,-828.07, 05-Apr-2022
1648,Revenue,CAHD,South - Commissioned Services,Fees & Charges Income - General,Edgemont View Ltd,-1060.04, 05-Apr-2022
1649,Revenue,CAHD,South - Commissioned Services,Fees & Charges Income - General,Edgemont View Ltd,-1132.41, 05-Apr-2022
1650,Revenue,CAHD,South - Commissioned Services,Fees & Charges Income - General,Edgemont View Ltd,-520.00, 05-Apr-2022
1651,Revenue,CAHD,South - Commissioned Services,Fees & Charges Income - General,Edgemont View Ltd,-613.55, 05-Apr-2022
1652,Revenue,CAHD,KS2 Moderation,Other Public Bodies,Educate Together Academy Trust,900.00, 08-Apr-2022
1653,Revenue,CAHD,Training - Adult Services,Training Expenses,EG People Development,3610.90, 14-Apr-2022
1654,Revenue,CAHD,CSC - Special Guardianship Orders,Special Payments,Individual,668.29, 14-Apr-2022
1655,Revenue,CAHD,Planning and Partnerships Procurement,Other Supplies & Services,Eldercare,450.00, 13-Apr-2022
1656,Revenue,CAHD,CSC - Post Ofsted Implementation,Other Supplies & Services,Elia International Ltd,5840.00, 01-Apr-2022
1657,Revenue,CAHD,CSC - Post Ofsted Implementation,Other Supplies & Services,Elia International Ltd,5840.00, 25-Apr-2022
1658,Revenue,CAHD,Next Steps Accommodation Programme,Other Supplies & Services,Elim Housing Association Limited,44506.00, 13-Apr-2022
1659,Revenue,CAHD,Supporting People Programme,Grants to Voluntary Bodies,Elim Housing Association Limited,5522.83, 06-Apr-2022
1660,Revenue,CAHD,Supporting People Programme,Grants to Voluntary Bodies,Elim Housing Association Limited,5522.83, 29-Apr-2022
1661,Revenue,CAHD,Social Lettings Agency,Rent,Individual,1321.36, 13-Apr-2022
1662,Revenue,CAHD,Social Lettings Agency,Fees & Charges Income - General,Individual,-79.30, 13-Apr-2022
1663,Revenue,CAHD,North - Community based support,Permanent Residential,Ellsworth House,10016.24, 05-Apr-2022
1664,Revenue,CAHD,North - Community based support,Fees & Charges Income - General,Ellsworth House,-428.90, 05-Apr-2022
1665,Revenue,CAHD,Placements OLA Special Schools and RB,Other L.A.s - General,Elmfield School for Deaf Children,1227.13, 26-Apr-2022
1666,Revenue,CAHD,Placements OLA Special Schools and RB,Other L.A.s - General,Elmfield School for Deaf Children,1227.13, 26-Apr-2022
1667,Revenue,CAHD,Placements OLA Special Schools and RB,Other L.A.s - General,Elmfield School for Deaf Children,1227.13, 26-Apr-2022
1668,Revenue,CAHD,Placements OLA Special Schools and RB,Other L.A.s - General,Elmfield School for Deaf Children,766.84, 26-Apr-2022
1669,Revenue,CAHD,Placements OLA Special Schools and RB,Other L.A.s - General,Elmfield School for Deaf Children,1227.13, 26-Apr-2022
1670,Revenue,CAHD,Placements OLA Special Schools and RB,Other L.A.s - General,Elmfield School for Deaf Children,1227.13, 26-Apr-2022
1671,Revenue,CAHD,CSC - Vinney Green Secure Unit,Training Expenses,Elysium Healthcare Ltd,790.00, 07-Apr-2022
1672,Revenue,CAHD,"Drugs, Alcohol and Sexual Health",Other Small Contracts,Emersons Green Medical Centre,1083.98, 06-Apr-2022
1673,Revenue,CAHD,CSC - Age Related Allowances,Foster Parent Allowances,Individual,202.00, 01-Apr-2022
1674,Revenue,CAHD,CSC - Professional Fees Foster Carers,Band 1 Foster Care,Individual,1008.00, 01-Apr-2022
1675,Revenue,CAHD,CSC - Age Related Allowances,Foster Parent Allowances,Individual,208.43, 08-Apr-2022
1676,Revenue,CAHD,CSC - Professional Fees Foster Carers,Band 1 Foster Care,Individual,338.57, 08-Apr-2022
1677,Revenue,CAHD,CSC - Age Related Allowances,Foster Parent Allowances,Individual,207.00, 14-Apr-2022
1678,Revenue,CAHD,CSC - Professional Fees Foster Carers,Band 1 Foster Care,Individual,338.00, 14-Apr-2022
1679,Revenue,CAHD,CSC - Age Related Allowances,Foster Parent Allowances,Individual,207.00, 22-Apr-2022
1680,Revenue,CAHD,CSC - Professional Fees Foster Carers,Band 1 Foster Care,Individual,338.00, 22-Apr-2022
1681,Revenue,CAHD,CSC - CLA Placements,Personal Needs of Clients,Individual,39.95, 29-Apr-2022
1682,Revenue,CAHD,CSC - Age Related Allowances,Foster Parent Allowances,Individual,207.00, 29-Apr-2022
1683,Revenue,CAHD,CSC - Professional Fees Foster Carers,Band 1 Foster Care,Individual,340.00, 29-Apr-2022
1684,Revenue,CAHD,CSC - Care Leavers Support Costs,"Provisions (Food, etc)",Empire Fighting Chance,650.00, 06-Apr-2022
1685,Revenue,CAHD,Contain Outbreak Mgmt Fund,Project Funding,Empowering Futures,500.00, 01-Apr-2022
1686,Revenue,CAHD,Special ISB,Other Public Bodies,Enable Trust,7397.28, 25-Apr-2022
1687,Revenue,CAHD,Special ISB,Other Public Bodies,Enable Trust,627.77, 25-Apr-2022
1688,Revenue,CAHD,Special ISB,Other Public Bodies,Enable Trust,1137.94, 25-Apr-2022
1689,Revenue,CAHD,Special ISB,Other Public Bodies,Enable Trust,1137.94, 25-Apr-2022
1690,Revenue,CAHD,Special ISB,Other Public Bodies,Enable Trust,2118.90, 25-Apr-2022
1691,Revenue,CAHD,Special ISB,Other Public Bodies,Enable Trust,1137.94, 25-Apr-2022
1692,Revenue,CAHD,Special ISB,Other Public Bodies,Enable Trust,1137.94, 25-Apr-2022
1693,Revenue,CAHD,Special ISB,Other Public Bodies,Enable Trust,1137.94, 25-Apr-2022
1694,Revenue,CAHD,Special ISB,Other Public Bodies,Enable Trust,1491.13, 25-Apr-2022
1695,Revenue,CAHD,Special ISB,Other Public Bodies,Enable Trust,1491.13, 25-Apr-2022
1696,Revenue,CAHD,Special ISB,Other Public Bodies,Enable Trust,1491.13, 25-Apr-2022
1697,Revenue,CAHD,Special ISB,Other Public Bodies,Enable Trust,1137.94, 25-Apr-2022
1698,Revenue,CAHD,Special ISB,Other Public Bodies,Enable Trust,863.27, 25-Apr-2022
1699,Revenue,CAHD,Special ISB,Other Public Bodies,Enable Trust,1137.94, 25-Apr-2022
1700,Revenue,CAHD,Special ISB,Other Public Bodies,Enable Trust,1491.13, 25-Apr-2022
1701,Revenue,CAHD,Special ISB,Other Public Bodies,Enable Trust,863.27, 25-Apr-2022
1702,Revenue,CAHD,Special ISB,Other Public Bodies,Enable Trust,1137.94, 25-Apr-2022
1703,Revenue,CAHD,Special ISB,Other Public Bodies,Enable Trust,863.27, 25-Apr-2022
1704,Revenue,CAHD,Special ISB,Other Public Bodies,Enable Trust,1137.94, 25-Apr-2022
1705,Revenue,CAHD,Special ISB,Other Public Bodies,Enable Trust,2118.90, 25-Apr-2022
1706,Revenue,CAHD,Special ISB,Other Public Bodies,Enable Trust,1137.94, 25-Apr-2022
1707,Revenue,CAHD,Special ISB,Other Public Bodies,Enable Trust,1137.94, 25-Apr-2022
1708,Revenue,CAHD,Special ISB,Other Public Bodies,Enable Trust,1137.94, 25-Apr-2022
1709,Revenue,CAHD,Special ISB,Other Public Bodies,Enable Trust,1137.94, 25-Apr-2022
1710,Revenue,CAHD,Special ISB,Other Public Bodies,Enable Trust,627.77, 25-Apr-2022
1711,Revenue,CAHD,Special ISB,Other Public Bodies,Enable Trust,1137.94, 25-Apr-2022
1712,Revenue,CAHD,Special ISB,Other Public Bodies,Enable Trust,1137.94, 25-Apr-2022
1713,Revenue,CAHD,Special ISB,Other Public Bodies,Enable Trust,1137.94, 25-Apr-2022
1714,Revenue,CAHD,Special ISB,Other Public Bodies,Enable Trust,1137.94, 25-Apr-2022
1715,Revenue,CAHD,Special ISB,Other Public Bodies,Enable Trust,1137.94, 25-Apr-2022
1716,Revenue,CAHD,Special ISB,Other Public Bodies,Enable Trust,1648.03, 25-Apr-2022
1717,Revenue,CAHD,Special ISB,Other Public Bodies,Enable Trust,1491.13, 25-Apr-2022
1718,Revenue,CAHD,Special ISB,Other Public Bodies,Enable Trust,1137.94, 25-Apr-2022
1719,Revenue,CAHD,Special ISB,Other Public Bodies,Enable Trust,863.27, 25-Apr-2022
1720,Revenue,CAHD,Special ISB,Other Public Bodies,Enable Trust,1491.13, 25-Apr-2022
1721,Revenue,CAHD,Special ISB,Other Public Bodies,Enable Trust,1137.94, 25-Apr-2022
1722,Revenue,CAHD,Special ISB,Other Public Bodies,Enable Trust,1491.13, 25-Apr-2022
1723,Revenue,CAHD,Special ISB,Other Public Bodies,Enable Trust,627.77, 25-Apr-2022
1724,Revenue,CAHD,Special ISB,Other Public Bodies,Enable Trust,2118.90, 25-Apr-2022
1725,Revenue,CAHD,Special ISB,Other Public Bodies,Enable Trust,627.77, 25-Apr-2022
1726,Revenue,CAHD,Special ISB,Other Public Bodies,Enable Trust,1491.13, 25-Apr-2022
1727,Revenue,CAHD,Special ISB,Other Public Bodies,Enable Trust,863.27, 25-Apr-2022
1728,Revenue,CAHD,Special ISB,Other Public Bodies,Enable Trust,863.27, 25-Apr-2022
1729,Revenue,CAHD,Special ISB,Other Public Bodies,Enable Trust,1137.94, 25-Apr-2022
1730,Revenue,CAHD,Special ISB,Other Public Bodies,Enable Trust,627.77, 25-Apr-2022
1731,Revenue,CAHD,Special ISB,Other Public Bodies,Enable Trust,1137.94, 25-Apr-2022
1732,Revenue,CAHD,Special ISB,Other Public Bodies,Enable Trust,2118.90, 25-Apr-2022
1733,Revenue,CAHD,Special ISB,Other Public Bodies,Enable Trust,1137.94, 25-Apr-2022
1734,Revenue,CAHD,Special ISB,Other Public Bodies,Enable Trust,1137.94, 25-Apr-2022
1735,Revenue,CAHD,Special ISB,Other Public Bodies,Enable Trust,1137.94, 25-Apr-2022
1736,Revenue,CAHD,Special ISB,Other Public Bodies,Enable Trust,1137.94, 25-Apr-2022
1737,Revenue,CAHD,Special ISB,Other Public Bodies,Enable Trust,1137.94, 25-Apr-2022
1738,Revenue,CAHD,Special ISB,Other Public Bodies,Enable Trust,863.27, 25-Apr-2022
1739,Revenue,CAHD,Special ISB,Other Public Bodies,Enable Trust,863.27, 25-Apr-2022
1740,Revenue,CAHD,Special ISB,Other Public Bodies,Enable Trust,2118.90, 25-Apr-2022
1741,Revenue,CAHD,Special ISB,Other Public Bodies,Enable Trust,2118.90, 25-Apr-2022
1742,Revenue,CAHD,Special ISB,Other Public Bodies,Enable Trust,1137.94, 25-Apr-2022
1743,Revenue,CAHD,Special ISB,Other Public Bodies,Enable Trust,1491.13, 25-Apr-2022
1744,Revenue,CAHD,Special ISB,Other Public Bodies,Enable Trust,1137.94, 25-Apr-2022
1745,Revenue,CAHD,Special ISB,Other Public Bodies,Enable Trust,1491.13, 25-Apr-2022
1746,Revenue,CAHD,Special ISB,Other Public Bodies,Enable Trust,1137.94, 25-Apr-2022
1747,Revenue,CAHD,Special ISB,Other Public Bodies,Enable Trust,1137.94, 25-Apr-2022
1748,Revenue,CAHD,Special ISB,Other Public Bodies,Enable Trust,2118.90, 25-Apr-2022
1749,Revenue,CAHD,Special ISB,Other Public Bodies,Enable Trust,863.27, 25-Apr-2022
1750,Revenue,CAHD,Special ISB,Other Public Bodies,Enable Trust,1137.94, 25-Apr-2022
1751,Revenue,CAHD,Special ISB,Other Public Bodies,Enable Trust,1137.94, 25-Apr-2022
1752,Revenue,CAHD,Special ISB,Other Public Bodies,Enable Trust,1491.13, 25-Apr-2022
1753,Revenue,CAHD,Special ISB,Other Public Bodies,Enable Trust,1137.94, 25-Apr-2022
1754,Revenue,CAHD,Special ISB,Other Public Bodies,Enable Trust,1491.13, 25-Apr-2022
1755,Revenue,CAHD,Special ISB,Other Public Bodies,Enable Trust,863.27, 25-Apr-2022
1756,Revenue,CAHD,Special ISB,Other Public Bodies,Enable Trust,1137.94, 25-Apr-2022
1757,Revenue,CAHD,Special ISB,Other Public Bodies,Enable Trust,1137.94, 25-Apr-2022
1758,Revenue,CAHD,Special ISB,Other Public Bodies,Enable Trust,1491.13, 25-Apr-2022
1759,Revenue,CAHD,Special ISB,Other Public Bodies,Enable Trust,863.27, 25-Apr-2022
1760,Revenue,CAHD,Special ISB,Other Public Bodies,Enable Trust,863.27, 25-Apr-2022
1761,Revenue,CAHD,Special ISB,Other Public Bodies,Enable Trust,863.27, 25-Apr-2022
1762,Revenue,CAHD,Special ISB,Other Public Bodies,Enable Trust,2432.79, 25-Apr-2022
1763,Revenue,CAHD,Special ISB,Other Public Bodies,Enable Trust,1137.94, 25-Apr-2022
1764,Revenue,CAHD,Special ISB,Other Public Bodies,Enable Trust,1491.13, 25-Apr-2022
1765,Revenue,CAHD,Special ISB,Other Public Bodies,Enable Trust,1491.13, 25-Apr-2022
1766,Revenue,CAHD,Special ISB,Other Public Bodies,Enable Trust,2118.90, 25-Apr-2022
1767,Revenue,CAHD,Special ISB,Other Public Bodies,Enable Trust,1137.94, 25-Apr-2022
1768,Revenue,CAHD,Special ISB,Other Public Bodies,Enable Trust,1137.94, 25-Apr-2022
1769,Revenue,CAHD,Special ISB,Other Public Bodies,Enable Trust,2118.90, 25-Apr-2022
1770,Revenue,CAHD,Special ISB,Other Public Bodies,Enable Trust,5753.44, 25-Apr-2022
1771,Revenue,CAHD,Special ISB,Other Public Bodies,Enable Trust,1491.13, 25-Apr-2022
1772,Revenue,CAHD,Special ISB,Other Public Bodies,Enable Trust,1648.03, 25-Apr-2022
1773,Revenue,CAHD,Special ISB,Other Public Bodies,Enable Trust,1648.03, 25-Apr-2022
1774,Revenue,CAHD,Special ISB,Other Public Bodies,Enable Trust,863.27, 25-Apr-2022
1775,Revenue,CAHD,Special ISB,Other Public Bodies,Enable Trust,1137.94, 25-Apr-2022
1776,Revenue,CAHD,Special ISB,Other Public Bodies,Enable Trust,1648.03, 25-Apr-2022
1777,Revenue,CAHD,Special ISB,Other Public Bodies,Enable Trust,1137.94, 25-Apr-2022
1778,Revenue,CAHD,Special ISB,Other Public Bodies,Enable Trust,1137.94, 25-Apr-2022
1779,Revenue,CAHD,Special ISB,Other Public Bodies,Enable Trust,1137.94, 25-Apr-2022
1780,Revenue,CAHD,Special ISB,Other Public Bodies,Enable Trust,1648.03, 25-Apr-2022
1781,Revenue,CAHD,Special ISB,Other Public Bodies,Enable Trust,2432.79, 25-Apr-2022
1782,Revenue,CAHD,Special ISB,Other Public Bodies,Enable Trust,1137.94, 25-Apr-2022
1783,Revenue,CAHD,Special ISB,Other Public Bodies,Enable Trust,863.27, 25-Apr-2022
1784,Revenue,CAHD,Special ISB,Other Public Bodies,Enable Trust,1137.94, 25-Apr-2022
